{"text_format":"1","workbook":"xlsx","n_sheets":4,"sheets":["CS","使用方法","コピペ用","VL用1"],"not_rendered":{"charts":0,"images":0,"macros":1,"external_links":0,"defined_names":13,"comments":0,"pivot_tables":0},"unopened":[],"bounds":{"document_bytes":16777216,"sheet_cells":100000,"rows_first":2000,"rows_last":500,"rows_between":2000,"halvings":0,"cell_chars":16384,"cell_head_chars":4096},"cells_cut":0,"cells_raw":0,"read":"whole","date_system":"1900"}

{"sheet":"CS","index":0,"n_rows":56,"n_cols":67,"rows_kept":56,"cut":false,"hidden":false,"merged":[[1,62,1,74],[2,62,2,74],[3,62,3,74],[4,62,4,74],[5,62,5,74],[6,62,6,74],[7,62,7,74],[8,62,8,74],[4,39,4,42],[4,49,4,60],[8,49,8,60],[1,43,1,48],[1,49,1,54],[1,55,1,60],[2,43,3,48],[2,49,3,54],[2,55,3,60],[4,43,4,48],[5,43,5,48],[6,43,6,48],[6,49,6,60],[5,49,5,60],[1,39,1,42],[2,39,3,42],[5,39,5,42],[6,39,6,42],[7,39,7,42],[8,39,8,42],[14,1,14,16],[51,39,52,40],[53,39,54,40],[53,41,54,47],[37,41,38,47],[31,41,32,47],[27,41,28,47],[35,41,36,47],[34,11,35,12],[40,15,41,16],[42,11,43,12],[9,1,9,2],[11,17,12,21],[11,27,12,31],[11,22,12,26],[10,1,10,2],[11,1,11,2],[12,1,12,2],[9,3,9,11],[10,3,10,11],[55,30,55,32],[48,33,55,35],[13,1,13,16],[48,30,48,32],[49,30,49,32],[50,30,50,32],[21,11,23,12],[21,13,23,14],[21,15,23,16],[24,11,25,12],[24,13,25,14],[24,15,25,16],[26,11,27,12],[26,13,27,14],[26,15,27,16],[28,11,29,12],[28,13,29,14],[28,15,29,16],[32,11,33,12],[32,13,33,14],[32,15,33,16],[54,30,54,32],[28,8,29,10],[30,8,31,10],[52,30,52,32],[9,12,9,13],[10,12,10,13],[11,12,11,13],[12,12,12,13],[9,14,10,16],[11,14,12,16],[51,30,51,32],[26,23,27,26],[17,13,18,14],[17,15,18,16],[30,23,31,26],[32,23,33,26],[49,17,49,18],[36,23,37,26],[51,13,51,14],[51,15,51,16],[51,11,51,12],[11,3,11,11],[12,3,12,11],[28,17,29,18],[52,15,52,16],[16,13,16,14],[36,2,37,4],[16,15,16,16],[24,17,25,18],[26,17,27,18],[21,2,23,4],[26,5,27,7],[28,5,29,7],[32,5,33,7],[34,5,35,7],[36,5,37,7],[19,1,20,36],[36,30,37,35],[24,30,25,35],[23,5,23,7],[24,5,25,7],[30,5,31,7],[21,5,22,7],[16,7,16,8],[16,9,16,10],[16,11,16,12],[17,9,18,10],[17,11,18,12],[21,8,22,10],[23,8,23,10],[14,18,15,25],[53,13,53,14],[53,15,53,16],[42,15,43,16],[44,11,45,12],[30,21,31,22],[32,21,33,22],[34,21,35,22],[36,21,37,22],[34,17,35,18],[36,17,37,18],[30,19,31,20],[32,19,33,20],[34,19,35,20],[36,19,37,20],[30,11,31,12],[30,13,31,14],[30,15,31,16],[30,17,31,18],[49,13,49,14],[49,15,49,16],[50,11,50,12],[50,13,50,14],[48,13,48,14],[48,15,48,16],[24,23,25,26],[44,8,45,10],[46,8,47,10],[36,8,37,10],[38,8,39,10],[32,8,33,10],[34,8,35,10],[46,19,47,20],[40,19,41,20],[42,19,43,20],[38,17,39,18],[42,8,43,10],[36,11,37,12],[36,13,37,14],[36,15,37,16],[44,13,45,14],[44,15,45,16],[46,11,47,12],[46,13,47,14],[46,15,47,16],[42,13,43,14],[38,11,39,12],[40,8,41,10],[53,30,53,32],[17,24,18,26],[17,18,18,20],[17,1,18,2],[17,3,18,4],[17,5,18,6],[17,7,18,8],[28,23,29,26],[24,21,25,22],[38,5,39,7],[44,2,45,4],[26,30,27,35],[42,21,43,22],[44,17,45,18],[40,17,41,18],[42,17,43,18],[38,19,39,20],[44,19,45,20],[46,2,47,4],[21,23,23,26],[38,13,39,14],[38,15,39,16],[40,11,41,12],[46,5,47,7],[1,27,1,36],[2,27,3,36],[4,17,4,36],[5,17,6,26],[5,27,6,36],[7,32,8,36],[1,1,4,16],[5,1,6,16],[7,1,8,9],[7,10,8,16],[7,17,8,21],[7,22,8,26],[7,27,8,31],[1,17,1,26],[2,17,3,26],[14,26,15,36],[26,2,27,4],[15,1,15,2],[15,3,15,4],[15,5,15,6],[24,2,25,4],[34,13,35,14],[34,15,35,16],[15,9,15,10],[15,11,15,12],[15,13,15,14],[15,15,15,16],[24,8,25,10],[26,8,27,10],[15,7,15,8],[16,1,16,2],[16,3,16,4],[16,5,16,6],[28,2,29,4],[30,2,31,4],[32,2,33,4],[34,2,35,4],[32,17,33,18],[34,23,35,26],[38,2,39,4],[40,2,41,4],[40,5,41,7],[42,2,43,4],[42,5,43,7],[44,5,45,7],[46,17,47,18],[44,30,45,35],[46,21,47,22],[44,23,45,26],[46,23,47,26],[38,21,39,22],[38,23,39,26],[46,30,47,35],[40,23,41,26],[42,23,43,26],[40,21,41,22],[38,30,39,35],[40,30,41,35],[42,30,43,35],[44,21,45,22],[40,13,41,14],[29,39,30,40],[33,39,34,40],[17,21,18,23],[16,18,16,20],[16,21,16,23],[28,21,29,22],[21,30,23,35],[21,17,22,22],[23,17,23,18],[23,19,23,20],[23,21,23,22],[28,30,29,35],[30,30,31,35],[32,30,33,35],[34,30,35,35],[31,39,32,40],[23,39,24,40],[24,19,25,20],[26,19,27,20],[28,19,29,20],[26,21,27,22],[27,39,28,40],[19,39,20,59],[29,41,30,47],[11,32,12,36],[9,17,10,21],[9,22,10,26],[9,27,10,31],[9,32,10,36],[16,24,16,26],[13,53,14,56],[21,39,22,40],[21,41,22,47],[21,48,22,50],[21,51,22,53],[21,54,22,55],[14,17,18,17],[16,27,16,29],[17,27,18,29],[16,30,16,36],[17,30,18,36],[13,39,14,42],[13,43,14,45],[13,46,14,49],[21,56,22,57],[9,53,10,56],[11,53,12,56],[13,50,14,52],[53,66,54,74],[55,39,56,40],[49,63,50,65],[47,63,48,65],[51,41,52,47],[39,39,40,40],[49,41,50,47],[47,54,48,55],[47,56,48,57],[41,39,42,40],[55,48,56,50],[55,56,56,57],[55,60,56,62],[55,41,56,47],[43,39,44,40],[45,39,46,40],[47,39,48,40],[55,51,56,53],[55,58,56,59],[55,54,56,55],[49,51,50,53],[45,51,46,53],[45,58,46,59],[53,63,54,65],[45,63,46,65],[35,39,36,40],[37,39,38,40],[47,58,48,59],[49,54,50,55],[53,48,54,50],[53,51,54,53],[53,58,54,59],[49,39,50,40],[47,41,48,47],[45,48,46,50],[43,41,44,47],[41,41,42,47],[43,48,44,50],[43,51,44,53],[39,41,40,47],[43,56,44,57],[41,48,42,50],[41,51,42,53],[41,54,42,55],[39,58,40,59],[35,58,36,59],[41,56,42,57],[39,48,40,50],[45,41,46,47],[43,58,44,59],[33,60,34,62],[49,60,50,62],[51,48,52,50],[51,51,52,53],[51,54,52,55],[49,56,50,57],[49,48,50,50],[37,60,38,62],[39,51,40,53],[35,48,36,50],[35,51,36,53],[27,60,28,62],[33,48,34,50],[33,51,34,53],[33,58,34,59],[33,54,34,55],[33,56,34,57],[29,56,30,57],[37,63,38,65],[33,41,34,47],[37,54,38,55],[37,56,38,57],[27,48,28,50],[27,51,28,53],[27,63,28,65],[31,63,32,65],[27,54,28,55],[27,58,28,59],[35,63,36,65],[27,56,28,57],[29,48,30,50],[29,51,30,53],[29,58,30,59],[29,54,30,55],[31,56,32,57],[53,60,54,62],[45,54,46,55],[45,56,46,57],[53,54,54,55],[53,56,54,57],[49,58,50,59],[47,48,48,50],[47,51,48,53],[31,60,32,62],[37,48,38,50],[37,51,38,53],[37,58,38,59],[39,54,40,55],[31,58,32,59],[31,48,32,50],[31,51,32,53],[31,54,32,55],[41,63,42,65],[41,60,42,62],[41,66,42,74],[43,63,44,65],[43,60,44,62],[29,60,30,62],[29,66,30,74],[31,66,32,74],[37,66,38,74],[49,66,50,74],[41,58,42,59],[55,66,56,74],[33,63,34,65],[33,66,34,74],[35,54,36,55],[35,56,36,57],[35,60,36,62],[39,56,40,57],[39,60,40,62],[47,60,48,62],[35,66,36,74],[55,63,56,65],[45,66,46,74],[51,56,52,57],[51,58,52,59],[51,60,52,62],[51,63,52,65],[51,66,52,74],[45,60,46,62],[43,54,44,55],[43,66,44,74],[39,63,40,65],[39,66,40,74],[27,66,28,74],[47,66,48,74],[9,39,10,42],[9,43,10,45],[11,39,12,42],[11,43,12,45],[7,43,7,48],[8,43,8,48],[7,49,7,60],[9,46,10,49],[9,50,10,52],[11,46,12,49],[11,50,12,52],[9,57,10,60],[11,57,12,59],[11,60,12,60],[16,39,16,50],[25,48,26,50],[25,51,26,53],[23,41,24,47],[23,48,24,50],[23,51,24,53],[21,58,22,59],[29,63,30,65],[25,39,26,40],[17,39,18,50],[16,51,16,62],[17,51,18,62],[23,58,24,59],[23,54,24,55],[23,56,24,57],[23,60,24,62],[25,58,26,59],[25,54,26,55],[25,56,26,57],[25,41,26,47],[19,60,19,74],[49,23,49,26],[50,23,50,26],[50,15,50,16],[48,2,55,2],[48,3,48,4],[49,3,49,4],[50,3,50,4],[51,3,51,4],[52,3,52,4],[53,3,53,4],[54,3,54,4],[55,3,55,4],[52,11,52,12],[52,13,52,14],[55,5,55,7],[48,8,48,10],[49,8,49,10],[50,8,50,10],[51,8,51,10],[48,23,48,26],[48,17,48,18],[48,19,48,20],[48,21,48,22],[54,15,54,16],[52,8,52,10],[53,8,53,10],[54,8,54,10],[49,11,49,12],[55,8,55,10],[48,5,48,7],[49,5,49,7],[50,5,50,7],[51,5,51,7],[52,5,52,7],[53,5,53,7],[54,5,54,7],[48,11,48,12],[54,11,54,12],[54,13,54,14],[53,11,53,12],[52,23,52,26],[53,23,53,26],[54,23,54,26],[55,23,55,26],[51,17,51,18],[51,19,51,20],[51,21,51,22],[52,17,52,18],[52,19,52,20],[52,21,52,22],[54,17,54,18],[54,19,54,20],[54,21,54,22],[55,17,55,18],[55,19,55,20],[55,21,55,22],[53,17,53,18],[53,19,53,20],[53,21,53,22],[51,23,51,26],[55,11,55,12],[55,13,55,14],[55,15,55,16],[20,60,20,74],[13,57,14,60],[25,60,26,62],[12,62,12,74],[13,62,13,74],[14,62,14,74],[9,62,9,74],[10,62,10,74],[11,62,11,74],[21,60,22,62],[16,63,16,74],[17,63,18,74],[21,63,22,65],[23,63,24,65],[25,66,26,74],[25,63,26,65],[23,66,24,74],[21,66,22,74],[49,19,49,20],[49,21,49,22],[50,17,50,18],[50,19,50,20],[50,21,50,22]]}
[]
[null,"Magician's Age",null,null,null,null,null,null,null,null,null,null,null,null,null,null,null,"Character's name",null,null,null,null,null,null,null,null,null,"Player's name",null,null,null,null,null,null,null,null,null,null,null,null,null,null,null,"理由",null,null,null,null,null,"職業",null,null,null,null,null,"宝物",null,null,null,null,null,null,"Free Space"]
[null,null,null,null,null,null,null,null,null,null,null,null,null,null,null,null,null,null,null,null,null,null,null,null,null,null,null,null,null,null,null,null,null,null,null,null,null,null,null,"Lifepath"]
[]
[null,null,null,null,null,null,null,null,null,null,null,null,null,null,null,null,null,null,null,null,null,null,null,null,null,null,null,null,null,null,null,null,null,null,null,null,null,null,null,null,null,null,null,"名称",null,null,null,null,null,"効果"]
[null,"-Auto Character Sheet ver1.0 -",null,null,null,null,null,null,null,null,null,null,null,null,null,null,null,"Total Experience point",null,null,null,null,null,null,null,null,null,null,null,null,null,null,null,null,null,null,null,null,null,"防具",null,null,null,"一般服"]
[null,null,null,null,null,null,null,null,null,null,null,null,null,null,null,null,null,null,null,null,null,null,null,null,null,null,null,null,null,null,null,null,null,null,null,null,null,null,null,"アクセサリA",null,null,null,"なし",null,null,null,null,null,{"$f":"\" \"&VLOOKUP(アクセA,VL用1!$CP$1:$DL$151,23,FALSE)","v":" "}]
[null,"Character's Species >>",null,null,null,null,null,null,null,null,"人間",null,null,null,null,null,null,"Gender",null,null,null,null,null,null,null,null,null,"Age",null,null,null,null,null,null,null,null,null,null,null,"アクセサリB",null,null,null,"なし",null,null,null,null,null,{"$f":"\" \"&VLOOKUP(アクセB,VL用1!$CP$1:$DL$151,23,FALSE)","v":" "}]
[null,null,null,null,null,null,null,null,null,null,null,null,null,null,null,null,null,null,null,null,null,null,null,null,null,null,null,null,null,null,null,null,null,null,null,null,null,null,null,"アクセサリC",null,null,null,"なし",null,null,null,null,null,{"$f":"\" \"&VLOOKUP(アクセC,VL用1!$CP$1:$DL$151,23,FALSE)","v":" "}]
[null,null,null,"Type's name",null,null,null,null,null,null,null,null,"TL",null,"CL",null,null,"Height",null,null,null,null,null,null,null,null,null,"Weight",null,null,null,null,null,null,null,null,null,null,null,"命中C値",null,null,null,18,null,null,"命中F値",null,null,null,5,null,null,"移動ｺｽﾄ",null,null,null,"3/8"]
[null,"Main",null,"―"]
[null,"Sub",null,"―",null,null,null,null,null,null,null,null,null,null,{"$f":"ML+SL+EL","v":0},null,null,"Hair Color",null,null,null,null,null,null,null,null,null,"Eye Color",null,null,null,null,null,null,null,null,null,null,null,"回避C値",null,null,null,18,null,null,"回避F値",null,null,null,5,null,null,"消費額",null,null,null,{"$f":"VLOOKUP(武器名,VL用1!AQ1:AV101,5,FALSE)+VLOOKUP(防具名,VL用1!BS1:CN60,2,FALSE)+VLOOKUP(アクセA,VL用1!$CP$1:$DL$151,2,FALSE)+VLOOKUP(アクセB,VL用1!$CP$1:$DL$151,2,FALSE)+VLOOKUP(アクセC,VL用1!$CP$1:$DL$151,2,FALSE)","v":0},null,null,"ND"]
[null,"Extra",null,"―"]
[null,{"$f":"IF(AND(ML>=SL,SL>=EL)=TRUE,IF(OR(D11=D12,D12=D13)=TRUE,\"↑タイプ重複エラー↑\",\"\"),\"↑レベル設定エラー(ﾒｲﾝ≧ｻﾌﾞ≧ｴｸｽﾄﾗ)↑\")","v":"↑タイプ重複エラー↑"},null,null,null,null,null,null,null,null,null,null,null,null,null,null,null,null,null,null,null,null,null,null,null,null,null,null,null,null,null,null,null,null,null,null,null,null,null,"調査C値",null,null,null,18,null,null,"調査F値",null,null,null,5,null,null,"BP上限値",null,null,null,16]
[null,"基本能力値",null,null,null,null,null,null,null,null,null,null,null,null,null,null,null,null,"装備武器 >>",null,null,null,null,null,null,null,"素手"]
[null,"肉体",null,"反射",null,"集中",null,"知識",null,"感覚",null,"意志",null,"洞察",null,"幸運"]
[null,{"$f":"VLOOKUP(種族,VL用1!$B$1:$AE$20,2,FALSE)","v":10},null,{"$f":"VLOOKUP(種族,VL用1!$B$1:$AE$20,3,FALSE)","v":9},null,{"$f":"VLOOKUP(種族,VL用1!$B$1:$AE$20,4,FALSE)","v":17},null,{"$f":"VLOOKUP(種族,VL用1!$B$1:$AE$20,5,FALSE)","v":10},null,{"$f":"VLOOKUP(種族,VL用1!$B$1:$AE$20,6,FALSE)","v":6},null,{"$f":"VLOOKUP(種族,VL用1!$B$1:$AE$20,7,FALSE)","v":11},null,{"$f":"VLOOKUP(種族,VL用1!$B$1:$AE$20,8,FALSE)","v":7},null,{"$f":"VLOOKUP(種族,VL用1!$B$1:$AE$20,9,FALSE)","v":10},null,null,"種別",null,null,"射程",null,null,"属性",null,null,"コスト",null,null,"効果",null,null,null,null,null,null,null,null,"種族特典",null,null,null,null,null,null,null,null,null,null,null,"メインタイプ特典",null,null,null,null,null,null,null,null,null,null,null,"サブタイプ特典 (TL3以上)"]
[null,null,null,null,null,null,null,null,null,null,null,null,null,null,null,null,null,null,{"$f":"VLOOKUP(武器名,VL用1!AQ1:BQ101,2,FALSE)","v":"近接"},null,null,{"$f":"VLOOKUP(武器名,VL用1!AQ1:BQ101,3,FALSE)","v":"超至近"},null,null,{"$f":"VLOOKUP(武器名,VL用1!AQ1:BQ101,4,FALSE)","v":"近"},null,null,{"$f":"VLOOKUP(武器名,VL用1!AQ1:BQ101,6,FALSE)","v":8},null,null,{"$f":"VLOOKUP(武器名,VL用1!AQ1:BQ101,27,FALSE)","v":"[素手武器] 武器未装備時の参照データ"},null,null,null,null,null,null,null,null,{"$f":"VLOOKUP(種族,VL用1!$B$1:$AE$20,30,FALSE)","v":"常時C値-1 (下限値：16)"},null,null,null,null,null,null,null,null,null,null,null,{"$f":"VLOOKUP(MC,VL用1!$B$22:$N$65,13,FALSE)","v":""},null,null,null,null,null,null,null,null,null,null,null,{"$f":"IF(SL>=3,VLOOKUP(SC,VL用1!$B$22:$N$65,13,FALSE),\" なし\")","v":" なし"}]
[]
[null,"Status                                                              ",null,null,null,null,null,null,null,null,null,null,null,null,null,null,null,null,null,null,null,null,null,null,null,null,null,null,null,null,null,null,null,null,null,null,null,null,null,"Skill                                                              ",null,null,null,null,null,null,null,null,null,null,null,null,null,null,null,null,null,null,null,null,{"$f":"IF(BI21=\"\",\"\",\"タイプスキルは各TLの半分(↓)個まで取得可\")","v":""}]
[null,null,null,null,null,null,null,null,null,null,null,null,null,null,null,null,null,null,null,null,null,null,null,null,null,null,null,null,null,null,null,null,null,null,null,null,null,null,null,null,null,null,null,null,null,null,null,null,null,null,null,null,null,null,null,null,null,null,null,null,{"$f":"IF(COUNTIF(VL用1!AA24:AA43,\"×\")=0,\"\",\"↓タイプスキル取得数エラー↓\")","v":""}]
[null,null,null,null,null,"種族",null,null,"ﾀｲﾌﾟ",null,null,"ｽﾀｲﾙ",null,"武器",null,"防具",null,"ｱｸｾｻﾘｰ",null,null,null,null,null,"他修正",null,null,null,null,null,null,"Total\nStatus",null,null,null,null,null,null,null,null,"CL",null,"スキル名",null,null,null,null,null,null,"種別",null,null,"ﾀｲﾐﾝｸﾞ",null,null,"射程",null,"対象",null,"判定",null,"代償",null,null,"コスト",null,null,"効果"]
[]
[null,null,null,null,null,"Bonus",null,null,"Bonus",null,null,null,null,null,null,null,null,"A",null,"B",null,"C",null,null,null,null,null,null,null,null,null,null,null,null,null,null,null,null,null,"★",null,{"$f":"VLOOKUP(種族,VL用1!$B$1:$AN$20,31,FALSE)","v":"起死回生"},null,null,null,null,null,null,{"$f":"VLOOKUP(種族,VL用1!$B$1:$AN$20,32,FALSE)","v":"自"},null,null,{"$f":"VLOOKUP(種族,VL用1!$B$1:$AN$20,33,FALSE)","v":"オート"},null,null,{"$f":"VLOOKUP(種族,VL用1!$B$1:$AN$20,35,FALSE)","v":"―"},null,{"$f":"VLOOKUP(種族,VL用1!$B$1:$AN$20,36,FALSE)","v":"自身"},null,{"$f":"VLOOKUP(種族,VL用1!$B$1:$AN$20,34,FALSE)","v":"自動"},null,{"$f":"VLOOKUP(種族,VL用1!$B$1:$AN$20,37,FALSE)","v":"5BP"},null,null,{"$f":"VLOOKUP(種族,VL用1!$B$1:$AN$20,38,FALSE)","v":0},null,null,{"$f":"VLOOKUP(種族,VL用1!$B$1:$AN$20,39,FALSE)","v":"判定直後使用、出目を両方9にする。命中判定の場合、対する回避C値20固定。"}]
[null,null,"近接",null,null,{"$f":"IF(VLOOKUP(種族,VL用1!$B$1:$AE$20,VL用1!A2,FALSE)=0,\"\",VLOOKUP(種族,VL用1!$B$1:$AE$20,VL用1!A2,FALSE))","v":5},null,null,{"$f":"IF(VLOOKUP(MC,VL用1!$B$22:$N$65,VL用1!A35,FALSE)=0,\"\",VLOOKUP(MC,VL用1!$B$22:$N$65,VL用1!A35,FALSE))","v":""},null,null,{"$f":"IF(CS!AP26=VL用1!AF24,1,\"\")","v":""},null,{"$f":"IF(VLOOKUP(武器名,VL用1!$AQ$1:$BQ$101,VL用1!A2-3,FALSE)=0,\"\",VLOOKUP(武器名,VL用1!$AQ$1:$BQ$101,VL用1!A2-3,FALSE))","v":-2},null,{"$f":"IF(VLOOKUP(防具名,VL用1!$BS$1:$CN$60,VL用1!A2-7,FALSE)=0,\"\",VLOOKUP(防具名,VL用1!$BS$1:$CN$60,VL用1!A2-7,FALSE))","v":""},null,{"$f":"IF(VLOOKUP(アクセA,VL用1!$CP$1:$DL$151,VL用1!$A2-7,FALSE)=0,\"\",VLOOKUP(アクセA,VL用1!$CP$1:$DL$151,VL用1!$A2-7,FALSE))","v":""},null,{"$f":"IF(VLOOKUP(アクセB,VL用1!$CP$1:$DL$151,VL用1!$A2-7,FALSE)=0,\"\",VLOOKUP(アクセB,VL用1!$CP$1:$DL$151,VL用1!$A2-7,FALSE))","v":""},null,{"$f":"IF(VLOOKUP(アクセC,VL用1!$CP$1:$DL$151,VL用1!$A2-7,FALSE)=0,\"\",VLOOKUP(アクセC,VL用1!$CP$1:$DL$151,VL用1!$A2-7,FALSE))","v":""},null,null,null,null,null,null,null,null,{"$f":"SUM(F25:AA26)","v":3}]
[null,null,null,null,null,null,null,null,null,null,null,null,null,null,null,null,null,null,null,null,null,null,null,null,null,null,null,null,null,null,null,null,null,null,null,null,null,null,null,"S",null,"アタッカー",null,null,null,null,null,null,"ｽﾀｲﾙ",null,null,null,null,null,null,null,null,null,null,null,null,null,null,null,null,null,{"$f":"VLOOKUP(CS!AP26,VL用1!AF22:AG32,2,FALSE)","v":"攻撃で与えるダメージに+[2D10+-10] 命中C値-1 (下限15)"}]
[null,null,"射撃",null,null,{"$f":"IF(VLOOKUP(種族,VL用1!$B$1:$AE$20,VL用1!A4,FALSE)=0,\"\",VLOOKUP(種族,VL用1!$B$1:$AE$20,VL用1!A4,FALSE))","v":5},null,null,{"$f":"IF(VLOOKUP(MC,VL用1!$B$22:$N$65,VL用1!A37,FALSE)=0,\"\",VLOOKUP(MC,VL用1!$B$22:$N$65,VL用1!A37,FALSE))","v":""},null,null,{"$f":"IF(CS!AP26=VL用1!AF24,1,\"\")","v":""},null,{"$f":"IF(VLOOKUP(武器名,VL用1!$AQ$1:$BQ$101,VL用1!A4-3,FALSE)=0,\"\",VLOOKUP(武器名,VL用1!$AQ$1:$BQ$101,VL用1!A4-3,FALSE))","v":""},null,{"$f":"IF(VLOOKUP(防具名,VL用1!$BS$1:$CN$60,VL用1!A4-7,FALSE)=0,\"\",VLOOKUP(防具名,VL用1!$BS$1:$CN$60,VL用1!A4-7,FALSE))","v":""},null,{"$f":"IF(VLOOKUP(アクセA,VL用1!$CP$1:$DL$151,VL用1!$A4-7,FALSE)=0,\"\",VLOOKUP(アクセA,VL用1!$CP$1:$DL$151,VL用1!$A4-7,FALSE))","v":""},null,{"$f":"IF(VLOOKUP(アクセB,VL用1!$CP$1:$DL$151,VL用1!$A4-7,FALSE)=0,\"\",VLOOKUP(アクセB,VL用1!$CP$1:$DL$151,VL用1!$A4-7,FALSE))","v":""},null,{"$f":"IF(VLOOKUP(アクセC,VL用1!$CP$1:$DL$151,VL用1!$A4-7,FALSE)=0,\"\",VLOOKUP(アクセC,VL用1!$CP$1:$DL$151,VL用1!$A4-7,FALSE))","v":""},null,null,null,null,null,null,null,null,{"$f":"SUM(F27:AA28)","v":5}]
[null,null,null,null,null,null,null,null,null,null,null,null,null,null,null,null,null,null,null,null,null,null,null,null,null,null,null,null,null,null,null,null,null,null,null,null,null,null,null,1]
[null,null,"回避",null,null,{"$f":"IF(VLOOKUP(種族,VL用1!$B$1:$AE$20,VL用1!A6,FALSE)=0,\"\",VLOOKUP(種族,VL用1!$B$1:$AE$20,VL用1!A6,FALSE))","v":3},null,null,{"$f":"IF(VLOOKUP(MC,VL用1!$B$22:$N$65,VL用1!A39,FALSE)=0,\"\",VLOOKUP(MC,VL用1!$B$22:$N$65,VL用1!A39,FALSE))","v":""},null,null,{"$f":"IF(CS!AP26=VL用1!AF25,2,\"\")","v":""},null,{"$f":"IF(VLOOKUP(武器名,VL用1!$AQ$1:$BQ$101,VL用1!A6-3,FALSE)=0,\"\",VLOOKUP(武器名,VL用1!$AQ$1:$BQ$101,VL用1!A6-3,FALSE))","v":""},null,{"$f":"IF(VLOOKUP(防具名,VL用1!$BS$1:$CN$60,VL用1!A6-7,FALSE)=0,\"\",VLOOKUP(防具名,VL用1!$BS$1:$CN$60,VL用1!A6-7,FALSE))","v":""},null,{"$f":"IF(VLOOKUP(アクセA,VL用1!$CP$1:$DL$151,VL用1!$A6-7,FALSE)=0,\"\",VLOOKUP(アクセA,VL用1!$CP$1:$DL$151,VL用1!$A6-7,FALSE))","v":""},null,{"$f":"IF(VLOOKUP(アクセB,VL用1!$CP$1:$DL$151,VL用1!$A6-7,FALSE)=0,\"\",VLOOKUP(アクセB,VL用1!$CP$1:$DL$151,VL用1!$A6-7,FALSE))","v":""},null,{"$f":"IF(VLOOKUP(アクセC,VL用1!$CP$1:$DL$151,VL用1!$A6-7,FALSE)=0,\"\",VLOOKUP(アクセC,VL用1!$CP$1:$DL$151,VL用1!$A6-7,FALSE))","v":""},null,null,null,null,null,null,null,null,{"$f":"SUM(F29:AA30)","v":3}]
[null,null,null,null,null,null,null,null,null,null,null,null,null,null,null,null,null,null,null,null,null,null,null,null,null,null,null,null,null,null,null,null,null,null,null,null,null,null,null,1]
[null,null,"魔術",null,null,{"$f":"IF(VLOOKUP(種族,VL用1!$B$1:$AE$20,VL用1!A8,FALSE)=0,\"\",VLOOKUP(種族,VL用1!$B$1:$AE$20,VL用1!A8,FALSE))","v":4},null,null,{"$f":"IF(VLOOKUP(MC,VL用1!$B$22:$N$65,VL用1!A41,FALSE)=0,\"\",VLOOKUP(MC,VL用1!$B$22:$N$65,VL用1!A41,FALSE))","v":""},null,null,{"$f":"IF(CS!AP26=VL用1!AF24,1,\"\")","v":""},null,{"$f":"IF(VLOOKUP(武器名,VL用1!$AQ$1:$BQ$101,VL用1!A8-3,FALSE)=0,\"\",VLOOKUP(武器名,VL用1!$AQ$1:$BQ$101,VL用1!A8-3,FALSE))","v":-2},null,{"$f":"IF(VLOOKUP(防具名,VL用1!$BS$1:$CN$60,VL用1!A8-7,FALSE)=0,\"\",VLOOKUP(防具名,VL用1!$BS$1:$CN$60,VL用1!A8-7,FALSE))","v":""},null,{"$f":"IF(VLOOKUP(アクセA,VL用1!$CP$1:$DL$151,VL用1!$A8-7,FALSE)=0,\"\",VLOOKUP(アクセA,VL用1!$CP$1:$DL$151,VL用1!$A8-7,FALSE))","v":""},null,{"$f":"IF(VLOOKUP(アクセB,VL用1!$CP$1:$DL$151,VL用1!$A8-7,FALSE)=0,\"\",VLOOKUP(アクセB,VL用1!$CP$1:$DL$151,VL用1!$A8-7,FALSE))","v":""},null,{"$f":"IF(VLOOKUP(アクセC,VL用1!$CP$1:$DL$151,VL用1!$A8-7,FALSE)=0,\"\",VLOOKUP(アクセC,VL用1!$CP$1:$DL$151,VL用1!$A8-7,FALSE))","v":""},null,null,null,null,null,null,null,null,{"$f":"SUM(F31:AA32)","v":2}]
[null,null,null,null,null,null,null,null,null,null,null,null,null,null,null,null,null,null,null,null,null,null,null,null,null,null,null,null,null,null,null,null,null,null,null,null,null,null,null,1]
[null,null,"抵抗",null,null,{"$f":"IF(VLOOKUP(種族,VL用1!$B$1:$AE$20,VL用1!A10,FALSE)=0,\"\",VLOOKUP(種族,VL用1!$B$1:$AE$20,VL用1!A10,FALSE))","v":3},null,null,{"$f":"IF(VLOOKUP(MC,VL用1!$B$22:$N$65,VL用1!A43,FALSE)=0,\"\",VLOOKUP(MC,VL用1!$B$22:$N$65,VL用1!A43,FALSE))","v":""},null,null,{"$f":"IF(CS!AP26=VL用1!AF26,2,\"\")","v":""},null,{"$f":"IF(VLOOKUP(武器名,VL用1!$AQ$1:$BQ$101,VL用1!A10-3,FALSE)=0,\"\",VLOOKUP(武器名,VL用1!$AQ$1:$BQ$101,VL用1!A10-3,FALSE))","v":""},null,{"$f":"IF(VLOOKUP(防具名,VL用1!$BS$1:$CN$60,VL用1!A10-7,FALSE)=0,\"\",VLOOKUP(防具名,VL用1!$BS$1:$CN$60,VL用1!A10-7,FALSE))","v":""},null,{"$f":"IF(VLOOKUP(アクセA,VL用1!$CP$1:$DL$151,VL用1!$A10-7,FALSE)=0,\"\",VLOOKUP(アクセA,VL用1!$CP$1:$DL$151,VL用1!$A10-7,FALSE))","v":""},null,{"$f":"IF(VLOOKUP(アクセB,VL用1!$CP$1:$DL$151,VL用1!$A10-7,FALSE)=0,\"\",VLOOKUP(アクセB,VL用1!$CP$1:$DL$151,VL用1!$A10-7,FALSE))","v":""},null,{"$f":"IF(VLOOKUP(アクセC,VL用1!$CP$1:$DL$151,VL用1!$A10-7,FALSE)=0,\"\",VLOOKUP(アクセC,VL用1!$CP$1:$DL$151,VL用1!$A10-7,FALSE))","v":""},null,null,null,null,null,null,null,null,{"$f":"SUM(F33:AA34)","v":3}]
[null,null,null,null,null,null,null,null,null,null,null,null,null,null,null,null,null,null,null,null,null,null,null,null,null,null,null,null,null,null,null,null,null,null,null,null,null,null,null,3]
[null,null,"敏捷",null,null,{"$f":"IF(VLOOKUP(種族,VL用1!$B$1:$AE$20,VL用1!A12,FALSE)=0,\"\",VLOOKUP(種族,VL用1!$B$1:$AE$20,VL用1!A12,FALSE))","v":10},null,null,{"$f":"IF(VLOOKUP(MC,VL用1!$B$22:$N$65,VL用1!A45,FALSE)=0,\"\",VLOOKUP(MC,VL用1!$B$22:$N$65,VL用1!A45,FALSE))","v":""},null,null,{"$f":"IF(CS!AP26=VL用1!AF31,8,\"\")","v":""},null,{"$f":"IF(VLOOKUP(武器名,VL用1!$AQ$1:$BQ$101,VL用1!A12-3,FALSE)=0,\"\",VLOOKUP(武器名,VL用1!$AQ$1:$BQ$101,VL用1!A12-3,FALSE))","v":""},null,{"$f":"IF(VLOOKUP(防具名,VL用1!$BS$1:$CN$60,VL用1!A12-7,FALSE)=0,\"\",VLOOKUP(防具名,VL用1!$BS$1:$CN$60,VL用1!A12-7,FALSE))","v":""},null,{"$f":"IF(VLOOKUP(アクセA,VL用1!$CP$1:$DL$151,VL用1!$A12-7,FALSE)=0,\"\",VLOOKUP(アクセA,VL用1!$CP$1:$DL$151,VL用1!$A12-7,FALSE))","v":""},null,{"$f":"IF(VLOOKUP(アクセB,VL用1!$CP$1:$DL$151,VL用1!$A12-7,FALSE)=0,\"\",VLOOKUP(アクセB,VL用1!$CP$1:$DL$151,VL用1!$A12-7,FALSE))","v":""},null,{"$f":"IF(VLOOKUP(アクセC,VL用1!$CP$1:$DL$151,VL用1!$A12-7,FALSE)=0,\"\",VLOOKUP(アクセC,VL用1!$CP$1:$DL$151,VL用1!$A12-7,FALSE))","v":""},null,null,null,null,null,null,null,null,{"$f":"SUM(F35:AA36)","v":10}]
[null,null,null,null,null,null,null,null,null,null,null,null,null,null,null,null,null,null,null,null,null,null,null,null,null,null,null,null,null,null,null,null,null,null,null,null,null,null,null,5]
[null,null,"物攻",null,null,{"$f":"IF(VLOOKUP(種族,VL用1!$B$1:$AE$20,VL用1!A14,FALSE)=0,\"\",VLOOKUP(種族,VL用1!$B$1:$AE$20,VL用1!A14,FALSE))","v":6},null,null,{"$f":"IF(VLOOKUP(MC,VL用1!$B$22:$N$65,VL用1!A47,FALSE)=0,\"\",VLOOKUP(MC,VL用1!$B$22:$N$65,VL用1!A47,FALSE))","v":""},null,null,null,null,{"$f":"IF(VLOOKUP(武器名,VL用1!$AQ$1:$BQ$101,VL用1!A14-3,FALSE)=0,\"\",VLOOKUP(武器名,VL用1!$AQ$1:$BQ$101,VL用1!A14-3,FALSE))","v":5},null,{"$f":"IF(VLOOKUP(防具名,VL用1!$BS$1:$CN$60,VL用1!A14-7,FALSE)=0,\"\",VLOOKUP(防具名,VL用1!$BS$1:$CN$60,VL用1!A14-7,FALSE))","v":""},null,{"$f":"IF(VLOOKUP(アクセA,VL用1!$CP$1:$DL$151,VL用1!$A14-7,FALSE)=0,\"\",VLOOKUP(アクセA,VL用1!$CP$1:$DL$151,VL用1!$A14-7,FALSE))","v":""},null,{"$f":"IF(VLOOKUP(アクセB,VL用1!$CP$1:$DL$151,VL用1!$A14-7,FALSE)=0,\"\",VLOOKUP(アクセB,VL用1!$CP$1:$DL$151,VL用1!$A14-7,FALSE))","v":""},null,{"$f":"IF(VLOOKUP(アクセC,VL用1!$CP$1:$DL$151,VL用1!$A14-7,FALSE)=0,\"\",VLOOKUP(アクセC,VL用1!$CP$1:$DL$151,VL用1!$A14-7,FALSE))","v":""},null,null,null,null,null,null,null,null,{"$f":"SUM(F37:AA38)","v":11}]
[null,null,null,null,null,null,null,null,null,null,null,null,null,null,null,null,null,null,null,null,null,null,null,null,null,null,null,null,null,null,null,null,null,null,null,null,null,null,null,8]
[null,null,"魔攻",null,null,{"$f":"IF(VLOOKUP(種族,VL用1!$B$1:$AE$20,VL用1!A16,FALSE)=0,\"\",VLOOKUP(種族,VL用1!$B$1:$AE$20,VL用1!A16,FALSE))","v":6},null,null,{"$f":"IF(VLOOKUP(MC,VL用1!$B$22:$N$65,VL用1!A49,FALSE)=0,\"\",VLOOKUP(MC,VL用1!$B$22:$N$65,VL用1!A49,FALSE))","v":""},null,null,null,null,{"$f":"IF(VLOOKUP(武器名,VL用1!$AQ$1:$BQ$101,VL用1!A16-3,FALSE)=0,\"\",VLOOKUP(武器名,VL用1!$AQ$1:$BQ$101,VL用1!A16-3,FALSE))","v":""},null,{"$f":"IF(VLOOKUP(防具名,VL用1!$BS$1:$CN$60,VL用1!A16-7,FALSE)=0,\"\",VLOOKUP(防具名,VL用1!$BS$1:$CN$60,VL用1!A16-7,FALSE))","v":""},null,{"$f":"IF(VLOOKUP(アクセA,VL用1!$CP$1:$DL$151,VL用1!$A16-7,FALSE)=0,\"\",VLOOKUP(アクセA,VL用1!$CP$1:$DL$151,VL用1!$A16-7,FALSE))","v":""},null,{"$f":"IF(VLOOKUP(アクセB,VL用1!$CP$1:$DL$151,VL用1!$A16-7,FALSE)=0,\"\",VLOOKUP(アクセB,VL用1!$CP$1:$DL$151,VL用1!$A16-7,FALSE))","v":""},null,{"$f":"IF(VLOOKUP(アクセC,VL用1!$CP$1:$DL$151,VL用1!$A16-7,FALSE)=0,\"\",VLOOKUP(アクセC,VL用1!$CP$1:$DL$151,VL用1!$A16-7,FALSE))","v":""},null,null,null,null,null,null,null,null,{"$f":"SUM(F39:AA40)","v":6}]
[null,null,null,null,null,null,null,null,null,null,null,null,null,null,null,null,null,null,null,null,null,null,null,null,null,null,null,null,null,null,null,null,null,null,null,null,null,null,null,10]
[null,null,"物防",null,null,{"$f":"IF(VLOOKUP(種族,VL用1!$B$1:$AE$20,VL用1!A18,FALSE)=0,\"\",VLOOKUP(種族,VL用1!$B$1:$AE$20,VL用1!A18,FALSE))","v":2},null,null,{"$f":"IF(VLOOKUP(MC,VL用1!$B$22:$N$65,VL用1!A51,FALSE)=0,\"\",VLOOKUP(MC,VL用1!$B$22:$N$65,VL用1!A51,FALSE))","v":""},null,null,{"$f":"IF(CS!AP26=VL用1!AF29,INT(CL/2),\"\")","v":""},null,{"$f":"IF(VLOOKUP(武器名,VL用1!$AQ$1:$BQ$101,VL用1!A18-3,FALSE)=0,\"\",VLOOKUP(武器名,VL用1!$AQ$1:$BQ$101,VL用1!A18-3,FALSE))","v":""},null,{"$f":"IF(VLOOKUP(防具名,VL用1!$BS$1:$CN$60,VL用1!A18-7,FALSE)=0,\"\",VLOOKUP(防具名,VL用1!$BS$1:$CN$60,VL用1!A18-7,FALSE))","v":""},null,{"$f":"IF(VLOOKUP(アクセA,VL用1!$CP$1:$DL$151,VL用1!$A18-7,FALSE)=0,\"\",VLOOKUP(アクセA,VL用1!$CP$1:$DL$151,VL用1!$A18-7,FALSE))","v":""},null,{"$f":"IF(VLOOKUP(アクセB,VL用1!$CP$1:$DL$151,VL用1!$A18-7,FALSE)=0,\"\",VLOOKUP(アクセB,VL用1!$CP$1:$DL$151,VL用1!$A18-7,FALSE))","v":""},null,{"$f":"IF(VLOOKUP(アクセC,VL用1!$CP$1:$DL$151,VL用1!$A18-7,FALSE)=0,\"\",VLOOKUP(アクセC,VL用1!$CP$1:$DL$151,VL用1!$A18-7,FALSE))","v":""},null,null,null,null,null,null,null,null,{"$f":"SUM(F41:AA42)","v":2}]
[null,null,null,null,null,null,null,null,null,null,null,null,null,null,null,null,null,null,null,null,null,null,null,null,null,null,null,null,null,null,null,null,null,null,null,null,null,null,null,12]
[null,null,"魔防",null,null,{"$f":"IF(VLOOKUP(種族,VL用1!$B$1:$AE$20,VL用1!A20,FALSE)=0,\"\",VLOOKUP(種族,VL用1!$B$1:$AE$20,VL用1!A20,FALSE))","v":""},null,null,{"$f":"IF(VLOOKUP(MC,VL用1!$B$22:$N$65,VL用1!A53,FALSE)=0,\"\",VLOOKUP(MC,VL用1!$B$22:$N$65,VL用1!A53,FALSE))","v":""},null,null,{"$f":"IF(CS!AP26=VL用1!AF29,INT(CL/2),\"\")","v":""},null,{"$f":"IF(VLOOKUP(武器名,VL用1!$AQ$1:$BQ$101,VL用1!A20-3,FALSE)=0,\"\",VLOOKUP(武器名,VL用1!$AQ$1:$BQ$101,VL用1!A20-3,FALSE))","v":""},null,{"$f":"IF(VLOOKUP(防具名,VL用1!$BS$1:$CN$60,VL用1!A20-7,FALSE)=0,\"\",VLOOKUP(防具名,VL用1!$BS$1:$CN$60,VL用1!A20-7,FALSE))","v":""},null,{"$f":"IF(VLOOKUP(アクセA,VL用1!$CP$1:$DL$151,VL用1!$A20-7,FALSE)=0,\"\",VLOOKUP(アクセA,VL用1!$CP$1:$DL$151,VL用1!$A20-7,FALSE))","v":""},null,{"$f":"IF(VLOOKUP(アクセB,VL用1!$CP$1:$DL$151,VL用1!$A20-7,FALSE)=0,\"\",VLOOKUP(アクセB,VL用1!$CP$1:$DL$151,VL用1!$A20-7,FALSE))","v":""},null,{"$f":"IF(VLOOKUP(アクセC,VL用1!$CP$1:$DL$151,VL用1!$A20-7,FALSE)=0,\"\",VLOOKUP(アクセC,VL用1!$CP$1:$DL$151,VL用1!$A20-7,FALSE))","v":""},null,null,null,null,null,null,null,null,{"$f":"SUM(F43:AA44)","v":0}]
[null,null,null,null,null,null,null,null,null,null,null,null,null,null,null,null,null,null,null,null,null,null,null,null,null,null,null,null,null,null,null,null,null,null,null,null,null,null,null,14]
[null,null,"耐久",null,null,{"$f":"IF(VLOOKUP(種族,VL用1!$B$1:$AE$20,VL用1!A22,FALSE)=0,\"\",VLOOKUP(種族,VL用1!$B$1:$AE$20,VL用1!A22,FALSE))","v":20},null,null,{"$f":"VL用1!AD23","v":""},null,null,{"$f":"IF(CS!AP26=VL用1!AF27,CL+10,\"\")","v":""},null,{"$f":"IF(VLOOKUP(武器名,VL用1!$AQ$1:$BQ$101,VL用1!A22-3,FALSE)=0,\"\",VLOOKUP(武器名,VL用1!$AQ$1:$BQ$101,VL用1!A22-3,FALSE))","v":""},null,{"$f":"IF(VLOOKUP(防具名,VL用1!$BS$1:$CN$60,VL用1!A22-7,FALSE)=0,\"\",VLOOKUP(防具名,VL用1!$BS$1:$CN$60,VL用1!A22-7,FALSE))","v":""},null,{"$f":"IF(VLOOKUP(アクセA,VL用1!$CP$1:$DL$151,VL用1!$A22-7,FALSE)=0,\"\",VLOOKUP(アクセA,VL用1!$CP$1:$DL$151,VL用1!$A22-7,FALSE))","v":""},null,{"$f":"IF(VLOOKUP(アクセB,VL用1!$CP$1:$DL$151,VL用1!$A22-7,FALSE)=0,\"\",VLOOKUP(アクセB,VL用1!$CP$1:$DL$151,VL用1!$A22-7,FALSE))","v":""},null,{"$f":"IF(VLOOKUP(アクセC,VL用1!$CP$1:$DL$151,VL用1!$A22-7,FALSE)=0,\"\",VLOOKUP(アクセC,VL用1!$CP$1:$DL$151,VL用1!$A22-7,FALSE))","v":""},null,null,null,null,null,null,null,null,{"$f":"SUM(F45:AA46)","v":20}]
[null,null,null,null,null,null,null,null,null,null,null,null,null,null,null,null,null,null,null,null,null,null,null,null,null,null,null,null,null,null,null,null,null,null,null,null,null,null,null,16]
[null,null,"精神",null,null,{"$f":"IF(VLOOKUP(種族,VL用1!$B$1:$AE$20,VL用1!A24,FALSE)=0,\"\",VLOOKUP(種族,VL用1!$B$1:$AE$20,VL用1!A24,FALSE))","v":13},null,null,{"$f":"VL用1!AD24","v":""},null,null,{"$f":"IF(CS!AP26=VL用1!AF28,CL+3,\"\")","v":""},null,{"$f":"IF(VLOOKUP(武器名,VL用1!$AQ$1:$BQ$101,VL用1!A24-3,FALSE)=0,\"\",VLOOKUP(武器名,VL用1!$AQ$1:$BQ$101,VL用1!A24-3,FALSE))","v":""},null,{"$f":"IF(VLOOKUP(防具名,VL用1!$BS$1:$CN$60,VL用1!A24-7,FALSE)=0,\"\",VLOOKUP(防具名,VL用1!$BS$1:$CN$60,VL用1!A24-7,FALSE))","v":""},null,{"$f":"IF(VLOOKUP(アクセA,VL用1!$CP$1:$DL$151,VL用1!$A24-7,FALSE)=0,\"\",VLOOKUP(アクセA,VL用1!$CP$1:$DL$151,VL用1!$A24-7,FALSE))","v":""},null,{"$f":"IF(VLOOKUP(アクセB,VL用1!$CP$1:$DL$151,VL用1!$A24-7,FALSE)=0,\"\",VLOOKUP(アクセB,VL用1!$CP$1:$DL$151,VL用1!$A24-7,FALSE))","v":""},null,{"$f":"IF(VLOOKUP(アクセC,VL用1!$CP$1:$DL$151,VL用1!$A24-7,FALSE)=0,\"\",VLOOKUP(アクセC,VL用1!$CP$1:$DL$151,VL用1!$A24-7,FALSE))","v":""},null,null,null,null,null,null,null,null,{"$f":"SUM(F47:AA48)","v":13}]
[null,null,null,null,null,null,null,null,null,null,null,null,null,null,null,null,null,null,null,null,null,null,null,null,null,null,null,null,null,null,null,null,null,null,null,null,null,null,null,18]
[null,null,"耐性","近",null,{"$f":"(IF(VLOOKUP(種族,VL用1!$B$1:$AE$20,VL用1!A26,FALSE)=0,\"\",VLOOKUP(種族,VL用1!$B$1:$AE$20,VL用1!A26,FALSE)))","v":""},null,null,{"$f":"VL用1!AD25","v":""},null,null,null,null,{"$f":"IF(VLOOKUP(武器名,VL用1!$AQ$1:$BQ$101,VL用1!A26-3,FALSE)=0,\"\",VLOOKUP(武器名,VL用1!$AQ$1:$BQ$101,VL用1!A26-3,FALSE))","v":""},null,{"$f":"IF(VLOOKUP(防具名,VL用1!$BS$1:$CN$60,VL用1!A26-7,FALSE)=0,\"\",VLOOKUP(防具名,VL用1!$BS$1:$CN$60,VL用1!A26-7,FALSE))","v":-2},null,{"$f":"IF(VLOOKUP(アクセA,VL用1!$CP$1:$DL$151,VL用1!$A26-7,FALSE)=0,\"\",VLOOKUP(アクセA,VL用1!$CP$1:$DL$151,VL用1!$A26-7,FALSE))","v":""},null,{"$f":"IF(VLOOKUP(アクセB,VL用1!$CP$1:$DL$151,VL用1!$A26-7,FALSE)=0,\"\",VLOOKUP(アクセB,VL用1!$CP$1:$DL$151,VL用1!$A26-7,FALSE))","v":""},null,{"$f":"IF(VLOOKUP(アクセC,VL用1!$CP$1:$DL$151,VL用1!$A26-7,FALSE)=0,\"\",VLOOKUP(アクセC,VL用1!$CP$1:$DL$151,VL用1!$A26-7,FALSE))","v":""},null,null,null,null,null,null,null,null,{"$f":"IF(SUM(F49:AA49)=0,\"0\",SUM(F49:AA49))","v":-2},null,null,"D10"]
[null,null,null,"遠",null,{"$f":"IF(VLOOKUP(種族,VL用1!$B$1:$AE$20,VL用1!A27,FALSE)=0,\"\",VLOOKUP(種族,VL用1!$B$1:$AE$20,VL用1!A27,FALSE))","v":""},null,null,{"$f":"VL用1!AD26","v":""},null,null,null,null,{"$f":"IF(VLOOKUP(武器名,VL用1!$AQ$1:$BQ$101,VL用1!A27-3,FALSE)=0,\"\",VLOOKUP(武器名,VL用1!$AQ$1:$BQ$101,VL用1!A27-3,FALSE))","v":""},null,{"$f":"IF(VLOOKUP(防具名,VL用1!$BS$1:$CN$60,VL用1!A27-7,FALSE)=0,\"\",VLOOKUP(防具名,VL用1!$BS$1:$CN$60,VL用1!A27-7,FALSE))","v":-2},null,{"$f":"IF(VLOOKUP(アクセA,VL用1!$CP$1:$DL$151,VL用1!$A27-7,FALSE)=0,\"\",VLOOKUP(アクセA,VL用1!$CP$1:$DL$151,VL用1!$A27-7,FALSE))","v":""},null,{"$f":"IF(VLOOKUP(アクセB,VL用1!$CP$1:$DL$151,VL用1!$A27-7,FALSE)=0,\"\",VLOOKUP(アクセB,VL用1!$CP$1:$DL$151,VL用1!$A27-7,FALSE))","v":""},null,{"$f":"IF(VLOOKUP(アクセC,VL用1!$CP$1:$DL$151,VL用1!$A27-7,FALSE)=0,\"\",VLOOKUP(アクセC,VL用1!$CP$1:$DL$151,VL用1!$A27-7,FALSE))","v":""},null,null,null,null,null,null,null,null,-2,null,null,null,null,null,null,null,null,20]
[null,null,null,"炎",null,{"$f":"IF(VLOOKUP(種族,VL用1!$B$1:$AE$20,VL用1!A28,FALSE)=0,\"\",VLOOKUP(種族,VL用1!$B$1:$AE$20,VL用1!A28,FALSE))","v":""},null,null,{"$f":"VL用1!AD27","v":""},null,null,null,null,{"$f":"IF(VLOOKUP(武器名,VL用1!$AQ$1:$BQ$101,VL用1!A28-3,FALSE)=0,\"\",VLOOKUP(武器名,VL用1!$AQ$1:$BQ$101,VL用1!A28-3,FALSE))","v":""},null,{"$f":"IF(VLOOKUP(防具名,VL用1!$BS$1:$CN$60,VL用1!A28-7,FALSE)=0,\"\",VLOOKUP(防具名,VL用1!$BS$1:$CN$60,VL用1!A28-7,FALSE))","v":-2},null,{"$f":"IF(VLOOKUP(アクセA,VL用1!$CP$1:$DL$151,VL用1!$A28-7,FALSE)=0,\"\",VLOOKUP(アクセA,VL用1!$CP$1:$DL$151,VL用1!$A28-7,FALSE))","v":""},null,{"$f":"IF(VLOOKUP(アクセB,VL用1!$CP$1:$DL$151,VL用1!$A28-7,FALSE)=0,\"\",VLOOKUP(アクセB,VL用1!$CP$1:$DL$151,VL用1!$A28-7,FALSE))","v":""},null,{"$f":"IF(VLOOKUP(アクセC,VL用1!$CP$1:$DL$151,VL用1!$A28-7,FALSE)=0,\"\",VLOOKUP(アクセC,VL用1!$CP$1:$DL$151,VL用1!$A28-7,FALSE))","v":""},null,null,null,null,null,null,null,null,-2]
[null,null,null,"氷",null,{"$f":"IF(VLOOKUP(種族,VL用1!$B$1:$AE$20,VL用1!A29,FALSE)=0,\"\",VLOOKUP(種族,VL用1!$B$1:$AE$20,VL用1!A29,FALSE))","v":""},null,null,{"$f":"VL用1!AD28","v":""},null,null,null,null,{"$f":"IF(VLOOKUP(武器名,VL用1!$AQ$1:$BQ$101,VL用1!A29-3,FALSE)=0,\"\",VLOOKUP(武器名,VL用1!$AQ$1:$BQ$101,VL用1!A29-3,FALSE))","v":""},null,{"$f":"IF(VLOOKUP(防具名,VL用1!$BS$1:$CN$60,VL用1!A29-7,FALSE)=0,\"\",VLOOKUP(防具名,VL用1!$BS$1:$CN$60,VL用1!A29-7,FALSE))","v":-2},null,{"$f":"IF(VLOOKUP(アクセA,VL用1!$CP$1:$DL$151,VL用1!$A29-7,FALSE)=0,\"\",VLOOKUP(アクセA,VL用1!$CP$1:$DL$151,VL用1!$A29-7,FALSE))","v":""},null,{"$f":"IF(VLOOKUP(アクセB,VL用1!$CP$1:$DL$151,VL用1!$A29-7,FALSE)=0,\"\",VLOOKUP(アクセB,VL用1!$CP$1:$DL$151,VL用1!$A29-7,FALSE))","v":""},null,{"$f":"IF(VLOOKUP(アクセC,VL用1!$CP$1:$DL$151,VL用1!$A29-7,FALSE)=0,\"\",VLOOKUP(アクセC,VL用1!$CP$1:$DL$151,VL用1!$A29-7,FALSE))","v":""},null,null,null,null,null,null,null,null,-2,null,null,null,null,null,null,null,null,23]
[null,null,null,"水",null,{"$f":"IF(VLOOKUP(種族,VL用1!$B$1:$AE$20,VL用1!A30,FALSE)=0,\"\",VLOOKUP(種族,VL用1!$B$1:$AE$20,VL用1!A30,FALSE))","v":-1},null,null,{"$f":"VL用1!AD29","v":""},null,null,null,null,{"$f":"IF(VLOOKUP(武器名,VL用1!$AQ$1:$BQ$101,VL用1!A30-3,FALSE)=0,\"\",VLOOKUP(武器名,VL用1!$AQ$1:$BQ$101,VL用1!A30-3,FALSE))","v":""},null,{"$f":"IF(VLOOKUP(防具名,VL用1!$BS$1:$CN$60,VL用1!A30-7,FALSE)=0,\"\",VLOOKUP(防具名,VL用1!$BS$1:$CN$60,VL用1!A30-7,FALSE))","v":-2},null,{"$f":"IF(VLOOKUP(アクセA,VL用1!$CP$1:$DL$151,VL用1!$A30-7,FALSE)=0,\"\",VLOOKUP(アクセA,VL用1!$CP$1:$DL$151,VL用1!$A30-7,FALSE))","v":""},null,{"$f":"IF(VLOOKUP(アクセB,VL用1!$CP$1:$DL$151,VL用1!$A30-7,FALSE)=0,\"\",VLOOKUP(アクセB,VL用1!$CP$1:$DL$151,VL用1!$A30-7,FALSE))","v":""},null,{"$f":"IF(VLOOKUP(アクセC,VL用1!$CP$1:$DL$151,VL用1!$A30-7,FALSE)=0,\"\",VLOOKUP(アクセC,VL用1!$CP$1:$DL$151,VL用1!$A30-7,FALSE))","v":""},null,null,null,null,null,null,null,null,-3]
[null,null,null,"雷",null,{"$f":"IF(VLOOKUP(種族,VL用1!$B$1:$AE$20,VL用1!A31,FALSE)=0,\"\",VLOOKUP(種族,VL用1!$B$1:$AE$20,VL用1!A31,FALSE))","v":""},null,null,{"$f":"VL用1!AD30","v":""},null,null,null,null,{"$f":"IF(VLOOKUP(武器名,VL用1!$AQ$1:$BQ$101,VL用1!A31-3,FALSE)=0,\"\",VLOOKUP(武器名,VL用1!$AQ$1:$BQ$101,VL用1!A31-3,FALSE))","v":""},null,{"$f":"IF(VLOOKUP(防具名,VL用1!$BS$1:$CN$60,VL用1!A31-7,FALSE)=0,\"\",VLOOKUP(防具名,VL用1!$BS$1:$CN$60,VL用1!A31-7,FALSE))","v":-2},null,{"$f":"IF(VLOOKUP(アクセA,VL用1!$CP$1:$DL$151,VL用1!$A31-7,FALSE)=0,\"\",VLOOKUP(アクセA,VL用1!$CP$1:$DL$151,VL用1!$A31-7,FALSE))","v":""},null,{"$f":"IF(VLOOKUP(アクセB,VL用1!$CP$1:$DL$151,VL用1!$A31-7,FALSE)=0,\"\",VLOOKUP(アクセB,VL用1!$CP$1:$DL$151,VL用1!$A31-7,FALSE))","v":""},null,{"$f":"IF(VLOOKUP(アクセC,VL用1!$CP$1:$DL$151,VL用1!$A31-7,FALSE)=0,\"\",VLOOKUP(アクセC,VL用1!$CP$1:$DL$151,VL用1!$A31-7,FALSE))","v":""},null,null,null,null,null,null,null,null,-2,null,null,null,null,null,null,null,null,26]
[null,null,null,"風",null,{"$f":"IF(VLOOKUP(種族,VL用1!$B$1:$AE$20,VL用1!A32,FALSE)=0,\"\",VLOOKUP(種族,VL用1!$B$1:$AE$20,VL用1!A32,FALSE))","v":1},null,null,{"$f":"VL用1!AD31","v":""},null,null,null,null,{"$f":"IF(VLOOKUP(武器名,VL用1!$AQ$1:$BQ$101,VL用1!A32-3,FALSE)=0,\"\",VLOOKUP(武器名,VL用1!$AQ$1:$BQ$101,VL用1!A32-3,FALSE))","v":""},null,{"$f":"IF(VLOOKUP(防具名,VL用1!$BS$1:$CN$60,VL用1!A32-7,FALSE)=0,\"\",VLOOKUP(防具名,VL用1!$BS$1:$CN$60,VL用1!A32-7,FALSE))","v":-2},null,{"$f":"IF(VLOOKUP(アクセA,VL用1!$CP$1:$DL$151,VL用1!$A32-7,FALSE)=0,\"\",VLOOKUP(アクセA,VL用1!$CP$1:$DL$151,VL用1!$A32-7,FALSE))","v":""},null,{"$f":"IF(VLOOKUP(アクセB,VL用1!$CP$1:$DL$151,VL用1!$A32-7,FALSE)=0,\"\",VLOOKUP(アクセB,VL用1!$CP$1:$DL$151,VL用1!$A32-7,FALSE))","v":""},null,{"$f":"IF(VLOOKUP(アクセC,VL用1!$CP$1:$DL$151,VL用1!$A32-7,FALSE)=0,\"\",VLOOKUP(アクセC,VL用1!$CP$1:$DL$151,VL用1!$A32-7,FALSE))","v":""},null,null,null,null,null,null,null,null,-1]
[null,null,null,"光",null,{"$f":"IF(VLOOKUP(種族,VL用1!$B$1:$AE$20,VL用1!A33,FALSE)=0,\"\",VLOOKUP(種族,VL用1!$B$1:$AE$20,VL用1!A33,FALSE))","v":""},null,null,{"$f":"VL用1!AD32","v":""},null,null,null,null,{"$f":"IF(VLOOKUP(武器名,VL用1!$AQ$1:$BQ$101,VL用1!A33-3,FALSE)=0,\"\",VLOOKUP(武器名,VL用1!$AQ$1:$BQ$101,VL用1!A33-3,FALSE))","v":""},null,{"$f":"IF(VLOOKUP(防具名,VL用1!$BS$1:$CN$60,VL用1!A33-7,FALSE)=0,\"\",VLOOKUP(防具名,VL用1!$BS$1:$CN$60,VL用1!A33-7,FALSE))","v":-2},null,{"$f":"IF(VLOOKUP(アクセA,VL用1!$CP$1:$DL$151,VL用1!$A33-7,FALSE)=0,\"\",VLOOKUP(アクセA,VL用1!$CP$1:$DL$151,VL用1!$A33-7,FALSE))","v":""},null,{"$f":"IF(VLOOKUP(アクセB,VL用1!$CP$1:$DL$151,VL用1!$A33-7,FALSE)=0,\"\",VLOOKUP(アクセB,VL用1!$CP$1:$DL$151,VL用1!$A33-7,FALSE))","v":""},null,{"$f":"IF(VLOOKUP(アクセC,VL用1!$CP$1:$DL$151,VL用1!$A33-7,FALSE)=0,\"\",VLOOKUP(アクセC,VL用1!$CP$1:$DL$151,VL用1!$A33-7,FALSE))","v":""},null,null,null,null,null,null,null,null,-2,null,null,null,null,null,null,null,null,30]

{"sheet":"使用方法","index":1,"n_rows":22,"n_cols":2,"rows_kept":22,"cut":false,"hidden":false,"merged":[]}
[null,"■Magician's Age キャラクター作成検証用シート ver1.0"]
[]
[null,"●種族、タイプ、装備のドロップダウン選択機能"]
[null,"　各種族、各タイプ、各装備はドロップダウンから選択可能。選択するとパラメータや効果が自動反映する。"]
[]
[null,"●自動計算される値 (灰色背景のセルは自動計算される。数式が入っているため中身を書き換えると動作しないことあり。)"]
[null,"・種族修正・タイプ修正(特典含む)・武器 防具 アクセサリの能力値修正 (※2)"]
[null,"・装備の合計価格"]
[null,"・自動取得スキル、スタイルスキルの内容と効果"]
[null,"※1 C値、F値、移動コスト、BP上限値への修正は反映しない。手計算する必要あり。"]
[null,"※2 基本能力値は種族の基本能力値のみ反映。割り振りや武器などによる修正は手計算の必要あり"]
[null,"※3 常時スキルの修正値は反映しないため、その他欄に記載することで、Totalの欄に反映される"]
[]
[null,"●汎用スキルのコピー機能"]
[null,"・汎用スキルは「コピペ用」シートに全てデータあり。そのまま貼り付けることで使用可能。"]
[]
[null,"●リセット機能"]
[null,"・Ctrl+Shift+R で入力可能な箇所についてはすべて空欄になり、各値は初期値になる。"]
[]
[]
[null,"※游ゴシックで数値が表示されたり、フォントがずれてしまう方へ (Windowsの場合)"]
[null,"「ページレイアウト」タブの「フォント」を「Office」から「Office2007-2010」にすると解決する可能性があります。"]

{"sheet":"コピペ用","index":2,"n_rows":48,"n_cols":167,"rows_kept":48,"cut":false,"hidden":false,"merged":[[19,141,20,147],[19,148,20,150],[19,151,20,153],[19,154,20,155],[19,156,20,157],[19,158,20,159],[19,160,20,162],[19,163,20,165],[19,166,20,174],[17,141,18,147],[17,148,18,150],[17,151,18,153],[17,154,18,155],[17,156,18,157],[17,158,18,159],[17,160,18,162],[17,163,18,165],[17,166,18,174],[15,141,16,147],[15,148,16,150],[15,151,16,153],[15,154,16,155],[15,156,16,157],[15,158,16,159],[15,160,16,162],[15,163,16,165],[15,166,16,174],[13,141,14,147],[13,148,14,150],[13,151,14,153],[13,154,14,155],[13,156,14,157],[13,158,14,159],[13,160,14,162],[13,163,14,165],[13,166,14,174],[11,141,12,147],[11,148,12,150],[11,151,12,153],[11,154,12,155],[11,156,12,157],[11,158,12,159],[11,160,12,162],[11,163,12,165],[11,166,12,174],[9,141,10,147],[9,148,10,150],[9,151,10,153],[9,154,10,155],[9,156,10,157],[9,158,10,159],[9,160,10,162],[9,163,10,165],[9,166,10,174],[7,141,8,147],[7,148,8,150],[7,151,8,153],[7,154,8,155],[7,156,8,157],[7,158,8,159],[7,160,8,162],[7,163,8,165],[7,166,8,174],[5,141,6,147],[5,148,6,150],[5,151,6,153],[5,154,6,155],[5,156,6,157],[5,158,6,159],[5,160,6,162],[5,163,6,165],[5,166,6,174],[3,141,4,147],[3,148,4,150],[3,151,4,153],[3,154,4,155],[3,156,4,157],[3,158,4,159],[3,160,4,162],[3,163,4,165],[3,166,4,174],[1,141,2,147],[1,148,2,150],[1,151,2,153],[1,154,2,155],[1,156,2,157],[1,158,2,159],[1,160,2,162],[1,163,2,165],[1,166,2,174],[0,141,0,147],[0,148,0,150],[0,151,0,153],[0,154,0,155],[0,156,0,157],[0,158,0,159],[0,160,0,162],[0,163,0,165],[0,166,0,174],[27,55,28,57],[27,58,28,60],[27,61,28,69],[27,36,28,42],[27,43,28,45],[27,46,28,48],[27,49,28,50],[27,51,28,52],[27,53,28,54],[25,36,26,42],[25,43,26,45],[25,46,26,48],[25,49,26,50],[25,51,26,52],[25,53,26,54],[25,55,26,57],[25,58,26,60],[25,61,26,69],[31,1,32,7],[31,8,32,10],[31,11,32,13],[31,14,32,15],[31,16,32,17],[31,18,32,19],[31,20,32,22],[31,23,32,25],[31,26,32,34],[27,20,28,22],[27,23,28,25],[27,26,28,34],[29,1,30,7],[29,8,30,10],[29,11,30,13],[29,14,30,15],[29,16,30,17],[29,18,30,19],[29,20,30,22],[27,1,28,7],[27,8,28,10],[27,11,28,13],[27,14,28,15],[27,16,28,17],[27,18,28,19],[29,23,30,25],[29,26,30,34],[25,1,26,7],[25,8,26,10],[25,11,26,13],[25,14,26,15],[25,16,26,17],[25,18,26,19],[25,20,26,22],[25,23,26,25],[25,26,26,34],[23,1,24,7],[23,8,24,10],[23,11,24,13],[23,14,24,15],[23,16,24,17],[23,18,24,19],[23,20,24,22],[23,23,24,25],[23,26,24,34],[19,20,20,22],[19,23,20,25],[19,26,20,34],[21,1,22,7],[21,8,22,10],[21,11,22,13],[21,14,22,15],[21,16,22,17],[21,18,22,19],[21,20,22,22],[19,1,20,7],[19,8,20,10],[19,11,20,13],[19,14,20,15],[19,16,20,17],[19,18,20,19],[21,23,22,25],[21,26,22,34],[17,1,18,7],[17,8,18,10],[17,11,18,13],[17,14,18,15],[17,16,18,17],[17,18,18,19],[17,20,18,22],[17,23,18,25],[17,26,18,34],[15,1,16,7],[15,8,16,10],[15,11,16,13],[15,14,16,15],[15,16,16,17],[15,18,16,19],[15,20,16,22],[15,23,16,25],[15,26,16,34],[11,20,12,22],[11,23,12,25],[11,26,12,34],[13,1,14,7],[13,8,14,10],[13,11,14,13],[13,14,14,15],[13,16,14,17],[13,18,14,19],[13,20,14,22],[11,1,12,7],[11,8,12,10],[11,11,12,13],[11,14,12,15],[11,16,12,17],[11,18,12,19],[13,23,14,25],[13,26,14,34],[9,23,10,25],[9,26,10,34],[7,20,8,22],[7,23,8,25],[7,26,8,34],[9,1,10,7],[9,8,10,10],[9,11,10,13],[9,14,10,15],[9,16,10,17],[9,18,10,19],[9,20,10,22],[7,1,8,7],[7,8,8,10],[7,11,8,13],[7,14,8,15],[7,16,8,17],[7,18,8,19],[5,1,6,7],[5,8,6,10],[5,11,6,13],[5,14,6,15],[5,16,6,17],[5,18,6,19],[5,20,6,22],[5,23,6,25],[5,26,6,34],[3,1,4,7],[3,8,4,10],[3,11,4,13],[3,14,4,15],[3,16,4,17],[3,18,4,19],[3,20,4,22],[3,23,4,25],[3,26,4,34],[0,20,0,22],[0,23,0,25],[0,26,0,34],[1,1,2,7],[1,8,2,10],[1,11,2,13],[1,14,2,15],[1,16,2,17],[1,18,2,19],[1,20,2,22],[0,1,0,7],[0,8,0,10],[0,11,0,13],[0,14,0,15],[0,16,0,17],[0,18,0,19],[1,23,2,25],[1,26,2,34],[29,36,30,42],[29,43,30,45],[29,46,30,48],[29,49,30,50],[29,51,30,52],[29,53,30,54],[29,55,30,57],[29,58,30,60],[29,61,30,69],[31,36,32,42],[31,43,32,45],[31,46,32,48],[31,49,32,50],[31,51,32,52],[31,53,32,54],[31,55,32,57],[31,58,32,60],[31,61,32,69],[35,1,36,7],[35,8,36,10],[35,11,36,13],[35,14,36,15],[35,16,36,17],[35,18,36,19],[35,20,36,22],[35,23,36,25],[35,26,36,34],[39,1,40,7],[39,8,40,10],[39,11,40,13],[39,14,40,15],[39,16,40,17],[39,18,40,19],[39,20,40,22],[39,23,40,25],[39,26,40,34],[37,1,38,7],[37,8,38,10],[37,11,38,13],[37,14,38,15],[37,16,38,17],[37,18,38,19],[37,20,38,22],[37,23,38,25],[37,26,38,34],[33,1,34,7],[33,8,34,10],[33,11,34,13],[33,14,34,15],[33,16,34,17],[33,18,34,19],[33,20,34,22],[33,23,34,25],[33,26,34,34],[0,36,0,42],[0,43,0,45],[0,46,0,48],[0,49,0,50],[0,51,0,52],[0,53,0,54],[0,55,0,57],[0,58,0,60],[0,61,0,69],[1,36,2,42],[1,43,2,45],[1,46,2,48],[1,49,2,50],[1,51,2,52],[1,53,2,54],[1,55,2,57],[1,58,2,60],[1,61,2,69],[3,36,4,42],[3,43,4,45],[3,46,4,48],[3,49,4,50],[3,51,4,52],[3,53,4,54],[3,55,4,57],[3,58,4,60],[3,61,4,69],[5,36,6,42],[5,43,6,45],[5,46,6,48],[5,49,6,50],[5,51,6,52],[5,53,6,54],[5,55,6,57],[5,58,6,60],[5,61,6,69],[7,36,8,42],[7,43,8,45],[7,46,8,48],[7,49,8,50],[7,51,8,52],[7,53,8,54],[7,55,8,57],[7,58,8,60],[7,61,8,69],[41,1,42,7],[41,8,42,10],[41,11,42,13],[41,14,42,15],[41,16,42,17],[41,18,42,19],[41,20,42,22],[41,23,42,25],[41,26,42,34],[43,1,44,7],[43,8,44,10],[43,11,44,13],[43,14,44,15],[43,16,44,17],[43,18,44,19],[43,20,44,22],[43,23,44,25],[43,26,44,34],[45,1,46,7],[45,8,46,10],[45,11,46,13],[45,14,46,15],[45,16,46,17],[45,18,46,19],[45,20,46,22],[45,23,46,25],[45,26,46,34],[47,1,48,7],[47,8,48,10],[47,11,48,13],[47,14,48,15],[47,16,48,17],[47,18,48,19],[47,20,48,22],[47,23,48,25],[47,26,48,34],[9,36,10,42],[9,43,10,45],[9,46,10,48],[9,49,10,50],[9,51,10,52],[9,53,10,54],[9,55,10,57],[9,58,10,60],[9,61,10,69],[11,36,12,42],[11,43,12,45],[11,46,12,48],[11,49,12,50],[11,51,12,52],[11,53,12,54],[11,55,12,57],[11,58,12,60],[11,61,12,69],[13,36,14,42],[13,43,14,45],[13,46,14,48],[13,49,14,50],[13,51,14,52],[13,53,14,54],[13,55,14,57],[13,58,14,60],[13,61,14,69],[15,36,16,42],[15,43,16,45],[15,46,16,48],[15,49,16,50],[15,51,16,52],[15,53,16,54],[15,55,16,57],[15,58,16,60],[15,61,16,69],[21,36,22,42],[21,43,22,45],[21,46,22,48],[21,49,22,50],[21,51,22,52],[21,53,22,54],[21,55,22,57],[21,58,22,60],[21,61,22,69],[23,36,24,42],[23,43,24,45],[23,46,24,48],[23,49,24,50],[23,51,24,52],[23,53,24,54],[23,55,24,57],[23,58,24,60],[23,61,24,69],[17,36,18,42],[17,43,18,45],[17,46,18,48],[17,49,18,50],[17,51,18,52],[17,53,18,54],[17,55,18,57],[17,58,18,60],[17,61,18,69],[19,36,20,42],[19,43,20,45],[19,46,20,48],[19,49,20,50],[19,51,20,52],[19,53,20,54],[19,55,20,57],[19,58,20,60],[19,61,20,69],[0,71,0,77],[0,78,0,80],[0,81,0,83],[0,84,0,85],[0,86,0,87],[0,88,0,89],[0,90,0,92],[0,93,0,95],[0,96,0,104],[1,71,2,77],[1,78,2,80],[1,81,2,83],[1,84,2,85],[1,86,2,87],[1,88,2,89],[1,90,2,92],[1,93,2,95],[1,96,2,104],[3,71,4,77],[3,78,4,80],[3,81,4,83],[3,84,4,85],[3,86,4,87],[3,88,4,89],[3,90,4,92],[3,93,4,95],[3,96,4,104],[5,71,6,77],[5,78,6,80],[5,81,6,83],[5,84,6,85],[5,86,6,87],[5,88,6,89],[5,90,6,92],[5,93,6,95],[5,96,6,104],[7,71,8,77],[7,78,8,80],[7,81,8,83],[7,84,8,85],[7,86,8,87],[7,88,8,89],[7,90,8,92],[7,93,8,95],[7,96,8,104],[9,71,10,77],[9,78,10,80],[9,81,10,83],[9,84,10,85],[9,86,10,87],[9,88,10,89],[9,90,10,92],[9,93,10,95],[9,96,10,104],[11,71,12,77],[11,78,12,80],[11,81,12,83],[11,84,12,85],[11,86,12,87],[11,88,12,89],[11,90,12,92],[11,93,12,95],[11,96,12,104],[13,71,14,77],[13,78,14,80],[13,81,14,83],[13,84,14,85],[13,86,14,87],[13,88,14,89],[13,90,14,92],[13,93,14,95],[13,96,14,104],[15,71,16,77],[15,78,16,80],[15,81,16,83],[15,84,16,85],[15,86,16,87],[15,88,16,89],[15,90,16,92],[15,93,16,95],[15,96,16,104],[17,71,18,77],[17,78,18,80],[17,81,18,83],[17,84,18,85],[17,86,18,87],[17,88,18,89],[17,90,18,92],[17,93,18,95],[17,96,18,104],[19,71,20,77],[19,78,20,80],[19,81,20,83],[19,84,20,85],[19,86,20,87],[19,88,20,89],[19,90,20,92],[19,93,20,95],[19,96,20,104],[21,71,22,77],[21,78,22,80],[21,81,22,83],[21,84,22,85],[21,86,22,87],[21,88,22,89],[21,90,22,92],[21,93,22,95],[21,96,22,104],[23,71,24,77],[23,78,24,80],[23,81,24,83],[23,84,24,85],[23,86,24,87],[23,88,24,89],[23,90,24,92],[23,93,24,95],[23,96,24,104],[25,71,26,77],[25,78,26,80],[25,81,26,83],[25,84,26,85],[25,86,26,87],[25,88,26,89],[25,90,26,92],[25,93,26,95],[25,96,26,104],[27,71,28,77],[27,78,28,80],[27,81,28,83],[27,84,28,85],[27,86,28,87],[27,88,28,89],[27,90,28,92],[27,93,28,95],[27,96,28,104],[29,71,30,77],[29,78,30,80],[29,81,30,83],[29,84,30,85],[29,86,30,87],[29,88,30,89],[29,90,30,92],[29,93,30,95],[29,96,30,104],[31,71,32,77],[31,78,32,80],[31,81,32,83],[31,84,32,85],[31,86,32,87],[31,88,32,89],[31,90,32,92],[31,93,32,95],[31,96,32,104],[0,106,0,112],[0,113,0,115],[0,116,0,118],[0,119,0,120],[0,121,0,122],[0,123,0,124],[0,125,0,127],[0,128,0,130],[0,131,0,139],[1,106,2,112],[1,113,2,115],[1,116,2,118],[1,119,2,120],[1,121,2,122],[1,123,2,124],[1,125,2,127],[1,128,2,130],[1,131,2,139],[3,106,4,112],[3,113,4,115],[3,116,4,118],[3,119,4,120],[3,121,4,122],[3,123,4,124],[3,125,4,127],[3,128,4,130],[3,131,4,139],[5,106,6,112],[5,113,6,115],[5,116,6,118],[5,119,6,120],[5,121,6,122],[5,123,6,124],[5,125,6,127],[5,128,6,130],[5,131,6,139],[7,106,8,112],[7,113,8,115],[7,116,8,118],[7,119,8,120],[7,121,8,122],[7,123,8,124],[7,125,8,127],[7,128,8,130],[7,131,8,139],[9,106,10,112],[9,113,10,115],[9,116,10,118],[9,119,10,120],[9,121,10,122],[9,123,10,124],[9,125,10,127],[9,128,10,130],[9,131,10,139],[11,106,12,112],[11,113,12,115],[11,116,12,118],[11,119,12,120],[11,121,12,122],[11,123,12,124],[11,125,12,127],[11,128,12,130],[11,131,12,139],[13,106,14,112],[13,113,14,115],[13,116,14,118],[13,119,14,120],[13,121,14,122],[13,123,14,124],[13,125,14,127],[13,128,14,130],[13,131,14,139],[15,106,16,112],[15,113,16,115],[15,116,16,118],[15,119,16,120],[15,121,16,122],[15,123,16,124],[15,125,16,127],[15,128,16,130],[15,131,16,139],[17,106,18,112],[17,113,18,115],[17,116,18,118],[17,119,18,120],[17,121,18,122],[17,123,18,124],[17,125,18,127],[17,128,18,130],[17,131,18,139],[19,106,20,112],[19,113,20,115],[19,116,20,118],[19,119,20,120],[19,121,20,122],[19,123,20,124],[19,125,20,127],[19,128,20,130],[19,131,20,139],[21,106,22,112],[21,113,22,115],[21,116,22,118],[21,119,22,120],[21,121,22,122],[21,123,22,124],[21,125,22,127],[21,128,22,130],[21,131,22,139],[23,106,24,112],[23,113,24,115],[23,116,24,118],[23,119,24,120],[23,121,24,122],[23,123,24,124],[23,125,24,127],[23,128,24,130],[23,131,24,139],[25,106,26,112],[25,113,26,115],[25,116,26,118],[25,119,26,120],[25,121,26,122],[25,123,26,124],[25,125,26,127],[25,128,26,130],[25,131,26,139],[27,106,28,112],[27,113,28,115],[27,116,28,118],[27,119,28,120],[27,121,28,122],[27,123,28,124],[27,125,28,127],[27,128,28,130],[27,131,28,139]]}
[null,"スキル名",null,null,null,null,null,null,"種別",null,null,"ﾀｲﾐﾝｸﾞ",null,null,"射程",null,"対象",null,"判定",null,"代償",null,null,"コスト",null,null,"効果",null,null,null,null,null,null,null,null,null,"スキル名",null,null,null,null,null,null,"種別",null,null,"ﾀｲﾐﾝｸﾞ",null,null,"射程",null,"対象",null,"判定",null,"代償",null,null,"コスト",null,null,"効果",null,null,null,null,null,null,null,null,null,"スキル名",null,null,null,null,null,null,"種別",null,null,"ﾀｲﾐﾝｸﾞ",null,null,"射程",null,"対象",null,"判定",null,"代償",null,null,"コスト",null,null,"効果",null,null,null,null,null,null,null,null,null,"スキル名",null,null,null,null,null,null,"種別",null,null,"ﾀｲﾐﾝｸﾞ",null,null,"射程",null,"対象",null,"判定",null,"代償",null,null,"コスト",null,null,"効果",null,null,null,null,null,null,null,null,null,"スキル名",null,null,null,null,null,null,"種別",null,null,"ﾀｲﾐﾝｸﾞ",null,null,"射程",null,"対象",null,"判定",null,"代償",null,null,"コスト",null,null,"効果"]
[null,"近接強化",null,null,null,null,null,null,"基",null,null,"常時",null,null,"―",null,"自身",null,"―",null,"―",null,null,"―",null,null,{"$f":"\"【近接】+1 【耐久】【精神】-\"&INT(CL/2)","v":"【近接】+1 【耐久】【精神】-0"},null,null,null,null,null,null,null,null,null,"攻撃集中",null,null,null,null,null,null,"支",null,null,"サブ",null,null,"―",null,"自身",null,"自動",null,"3MP",null,null,2,null,null,"直後のメインアクションで行う最初の攻撃の命中達成値に+2",null,null,null,null,null,null,null,null,null,"ウェポンアタック",null,null,null,null,null,null,"近",null,null,"メイン",null,null,"超至近",null,"単体",null,"近接",null,"5MP",null,null,8,null,null,{"$f":"\"対象に近接攻撃を行う。\n与えるダメージに+\"&SL*5","v":"対象に近接攻撃を行う。\n与えるダメージに+0"},null,null,null,null,null,null,null,null,null,"ギビング○○",null,null,null,null,null,null,"支",null,null,"オート",null,null,"自陣",null,"単体",null,"自動",null,"7MP",null,null,1,null,null,{"$f":"\"対象の攻撃宣言時に使用。その攻撃を〈\"&IF(DC2=\"ギビングフレイム\",\"炎\",IF(DC2=\"ギビングフリーズ\",\"氷\",IF(DC2=\"ギビングアクア\",\"水\",IF(DC2=\"ギビングスパーク\",\"雷\",IF(DC2=\"ギビングエアロ\",\"風\",IF(DC2=\"ギビングシャイン\",\"光\",\"\"))))))&\"〉属性に変更する。\"","v":"対象の攻撃宣言時に使用。その攻撃を〈〉属性に変更する。"},null,null,null,null,null,null,null,null,null,"不沈の盾",null,null,null,null,null,null,"―",null,null,"常時",null,null,"―",null,"自身",null,"―",null,"―",null,null,"―",null,null,"【精神】-50 【耐久】+50"]
[]
[null,"射撃強化",null,null,null,null,null,null,"基",null,null,"常時",null,null,"―",null,"自身",null,"―",null,"―",null,null,"―",null,null,{"$f":"\"【射撃】+1 【耐久】【精神】-\"&INT(CL/2)","v":"【射撃】+1 【耐久】【精神】-0"},null,null,null,null,null,null,null,null,null,"パワーチャージ",null,null,null,null,null,null,"支",null,null,"サブ",null,null,"―",null,"自身",null,"自動",null,"4MP",null,null,3,null,null,{"$f":"\"直後のメインアクショに行う最初の攻撃で与えるダメージに+\"&CL*2+10","v":"直後のメインアクショに行う最初の攻撃で与えるダメージに+10"},null,null,null,null,null,null,null,null,null,"バレットシュート",null,null,null,null,null,null,"射",null,null,"メイン",null,null,"遠隔",null,"単体",null,"射撃",null,"5MP",null,null,10,null,null,{"$f":"\"対象に射撃攻撃を行う。\n与えるダメージに+\"&SL*5","v":"対象に射撃攻撃を行う。\n与えるダメージに+0"},null,null,null,null,null,null,null,null,null,"セカンドチャンス",null,null,null,null,null,null,"基、支",null,null,"オート",null,null,"―",null,"自身",null,"自動",null,"3MP",null,null,3,null,null,"判定直後使用。判定振り直し。1判定1回制限 戦闘外ではF値+4(上限9)",null,null,null,null,null,null,null,null,null,"ダブルストライク",null,null,null,null,null,null,"―",null,null,"常時",null,null,"―",null,"自身",null,"―",null,"―",null,null,"―",null,null,"攻撃の【MP】消費を2倍にしてよい。\n→達成値+1 与ﾀﾞﾒ+[増加消費MP×4]"]
[]
[null,"魔術強化",null,null,null,null,null,null,"基",null,null,"常時",null,null,"―",null,"自身",null,"―",null,"―",null,null,"―",null,null,{"$f":"\"【魔術】+1 【耐久】【精神】-\"&INT(CL/2)","v":"【魔術】+1 【耐久】【精神】-0"},null,null,null,null,null,null,null,null,null,"ヒーリング",null,null,null,null,null,null,"回",null,null,"サブ",null,null,"―",null,"自身",null,0.9,null,"6MP",null,null,2,null,null,{"$f":"\"対象の【HP】を[\"&CL*3&\"+4D10]点回復する。\"","v":"対象の【HP】を[0+4D10]点回復する。"},null,null,null,null,null,null,null,null,null,"○○の一撃",null,null,null,null,null,null,"近",null,null,"メイン",null,null,"超至近",null,"単体",null,"近接",null,"6MP",null,null,8,null,null,{"$f":"\"対象に〈\"&IF(BT6=\"火炎の一撃\",\"炎\",IF(BT6=\"凍結の一撃\",\"氷\",IF(BT6=\"激流の一撃\",\"水\",IF(BT6=\"雷鳴の一撃\",\"雷\",IF(BT6=\"烈風の一撃\",\"風\",IF(BT6=\"閃光の一撃\",\"光\",\"\"))))))&\"〉属性近接攻撃。\n与えるダメージに+\"&SL*5","v":"対象に〈〉属性近接攻撃。\n与えるダメージに+0"},null,null,null,null,null,null,null,null,null,"サポートムーブ",null,null,null,null,null,null,"支",null,null,"オート",null,null,"自陣",null,"単体",null,0.7,null,"7MP",null,null,3,null,null,"判定直後使用。判定達成値+3\n1/Main",null,null,null,null,null,null,null,null,null,"武器修練Ex",null,null,null,null,null,null,"―",null,null,"常時",null,null,"―",null,"自身",null,"―",null,"―",null,null,"―",null,null,"通常攻撃命中達成値+2"]
[]
[null,"回避強化",null,null,null,null,null,null,"基",null,null,"常時",null,null,"―",null,"自身",null,"―",null,"―",null,null,"―",null,null,{"$f":"\"【回避】+1 【耐久】【精神】-\"&INT(CL/3)","v":"【回避】+1 【耐久】【精神】-0"},null,null,null,null,null,null,null,null,null,"ワイドヒール",null,null,null,null,null,null,"回",null,null,"サブ",null,null,"―",null,"自身",null,0.9,null,"9MP",null,null,3,null,null,{"$f":"\"対象の【HP】を[\"&CL*3&\"+4D10]点回復する。\"","v":"対象の【HP】を[0+4D10]点回復する。"},null,null,null,null,null,null,null,null,null,"○○の一射",null,null,null,null,null,null,"射",null,null,"メイン",null,null,"遠隔",null,"単体",null,"射撃",null,"6MP",null,null,10,null,null,{"$f":"\"対象に〈\"&IF(BT8=\"火炎の一射\",\"炎\",IF(BT8=\"凍結の一射\",\"氷\",IF(BT8=\"激流の一射\",\"水\",IF(BT8=\"雷鳴の一射\",\"雷\",IF(BT8=\"烈風の一射\",\"風\",IF(BT8=\"閃光の一射\",\"光\",\"\"))))))&\"〉属性射撃攻撃。\n与えるダメージに+\"&SL*5","v":"対象に〈〉属性射撃攻撃。\n与えるダメージに+0"},null,null,null,null,null,null,null,null,null,"ジャミング",null,null,null,null,null,null,"妨",null,null,"オート",null,null,"自陣",null,"単体",null,0.7,null,"7MP",null,null,3,null,null,"判定直後使用。判定達成値-3\n1/Main",null,null,null,null,null,null,null,null,null,"Powered - ZP",null,null,null,null,null,null,"―",null,null,"常時",null,null,"―",null,"自身",null,"―",null,"―",null,null,"―",null,null,"【精神】-30 戦闘外の判定達成値+5\n戦闘中の判定達成値+1"]
[]
[null,"抵抗強化",null,null,null,null,null,null,"基",null,null,"常時",null,null,"―",null,"自身",null,"―",null,"―",null,null,"―",null,null,{"$f":"\"【抵抗】+1 【耐久】【精神】-\"&INT(CL/3)","v":"【抵抗】+1 【耐久】【精神】-0"},null,null,null,null,null,null,null,null,null,"自己修復",null,null,null,null,null,null,"支",null,null,"サブ",null,null,"―",null,"自身",null,0.8,null,"なし",null,null,1,null,null,{"$f":"\"あなたの【HP】を\"&SL*3&\"点回復する。\"","v":"あなたの【HP】を0点回復する。"},null,null,null,null,null,null,null,null,null,"ファイアボール",null,null,null,null,null,null,"魔",null,null,"メイン",null,null,"中距離",null,"単体",null,"魔術",null,"8MP",null,null,"(4)→5",null,null,{"$f":"\"対象に[\"&SL*6+CS!$AE$39&\"+3D10]点の〈炎〉属性ダメージ。20%で火傷(\"&SL+5&\")付与\"","v":"対象に[6+3D10]点の〈炎〉属性ダメージ。20%で火傷(5)付与"},null,null,null,null,null,null,null,null,null,"オミットカース",null,null,null,null,null,null,"支",null,null,"オート",null,null,"自陣",null,"単体",null,"自動",null,"2BP",null,null,3,null,null,{"$f":"\"対象が受けるBSを無効にする。1/Main\"&IF(CL>=15,\" 「代償：16MP」での使用可\",\"\")","v":"対象が受けるBSを無効にする。1/Main"},null,null,null,null,null,null,null,null,null,"パーフェクトバリア",null,null,null,null,null,null,"防",null,null,"サブ",null,null,"―",null,"自身",null,"自動",null,"30MP",null,null,0,null,null,"1Mainの間、敵からの攻撃ダメージ0\nBS無効　1戦闘2回制限"]
[]
[null,"敏捷強化",null,null,null,null,null,null,"基",null,null,"常時",null,null,"―",null,"自身",null,"―",null,"―",null,null,"―",null,null,"【敏捷】+5 2つ取得で、回避C値-1\n(下限値：16)",null,null,null,null,null,null,null,null,null,"精神集中",null,null,null,null,null,null,"支",null,null,"サブ",null,null,"―",null,"自身",null,0.6,null,"なし",null,null,2,null,null,"あなたの【MP】を2D10点回復する。",null,null,null,null,null,null,null,null,null,"FB：アポロン",null,null,null,null,null,null,"魔",null,null,"メイン",null,null,"中距離",null,"単体",null,"魔術",null,"9MP",null,null,"(4)→9",null,null,{"$f":"\"対象に[\"&SL*9+CS!$AE$39&\"+3D10]点の〈炎〉属性ダメージ。対象以外の全敵に〈炎〉\"&SL*5&\"ﾀﾞﾒｰｼﾞ\"","v":"対象に[6+3D10]点の〈炎〉属性ダメージ。対象以外の全敵に〈炎〉0ﾀﾞﾒｰｼﾞ"},null,null,null,null,null,null,null,null,null,"エナジー変換",null,null,null,null,null,null,"支",null,null,"オート",null,null,"―",null,"自身",null,"自動",null,"2BP",null,null,0,null,null,"MP消費ｽｷﾙを「代償：なし」にする。\n各スキル1回制限",null,null,null,null,null,null,null,null,null,"ギビングパワー",null,null,null,null,null,null,"支",null,null,"サブ",null,null,"自陣",null,"単体",null,"自動",null,"1BP",null,null,3,null,null,{"$f":"\"【MP】をN(0～\"&SL*10&\")点支払い、対象の【MP】をN点回復\"","v":"【MP】をN(0～0)点支払い、対象の【MP】をN点回復"}]
[]
[null,"耐久強化",null,null,null,null,null,null,"基",null,null,"常時",null,null,"―",null,"自身",null,"―",null,"―",null,null,"―",null,null,{"$f":"\"【耐久】+\"&SL+7","v":"【耐久】+7"},null,null,null,null,null,null,null,null,null,"リフレッシュ",null,null,null,null,null,null,"支",null,null,"サブ",null,null,"自陣",null,"単体",null,0.8,null,"6MP",null,null,2,null,null,"対象が受けているBSを1つ解除する。",null,null,null,null,null,null,null,null,null,"アイスボール",null,null,null,null,null,null,"魔",null,null,"メイン",null,null,"中距離",null,"単体",null,"魔術",null,"8MP",null,null,"(4)→6",null,null,{"$f":"\"対象に[\"&SL*6+CS!$AE$39&\"+3D10]点の〈氷〉属性ダメージ。20%で凍結付与\"","v":"対象に[6+3D10]点の〈氷〉属性ダメージ。20%で凍結付与"},null,null,null,null,null,null,null,null,null,"覚醒化",null,null,null,null,null,null,"支",null,null,"オート",null,null,"―",null,"自身",null,"自動",null,"2BP",null,null,0,null,null,"カウント開始時に使用。覚醒を自身に付与。",null,null,null,null,null,null,null,null,null,"ハルマゲドン",null,null,null,null,null,null,"攻",null,null,"メイン",null,null,"遠隔",null,"全体()",null,"武器\n+3",null,"44MP",null,null,16,null,null,{"$f":"\"対象に〈無〉[\"&CL*10&\"+7D10]ダメージ+怯み(3)付与 [連続使用不可]\"","v":"対象に〈無〉[0+7D10]ダメージ+怯み(3)付与 [連続使用不可]"}]
[]
[null,"精神強化",null,null,null,null,null,null,"基",null,null,"常時",null,null,"―",null,"自身",null,"―",null,"―",null,null,"―",null,null,{"$f":"\"【精神】+\"&SL+3","v":"【精神】+3"},null,null,null,null,null,null,null,null,null,"スプレッドパワー",null,null,null,null,null,null,"支",null,null,"(サブ)",null,null,"―",null,"自身",null,"自動",null,"4BP",null,null,0,null,null,"直後のﾒｲﾝｱｸｼｮﾝで使用するスキルを「射程：遠隔」「対象：全体()」に変更。",null,null,null,null,null,null,null,null,null,"IB：ヘル",null,null,null,null,null,null,"魔",null,null,"メイン",null,null,"中距離",null,"単体",null,"魔術",null,"9MP",null,null,"(4)→9",null,null,{"$f":"\"対象に[\"&SL*9+CS!$AE$39&\"+3D10]点の〈氷〉属性ダメージ。対象以外の全敵に〈氷〉\"&SL*5&\"ﾀﾞﾒｰｼﾞ\"","v":"対象に[6+3D10]点の〈氷〉属性ダメージ。対象以外の全敵に〈氷〉0ﾀﾞﾒｰｼﾞ"},null,null,null,null,null,null,null,null,null,"浮遊魔法",null,null,null,null,null,null,"支",null,null,"オート",null,null,"―",null,"自身",null,"自動",null,"1BP",null,null,0,null,null,"カウント開始時に使用。飛行を自身に付与。",null,null,null,null,null,null,null,null,null,"トライブラスター",null,null,null,null,null,null,"攻",null,null,"メイン",null,null,"遠隔",null,"範囲()",null,"対決\n+2",null,"36MP",null,null,12,null,null,{"$f":"\"対象に〈耐性最大値の属性から1つ〉[\"&EL*28&\"+6D10]ダメージ [連続使用不可]\"","v":"対象に〈耐性最大値の属性から1つ〉[0+6D10]ダメージ [連続使用不可]"}]
[]
[null,"攻撃強化",null,null,null,null,null,null,"基",null,null,"常時",null,null,"―",null,"自身",null,"―",null,"―",null,null,"―",null,null,{"$f":"\"攻撃の与ダメージに+\"&SL+3","v":"攻撃の与ダメージに+3"},null,null,null,null,null,null,null,null,null,"圧縮魔術",null,null,null,null,null,null,"支",null,null,"サブ",null,null,"―",null,"自身",null,"自動",null,"4MP",null,null,1,null,null,{"$f":"\"範囲or全体の「種別：魔」スキルを、単体にして、与ダメージ+\"&CL*2","v":"範囲or全体の「種別：魔」スキルを、単体にして、与ダメージ+0"},null,null,null,null,null,null,null,null,null,"リクィッドボール",null,null,null,null,null,null,"魔",null,null,"メイン",null,null,"中距離",null,"単体",null,"魔術",null,"8MP",null,null,"(4)→6",null,null,{"$f":"\"対象に[\"&SL*6+CS!$AE$39&\"+3D10]点の〈水〉属性ダメージ。20%で睡眠付与\"","v":"対象に[6+3D10]点の〈水〉属性ダメージ。20%で睡眠付与"},null,null,null,null,null,null,null,null,null,"パワーリブート",null,null,null,null,null,null,"支",null,null,"オート",null,null,"―",null,"自身",null,"自動",null,"4BP",null,null,3,null,null,"ｶｳﾝﾄ開始時に使用\n【MP】を全回復",null,null,null,null,null,null,null,null,null,"リザレクション",null,null,null,null,null,null,"回",null,null,"オート",null,null,"自陣",null,"単体",null,"自動",null,"50MP",null,null,3,null,null,{"$f":"\"【HP】0の味方(自身x)を【HP】を1にし、[\"&CL*5&\"+3D10]点回復 1戦闘2回制限\"","v":"【HP】0の味方(自身x)を【HP】を1にし、[0+3D10]点回復 1戦闘2回制限"}]
[]
[null,"防御強化",null,null,null,null,null,null,"基",null,null,"常時",null,null,"―",null,"自身",null,"―",null,"―",null,null,"―",null,null,{"$f":"\"攻撃の被ダメージを\"&SL-1&\"点軽減\"","v":"攻撃の被ダメージを-1点軽減"},null,null,null,null,null,null,null,null,null,"拡散魔術",null,null,null,null,null,null,"支",null,null,"サブ",null,null,"―",null,"自身",null,"自動",null,"6MP",null,null,2,null,null,"単体かつ「種別：魔」のｽｷﾙを、範囲()に変更。+8MPで全体()にも変更可。",null,null,null,null,null,null,null,null,null,"LB：ポセイドン",null,null,null,null,null,null,"魔",null,null,"メイン",null,null,"中距離",null,"単体",null,"魔術",null,"9MP",null,null,"(4)→9",null,null,{"$f":"\"対象に[\"&SL*9+CS!$AE$39&\"+3D10]点の〈水〉属性ダメージ。対象以外の全敵に〈水〉\"&SL*5&\"ﾀﾞﾒｰｼﾞ\"","v":"対象に[6+3D10]点の〈水〉属性ダメージ。対象以外の全敵に〈水〉0ﾀﾞﾒｰｼﾞ"},null,null,null,null,null,null,null,null,null,"精神統一",null,null,null,null,null,null,"支",null,null,"オート",null,null,"―",null,"自身",null,"自動",null,"7BP",null,null,3,null,null,{"$f":"\"ｶｳﾝﾄ開始時に使用 【HP】全回復 【MP】を\"&ROUNDDOWN(CS!$AE$47/2,0)&\"点回復\"","v":"ｶｳﾝﾄ開始時に使用 【HP】全回復 【MP】を6点回復"},null,null,null,null,null,null,null,null,null,"スペルブレイク",null,null,null,null,null,null,"防",null,null,"オート",null,null,"―",null,"自身",null,"自動",null,"30MP",null,null,3,null,null,"敵の「判定値：【魔術】」の攻撃命中時、ﾀﾞﾒｰｼﾞ0にする。 1戦闘2回制限"]
[]
[null,"灼熱耐性+",null,null,null,null,null,null,"基",null,null,"常時",null,null,"―",null,"自身",null,"―",null,"―",null,null,"―",null,null,"〈炎〉耐性+5 火傷(X)80%耐性",null,null,null,null,null,null,null,null,null,"プロテクション",null,null,null,null,null,null,"防",null,null,"サブ",null,null,"自陣",null,"範囲()",null,"自動",null,"17MP",null,null,3,null,null,"2Main間、【回避】の回避判定失敗時、30%でダメージ0。1戦闘2回制限",null,null,null,null,null,null,null,null,null,"サンダーボール",null,null,null,null,null,null,"魔",null,null,"メイン",null,null,"中距離",null,"単体",null,"魔術",null,"8MP",null,null,"(4)→6",null,null,{"$f":"\"対象に[\"&SL*6+CS!$AE$39&\"+3D10]点の〈雷〉属性ダメージ。20%でマヒ付与\"","v":"対象に[6+3D10]点の〈雷〉属性ダメージ。20%でマヒ付与"},null,null,null,null,null,null,null,null,null,"チャンスブレイク",null,null,null,null,null,null,"妨",null,null,"オート",null,null,"遠隔",null,"単体",null,"自動",null,"2BP",null,null,"X",null,null,"対象の判定振り直し効果無効+その判定の振り直し無効 X=使用回数×3"]
[]
[null,"吹雪耐性+",null,null,null,null,null,null,"基",null,null,"常時",null,null,"―",null,"自身",null,"―",null,"―",null,null,"―",null,null,"〈氷〉耐性+5 凍結80%耐性",null,null,null,null,null,null,null,null,null,"マジックウォール",null,null,null,null,null,null,"防",null,null,"サブ",null,null,"自陣",null,"範囲()",null,"自動",null,"17MP",null,null,3,null,null,"2Main間、【抵抗】の回避判定失敗時、30%でダメージ0。1戦闘2回制限",null,null,null,null,null,null,null,null,null,"TB：トール",null,null,null,null,null,null,"魔",null,null,"メイン",null,null,"中距離",null,"単体",null,"魔術",null,"9MP",null,null,"(4)→9",null,null,{"$f":"\"対象に[\"&SL*9+CS!$AE$39&\"+3D10]点の〈雷〉属性ダメージ。対象以外の全敵に〈雷〉\"&SL*5&\"ﾀﾞﾒｰｼﾞ\"","v":"対象に[6+3D10]点の〈雷〉属性ダメージ。対象以外の全敵に〈雷〉0ﾀﾞﾒｰｼﾞ"},null,null,null,null,null,null,null,null,null,"ガードアシスト",null,null,null,null,null,null,"防",null,null,"ダメロ",null,null,"遠隔",null,"単体",null,"自動",null,"6MP",null,null,3,null,null,{"$f":"\"対象が受けるダメージを[\"&CL&\"+3D10]点軽減。1戦闘3回制限\"","v":"対象が受けるダメージを[0+3D10]点軽減。1戦闘3回制限"}]
[]
[null,"激流耐性+",null,null,null,null,null,null,"基",null,null,"常時",null,null,"―",null,"自身",null,"―",null,"―",null,null,"―",null,null,"〈水〉耐性+5 睡眠80%耐性",null,null,null,null,null,null,null,null,null,"インパクター",null,null,null,null,null,null,"支",null,null,"サブ",null,null,"―",null,"自身",null,"自動",null,"4MP",null,null,2,null,null,{"$f":"\"直後のメインアクションの攻撃で与える〈近〉or〈遠〉ダメージ+\"&SL*6","v":"直後のメインアクションの攻撃で与える〈近〉or〈遠〉ダメージ+0"},null,null,null,null,null,null,null,null,null,"ウィンドボール",null,null,null,null,null,null,"魔",null,null,"メイン",null,null,"中距離",null,"単体",null,"魔術",null,"8MP",null,null,"(4)→6",null,null,{"$f":"\"対象に[\"&SL*6+CS!$AE$39&\"+3D10]点の〈風〉属性ダメージ。20%で疲労付与\"","v":"対象に[6+3D10]点の〈風〉属性ダメージ。20%で疲労付与"},null,null,null,null,null,null,null,null,null,"カバーリング",null,null,null,null,null,null,"庇",null,null,"ダメロ",null,null,"自マス",null,"単体",null,"自動",null,"3MP",null,null,1,null,null,"敵攻撃のﾀﾞﾒｰｼﾞ(+BS)を代わりに受ける。庇ｽｷﾙは1ﾒｲﾝｱｸｼｮﾝ2回制限"]
[]
[null,"雷撃耐性+",null,null,null,null,null,null,"基",null,null,"常時",null,null,"―",null,"自身",null,"―",null,"―",null,null,"―",null,null,"〈雷〉耐性+5 マヒ80%耐性",null,null,null,null,null,null,null,null,null,"高速発動",null,null,null,null,null,null,"支",null,null,"サブ",null,null,"―",null,"自身",null,"自動",null,"[N×5]MP",null,null,"N",null,null,"直後のﾒｲﾝｱｸｼｮﾝの「種別：魔」の「ｺｽﾄ：(X)→Y」ｽｷﾙを「ｺｽﾄ：Y」とする。",null,null,null,null,null,null,null,null,null,"WB：ゼピュロス",null,null,null,null,null,null,"魔",null,null,"メイン",null,null,"中距離",null,"単体",null,"魔術",null,"9MP",null,null,"(4)→9",null,null,{"$f":"\"対象に[\"&SL*9+CS!$AE$39&\"+3D10]点の〈風〉属性ダメージ。対象以外の全敵に〈風〉\"&SL*5&\"ﾀﾞﾒｰｼﾞ\"","v":"対象に[6+3D10]点の〈風〉属性ダメージ。対象以外の全敵に〈風〉0ﾀﾞﾒｰｼﾞ"},null,null,null,null,null,null,null,null,null,"ロングレンジカバー",null,null,null,null,null,null,"庇",null,null,"ダメロ",null,null,"自陣",null,"単体",null,"自動",null,"4MP",null,null,2,null,null,"敵攻撃のダメージを代わりに受ける。庇ｽｷﾙは1ﾒｲﾝｱｸｼｮﾝ2回制限"]
[]
[null,"風刃耐性+",null,null,null,null,null,null,"基",null,null,"常時",null,null,"―",null,"自身",null,"―",null,"―",null,null,"―",null,null,"〈風〉耐性+5 疲労80%耐性",null,null,null,null,null,null,null,null,null,"ワイドスプレッド",null,null,null,null,null,null,"支",null,null,"サブ",null,null,"―",null,"自身",null,"自動",null,"2MP",null,null,2,null,null,{"$f":"\"直後のﾒｲﾝの「種別：近」の単体ｽｷﾙを範囲()に。1戦闘\"&SL&\"回制限\"","v":"直後のﾒｲﾝの「種別：近」の単体ｽｷﾙを範囲()に。1戦闘回制限"},null,null,null,null,null,null,null,null,null,"セイントボール",null,null,null,null,null,null,"魔",null,null,"メイン",null,null,"中距離",null,"単体",null,"魔術",null,"8MP",null,null,"(4)→6",null,null,{"$f":"\"対象に[\"&SL*6+CS!$AE$39&\"+3D10]点の〈光〉属性ダメージ。20%で封印付与\"","v":"対象に[6+3D10]点の〈光〉属性ダメージ。20%で封印付与"}]
[]
[null,"閃光耐性+",null,null,null,null,null,null,"基",null,null,"常時",null,null,"―",null,"自身",null,"―",null,"―",null,null,"―",null,null,"〈光〉耐性+5 封印80%耐性",null,null,null,null,null,null,null,null,null,"ダブルバレット",null,null,null,null,null,null,"支",null,null,"サブ",null,null,"―",null,"自身",null,"自動",null,"6MP",null,null,2,null,null,{"$f":"\"直後のﾒｲﾝの「種別：射」の単体ｽｷﾙを範囲()に。1戦闘\"&SL&\"回制限\"","v":"直後のﾒｲﾝの「種別：射」の単体ｽｷﾙを範囲()に。1戦闘回制限"},null,null,null,null,null,null,null,null,null,"SB：アマテラス",null,null,null,null,null,null,"魔",null,null,"メイン",null,null,"中距離",null,"単体",null,"魔術",null,"9MP",null,null,"(4)→9",null,null,{"$f":"\"対象に[\"&SL*9+CS!$AE$39&\"+3D10]点の〈光〉属性ダメージ。対象以外の全敵に〈光〉\"&SL*5&\"ﾀﾞﾒｰｼﾞ\"","v":"対象に[6+3D10]点の〈光〉属性ダメージ。対象以外の全敵に〈光〉0ﾀﾞﾒｰｼﾞ"}]
[]
[null,"回復強化",null,null,null,null,null,null,"―",null,null,"常時",null,null,"―",null,"自身",null,"―",null,"―",null,null,"―",null,null,{"$f":"\"「種別：回」スキルの【HP】回復量に+\"&CL","v":"「種別：回」スキルの【HP】回復量に+0"}]
[]
[null,"物理強化",null,null,null,null,null,null,"―",null,null,"常時",null,null,"―",null,"自身",null,"―",null,"―",null,null,"―",null,null,{"$f":"\"攻撃で与える〈近〉or〈遠〉属性ダメージ \nに+2D10 スキルなら、さらに+\"&SL","v":"攻撃で与える〈近〉or〈遠〉属性ダメージ \nに+2D10 スキルなら、さらに+"}]
[]
[null,"ライフハッカー",null,null,null,null,null,null,"―",null,null,"常時",null,null,"―",null,"自身",null,"―",null,"―",null,null,"―",null,null,"全基本能力値+3　逃走失敗時、もう一度2D10を振って良い。"]
[]
[null,"武器適応",null,null,null,null,null,null,"―",null,null,"常時",null,null,"―",null,"自身",null,"―",null,"―",null,null,"―",null,null,{"$f":"\"通常攻撃で与えるダメージに+\"&CL&\" 通常攻撃時の命中C値-1(下限値：15)\"","v":"通常攻撃で与えるダメージに+0 通常攻撃時の命中C値-1(下限値：15)"}]
[]
[null,"諸刃の剣",null,null,null,null,null,null,"―",null,null,"常時",null,null,"―",null,"自身",null,"―",null,"―",null,null,"―",null,null,{"$f":"\"全耐性-3。【物攻】・【魔攻】+\"&INT(CL/2)+10","v":"全耐性-3。【物攻】・【魔攻】+10"}]
[]
[null,"適応者",null,null,null,null,null,null,"―",null,null,"常時",null,null,"―",null,"自身",null,"―",null,"―",null,null,"―",null,null,{"$f":"\"BP上限値+\"&IF(CL>=20,2,1)","v":"BP上限値+1"}]
[]
[null,"ピンチブーストA",null,null,null,null,null,null,"―",null,null,"常時",null,null,"―",null,"自身",null,"―",null,"―",null,null,"―",null,null,{"$f":"\"【HP】\"&CL*2&\"以下のとき、攻撃で与えるダメージに+\"&CL*2","v":"【HP】0以下のとき、攻撃で与えるダメージに+0"}]
[]
[null,"ピンチブーストB",null,null,null,null,null,null,"―",null,null,"常時",null,null,"―",null,"自身",null,"―",null,"―",null,null,"―",null,null,{"$f":"\"【HP】が\"&CL*2&\"以下のとき、全判定達成値+2 (戦闘中のみ)\"","v":"【HP】が0以下のとき、全判定達成値+2 (戦闘中のみ)"}]

{"sheet":"VL用1","index":3,"n_rows":135,"n_cols":116,"rows_kept":135,"cut":false,"hidden":false,"merged":[]}
[null,"種族","肉体","反射","集中","知識","感覚","意志","洞察","幸運","近接","射撃","回避","魔術","抵抗","敏捷","物攻","魔攻","物防","魔防","耐久","精神","近","遠","炎","氷","水","雷","風","光","種族特典","スキル名","種別","タイミング","判定","射程","対象","代償","コスト","効果",null,null,"武器","種別","射程","属性","価格","Cost","近接","射撃","回避","魔術","抵抗","敏捷","物攻","魔攻","物防","魔防","耐久","精神","近","遠","炎","氷","水","雷","風","光","特殊効果",null,"防具","価格","近接","射撃","回避","魔術","抵抗","敏捷","物攻","魔攻","物防","魔防","耐久","精神","近","遠","炎","氷","水","雷","風","光",null,"アクセサリ","価格","近接","射撃","回避","魔術","抵抗","敏捷","物攻","魔攻","物防","魔防","耐久","精神","近","遠","炎","氷","水","雷","風","光","特殊効果"]
[10,"人間",10,9,17,10,6,11,7,10,5,5,3,4,3,10,{"$f":"6+CL","v":6},{"$f":"6+CL","v":6},{"$f":"2+CL*2","v":2},{"$f":"CL*2","v":0},{"$f":"20+CL*7","v":20},{"$f":"13+CL*3","v":13},{"$f":"ROUNDUP(CL*0.2,0)","v":0},{"$f":"ROUNDUP(CL*0.2,0)","v":0},{"$f":"ROUNDUP(CL*-0.2,0)","v":0},0,-1,{"$f":"INT(CL*-0.2)","v":0},1,0,"常時C値-1 (下限値：16)","起死回生","自","オート","自動","―","自身","5BP",0,"判定直後使用、出目を両方9にする。命中判定の場合、対する回避C値20固定。",null,null,"素手","近接","超至近","近",0,8,-2,null,null,-2,null,null,5,null,null,null,null,null,null,null,null,null,null,null,null,null,"[素手武器] 武器未装備時の参照データ",null,"一般服",0,null,null,null,null,null,null,null,null,null,null,null,null,-2,-2,-2,-2,-2,-2,-2,-2,null,"なし",0,null,null,null,null,null,null,null,null,null,null,null,null,null,null,null,null,null,null,null,null,{"$f":"\"\"","v":""}]
[10,"天使A",5,7,10,17,9,6,16,10,4,4,3,5,3,12,{"$f":"CL","v":0},{"$f":"2+CL*2","v":2},{"$f":"CL","v":0},{"$f":"3+CL*3","v":3},{"$f":"16+CL*6","v":16},{"$f":"18+CL*3","v":18},{"$f":"ROUNDUP(1+CL*0.2,0)","v":1},1,0,1,0,{"$f":"ROUNDUP(-1-CL*0.2,0)","v":-1},{"$f":"ROUNDUP(-2-0.4*CL,0)","v":-2},{"$f":"ROUNDUP(3+CL*0.2,0)","v":3},{"$f":"\"封印無効 ｸﾘﾃｨｶﾙする度にMP10点回復\"","v":"封印無効 ｸﾘﾃｨｶﾙする度にMP10点回復"},"天使の祝福","自","(サブ)","自動","自陣","[単体]","2BP",2,{"$f":"\"対象のMPを\"&CL&\"点回復。その後、対象のスキルの使用回数を1回回復。\"","v":"対象のMPを0点回復。その後、対象のスキルの使用回数を1回回復。"},null,null,"アイアンソード","近接","超至近","近",10,9,null,null,null,null,null,null,10,null,null,null,null,null,1,-1,null,null,null,null,null,null,"[剣]",null,"防寒具",5,null,null,null,null,null,null,null,null,2,null,null,null,-1,null,null,1,null,null,null,null,null,"水晶の指輪",10,null,null,null,null,null,null,null,null,null,null,null,3,null,null,null,null,null,null,null,null,"特殊効果なし"]
[11,"天使B",5,7,10,17,9,6,16,10,4,3,4,5,4,8,{"$f":"5+CL*2","v":5},{"$f":"5+CL*2","v":5},{"$f":"8+CL*2","v":8},{"$f":"8+CL*2","v":8},{"$f":"13+CL*5","v":13},{"$f":"10+CL*4","v":10},-1,-1,{"$f":"ROUNDUP(2+CL*0.2,0)","v":2},{"$f":"ROUNDUP(2+CL*0.2,0)","v":2},0,2,-2,{"$f":"ROUNDUP(-2-CL*0.4,0)","v":-2},"呪い無効 ﾌｧﾝﾌﾞﾙする度にBP1点回復","堕天使の祝福","自","(サブ)","自動","単体","遠隔","2BP",0,"対象が次に行う判定の達成値に+5。その判定のF値は10に固定される。",null,null,"バスタードソード","近接","超至近","近",10,10,-2,null,null,-2,null,-1,26,13,null,null,null,null,1,-1,null,null,null,null,null,null,"[剣] 【肉体】+3",null,"チェインフード",10,null,null,null,null,null,null,null,null,3,2,null,null,null,null,null,null,null,null,null,null,null,"ニーサポーター",10,null,null,null,null,null,null,null,null,null,null,5,null,null,null,null,null,null,null,null,null,"特殊効果なし"]
[11,"悪魔A",14,8,7,16,8,8,12,7,3,3,2,3,3,5,{"$f":"5+CL*2","v":5},{"$f":"7+CL*2","v":7},{"$f":"2+CL*2","v":2},{"$f":"6+CL*2","v":6},{"$f":"36+CL*7","v":36},{"$f":"22+CL*3","v":22},{"$f":"ROUNDUP(2+CL*0.2,0)","v":2},{"$f":"ROUNDUP(2+CL*0.2,0)","v":2},2,2,{"$f":"ROUNDUP(-CL*0.2,0)","v":0},0,0,{"$f":"ROUNDUP(-4-CL*0.2,0)","v":-4},"通常攻撃の命中達成値+2 「種別：魔」の攻撃のBS無効","増幅する苦痛","自","オート","自動","場面()","遠隔","4BP",3,"敵がﾀﾞﾒｰｼﾞを受けた時使用。〈無〉[その半分のﾀﾞﾒｰｼﾞ](↓)と無効不可の怯み(3)を付与。",null,null,"スペルグローブ","近接","超至近","近",10,10,null,null,null,null,null,null,7,4,null,null,null,null,null,null,null,null,null,null,null,null,"[魔法武器(遠隔/遠)]",null,"プレートコート",10,null,null,null,null,null,-2,null,null,4,3,null,null,null,null,null,null,null,null,null,null,null,"青銅の籠手",10,null,null,null,null,null,null,null,null,3,null,null,null,null,null,null,null,null,null,null,null,"特殊効果なし"]
[12,"悪魔B",14,8,7,16,8,8,12,7,3,4,4,3,2,7,{"$f":"7+CL","v":7},{"$f":"5+CL","v":5},{"$f":"2+CL","v":2},{"$f":"2+CL","v":2},{"$f":"26+CL*6","v":26},{"$f":"17+CL*5","v":17},{"$f":"ROUNDUP(CL*0.2,0)","v":0},{"$f":"ROUNDUP(CL*0.2,0)","v":0},2,2,2,-1,{"$f":"ROUNDUP(-3-CL*0.2,0)","v":-3},{"$f":"ROUNDUP(-2-CL*0.2,0)","v":-2},"睡眠無効 攻撃でBS付与した敵ごとにMP2点回復","ナイトメアフォール","自、攻","メイン","対決+3","範囲()","遠隔","4BP",9,{"$f":"\"対象に〈無〉[\"&CL*6&\"+6D10+【物攻】or【魔攻】]点のﾀﾞﾒｰｼﾞ+睡眠付与 [連続使用不可]\"","v":"対象に〈無〉[0+6D10+【物攻】or【魔攻】]点のﾀﾞﾒｰｼﾞ+睡眠付与 [連続使用不可]"},null,null,"ロングソード","近接","至近","近",15,11,-1,null,null,-1,null,-2,20,9,null,null,null,null,1,null,null,null,null,null,null,null,"[剣] 【肉体】+2",null,"アイアンメイル",20,null,null,null,null,null,-2,null,null,6,4,null,null,null,null,null,null,null,null,null,null,null,"防災頭巾",10,null,null,null,null,null,null,null,null,null,null,1,null,null,null,2,null,null,null,null,null,"特殊効果なし"]
[12,"妖精A",6,13,10,9,16,7,10,9,3,5,4,3,4,11,{"$f":"7+CL","v":7},{"$f":"4+CL","v":4},{"$f":"3+CL","v":3},{"$f":"10+CL*2","v":10},{"$f":"15+CL*7","v":15},{"$f":"18+CL*3","v":18},{"$f":"ROUNDUP(-2-CL*0.2,0)","v":-2},{"$f":"ROUNDUP(-2-CL*0.2,0)","v":-2},{"$f":"ROUNDUP(1+CL*0.1,0)","v":1},{"$f":"ROUNDUP(1+CL*0.1,0)","v":1},{"$f":"ROUNDUP(1+CL*0.1,0)","v":1},0,{"$f":"ROUNDUP(1+CL*0.1,0)","v":1},0,{"$f":"\"行動手番開始時に\"&ROUNDUP(CL/3,0)&\"MP支払い、ｻﾌﾞｱｸｼｮﾝを2回行える\"","v":"行動手番開始時に0MP支払い、ｻﾌﾞｱｸｼｮﾝを2回行える"},"マナフォース","自","(サブ)","自動","単体","自陣","2BP",0,"対象が次に行う攻撃の属性が〈炎〉～〈風〉から選択した属性に変更される。",null,null,"マジックシールド","近接","至近","近",20,10,null,null,null,null,1,-4,12,4,6,4,null,null,1,1,1,1,null,null,null,null,"【集中】+2 【知識】-2",null,"ハーフアーマー",20,null,null,null,null,null,1,null,null,3,2,null,null,null,null,null,null,null,null,null,null,null,"手袋カイロ",10,null,null,null,null,null,null,null,null,null,null,1,null,null,null,null,2,null,null,null,null,"特殊効果なし"]
[13,"妖精B",6,13,10,9,16,7,10,9,3,3,3,5,3,10,{"$f":"6+CL","v":6},{"$f":"2+CL*2","v":2},{"$f":"CL*2","v":0},{"$f":"4+CL*2","v":4},{"$f":"20+CL*5","v":20},{"$f":"23+CL*3","v":23},{"$f":"ROUNDUP(-2-CL*0.2,0)","v":-2},{"$f":"ROUNDUP(-4-CL*0.2,0)","v":-4},2,2,{"$f":"ROUNDUP(2+CL*0.2,0)","v":2},0,{"$f":"ROUNDUP(2+CL*0.2,0)","v":2},0,"「種別：魔」の攻撃を20%の確率で回避ｸﾘﾃｨｶﾙする","マナシールド","自、防","サブ","自動","3体","自陣","NBP",0,{"$f":"\"N=1～5。 2ﾒｲﾝｱｸｼｮﾝ間、〈炎〉～〈光〉から選択した[N+1]個の属性ﾀﾞﾒｰｼﾞを\"&CL*2+5&\"点軽減。\"","v":"N=1～5。 2ﾒｲﾝｱｸｼｮﾝ間、〈炎〉～〈光〉から選択した[N+1]個の属性ﾀﾞﾒｰｼﾞを5点軽減。"},null,null,"メタルクロー","近接","超至近","近",20,10,null,null,null,null,null,1,15,5,null,null,null,null,1,null,null,null,null,-1,null,null,"[素手武器] 【肉体】+3",null,"スペルローブ",20,null,null,null,null,null,null,null,null,1,6,null,2,null,null,null,null,null,null,null,null,null,"撥水コート",10,null,null,null,null,null,null,null,null,null,null,1,null,null,null,null,null,2,null,null,null,"特殊効果なし"]
[13,"獣人A",12,18,5,6,16,6,9,8,5,3,2,4,4,6,{"$f":"15+CL","v":15},{"$f":"12+CL","v":12},{"$f":"11+CL*2","v":11},{"$f":"6+CL","v":6},{"$f":"25+CL*8","v":25},{"$f":"7+CL*2","v":7},{"$f":"ROUNDUP(1+CL*0.2,0)","v":1},{"$f":"ROUNDUP(1+CL*0.2,0)","v":1},{"$f":"ROUNDUP(-1-CL*0.4,0)","v":-1},{"$f":"ROUNDUP(CL*0.2,0)","v":0},0,{"$f":"ROUNDUP(-1-CL*0.4,0)","v":-1},0,{"$f":"ROUNDUP(CL*0.2,0)","v":0},"命中C値-1 (下限値：15) 命中F値と調査F値を3に固定","ワイルドラッシュ","自","オート","自動","―","自身","6BP",2,"行動手番終了時使用可。直ちに攻撃orﾒｲﾝｱｸｼｮﾝの攻撃ｽｷﾙを「ｺｽﾄ：0」で使用する。",null,null,"パワードナックル","近接","超至近","近",20,10,-1,null,null,-1,null,2,24,15,null,null,null,null,1,null,null,null,null,null,null,null,"[素手武器] 【肉体】+1",null,"ウィンドクロス",25,null,null,1,null,null,1,null,null,1,1,-5,null,-1,-1,-2,null,-2,2,null,null,null,"ミニ避雷針",10,null,null,null,null,null,null,null,null,null,null,1,null,null,null,null,null,null,2,null,null,"特殊効果なし"]
[14,"獣人B",12,18,5,6,16,6,9,8,3,3,5,3,5,14,{"$f":"3+CL","v":3},{"$f":"2+CL","v":2},{"$f":"3+CL","v":3},{"$f":"6+CL","v":6},{"$f":"31+CL*5","v":31},{"$f":"13+CL*3","v":13},1,-2,{"$f":"ROUNDUP(-1-CL*0.2,0)","v":-1},{"$f":"ROUNDUP(CL*0.2,0)","v":0},0,{"$f":"ROUNDUP(-1-CL*0.2,0)","v":-1},{"$f":"ROUNDUP(2+CL*0.2,0)","v":2},1,"回避C値-1 (下限値：15) 回避F値と調査F値を3に固定","音速疾駆","自","オート","自陣","単体","自身","2BP",2,"回避判定直前使用。対象は「あなたの回避判定値」で判定。自身使用時は回避達成値+4",null,null,"鉄槌","近接","超至近","近",20,11,-2,null,-1,-2,null,-4,33,22,null,null,null,null,1,-1,null,null,null,null,null,null,"命中C値-1 (下限16)",null,"ハードメイル",30,null,null,-1,null,null,-4,null,null,10,7,5,null,null,null,null,null,null,null,null,null,null,"防塵ゴーグル",10,null,null,null,null,null,null,null,null,null,null,1,null,null,null,null,null,null,null,2,null,"特殊効果なし"]
[14,"鳥人A",11,17,9,7,12,7,11,8,4,4,3,4,3,16,{"$f":"4+CL*2","v":4},{"$f":"4+CL*2","v":4},{"$f":"7+CL","v":7},{"$f":"7+CL","v":7},{"$f":"24+CL*7","v":24},{"$f":"14+CL*2","v":14},{"$f":"ROUNDUP(2+CL*0.2,0)","v":2},{"$f":"ROUNDUP(-3-CL*0.2,0)","v":-3},0,{"$f":"ROUNDUP(-2-CL*0.2,0)","v":-2},0,{"$f":"ROUNDUP(-3-CL*0.2,0)","v":-3},{"$f":"ROUNDUP(2+CL*0.4,0)","v":2},0,"戦闘開始から最初に【HP】0になるまで、常時飛行を得る","エアグライド","自","サブ","自動","―","自身","4BP",0,"次行動手番まで、回避C値14固定。また判定毎に1度振り直し可能(他効果で振り直し不可)",null,null,"バトルウィップ","近接","至近","近",20,10,null,null,null,null,null,1,14,7,null,null,null,null,null,null,null,null,null,null,null,null,"通常攻撃時5MPで「射程：遠隔」に変更可",null,"リングメイル",30,null,null,-1,null,null,-2,null,null,8,6,null,null,1,null,null,null,null,null,null,null,null,"サングラス",10,null,null,null,null,null,null,null,null,null,null,1,null,null,null,null,null,null,null,null,2,"特殊効果なし"]
[15,"鳥人B",11,17,9,7,12,7,11,8,4,4,5,5,4,13,{"$f":"2+CL","v":2},{"$f":"2+CL","v":2},{"$f":"5+CL","v":5},{"$f":"2+CL","v":2},{"$f":"20+CL*5","v":20},{"$f":"17+CL*2","v":17},{"$f":"ROUNDUP(1+CL*0.2,0)","v":1},{"$f":"ROUNDUP(-1-CL*0.2,0)","v":-1},{"$f":"ROUNDUP(-2-CL*0.2,0)","v":-2},{"$f":"ROUNDUP(CL*-0.2,0)","v":0},{"$f":"ROUNDUP(CL*0.2,0)","v":0},{"$f":"ROUNDUP(-2-CL*0.2,0)","v":-2},{"$f":"ROUNDUP(2+CL*0.2,0)","v":2},1,"ｻﾌﾞ移動ｺｽﾄ-1 BSを受けていない時、先制を得る","ソニックムーブ","自","オート","自動","―","自身","2BP",0,"[配置ｶｳﾝﾄ-現ｶｳﾝﾄ]<20 であるカウント開始時使用可。直ちに行動手番を得る。",null,null,"マジックワンド","近接","超至近","近",20,10,-1,null,null,null,null,3,10,16,null,null,null,null,null,null,null,null,null,null,null,null,"[魔法武器(遠隔/遠)]",null,"フェアリーローブ",30,null,null,null,null,1,null,null,null,2,4,null,3,null,null,null,null,null,null,null,null,null,"ブラッドストーン",10,null,null,null,null,null,null,null,null,null,null,2,null,null,null,null,null,null,null,null,null,"【肉体】+5 調査F値-1 (下限値：3)"]
[15,"竜人A",19,7,8,13,9,8,9,7,5,4,2,4,4,2,{"$f":"14+CL*2","v":14},{"$f":"13+CL*2","v":13},{"$f":"7+CL*2","v":7},{"$f":"5+CL*2","v":5},{"$f":"33+CL*8","v":33},{"$f":"9+CL*2","v":9},{"$f":"ROUNDUP(3+CL*0.2,0)","v":3},1,{"$f":"ROUNDUP(1+CL*0.2,0)","v":1},{"$f":"ROUNDUP(1+CL*0.2,0)","v":1},{"$f":"ROUNDUP(-2-CL*0.3,0)","v":-2},1,1,{"$f":"ROUNDUP(-2-CL*0.3,0)","v":-2},"常時F値+3 (上限値：10) 移動コスト+2","ドラゴンフォース","自","スタート","自動","―","自身","NBP",0,{"$f":"\"この戦闘中の攻撃で与えるダメージ+[10+(N×\"&INT(CL/3)&\")] (N=1～10)\"","v":"この戦闘中の攻撃で与えるダメージ+[10+(N×0)] (N=1～10)"},null,null,"ファイアワンド","近接","超至近","近",25,10,-1,null,null,1,null,null,6,10,null,null,null,3,null,null,2,1,-2,null,null,null,"[魔法武器(遠隔/炎)]",null,"ブライトドレス",30,null,null,null,null,1,-2,null,null,2,2,5,2,null,-1,null,null,null,null,null,3,null,"カーネリアン",10,null,null,null,null,null,null,null,null,null,null,2,null,null,null,null,null,null,null,null,null,"【反射】+5 調査F値-1 (下限値：3)"]
[16,"竜人B",19,7,8,13,9,8,9,7,5,5,4,5,4,16,{"$f":"8+CL","v":8},{"$f":"6+CL","v":6},{"$f":"4+CL","v":4},{"$f":"2+CL","v":2},{"$f":"26+CL*7","v":26},{"$f":"8+CL*2","v":8},{"$f":"ROUNDUP(2+CL*0.2,0)","v":2},{"$f":"ROUNDUP(-2-CL*0.2,0)","v":-2},{"$f":"ROUNDUP(2+CL*0.2,0)","v":2},-1,0,{"$f":"ROUNDUP(-2-CL*0.2,0)","v":-2},1,0,"常時F値+3 (上限値：10) ","ドラゴンフォース","自","スタート","自動","―","自身","NBP",0,{"$f":"\"この戦闘中の攻撃で与えるダメージ+[10+(N×\"&INT(CL/3)&\")] (N=1～10)\"","v":"この戦闘中の攻撃で与えるダメージ+[10+(N×0)] (N=1～10)"},null,null,"フリーズワンド","近接","超至近","近",25,10,-1,null,null,1,null,null,6,10,null,null,5,null,null,null,-2,1,1,null,null,null,"[魔法武器(遠隔/氷)]",null,"五芒星の法衣",35,null,null,null,null,null,-2,null,4,null,4,null,null,null,null,1,1,null,1,null,-3,null,"アズロマラカイト",10,null,null,null,null,null,null,null,null,null,null,2,null,null,null,null,null,null,null,null,null,"【集中】+5 調査F値-1 (下限値：3)"]
[16,"魔法人形A",10,11,12,12,9,7,7,12,4,3,3,4,3,10,{"$f":"6+CL","v":6},{"$f":"10+CL*2","v":10},{"$f":"4+CL","v":4},{"$f":"6+CL*3","v":6},{"$f":"15+CL*4","v":15},{"$f":"24+CL*4","v":24},{"$f":"ROUNDUP(-2-CL*0.2,0)","v":-2},{"$f":"ROUNDUP(-2-CL*0.2,0)","v":-2},{"$f":"ROUNDUP(2+CL*0.2,0)","v":2},2,2,2,2,2,"戦闘開始時、覚醒を自身に付与","エナジーバースト","自","オート","自動","―","自身","6BP",0,{"$f":"\"ｶｳﾝﾄ開始時使用可。ｶｳﾝﾄ中判定達成値+4。最初の攻撃ﾀﾞﾒｰｼﾞ+\"&MAX(CS!$AE$37,CS!$AE$39)+CL*3&\" ｶｳﾝﾄ終了時【HP】1。\"","v":"ｶｳﾝﾄ開始時使用可。ｶｳﾝﾄ中判定達成値+4。最初の攻撃ﾀﾞﾒｰｼﾞ+11 ｶｳﾝﾄ終了時【HP】1。"},null,null,"サンダーワンド","近接","超至近","近",25,10,-1,null,null,1,null,2,6,10,null,null,null,null,null,null,null,null,null,2,-2,null,"[魔法武器(遠隔/雷)]",null,"六芒星の法衣",35,null,null,null,null,1,-2,null,null,2,5,null,null,1,1,-1,-1,-1,-1,-1,3,null,"ソーダライト",10,null,null,null,null,null,null,null,null,null,null,2,null,null,null,null,null,null,null,null,null,"【知識】+5 調査F値-1 (下限値：3)"]
[17,"魔法人形B",10,11,12,12,9,7,7,12,4,4,4,4,3,12,{"$f":"7+CL*2","v":7},{"$f":"5+CL*2","v":5},{"$f":"8+CL*2","v":8},{"$f":"9+CL*2","v":9},{"$f":"10+CL*6","v":10},{"$f":"17+CL*3","v":17},2,2,{"$f":"ROUNDUP(1+CL*0.1,0)","v":1},{"$f":"ROUNDUP(1+CL*0.1,0)","v":1},{"$f":"ROUNDUP(1+CL*0.1,0)","v":1},{"$f":"ROUNDUP(1+CL*0.1,0)","v":1},0,{"$f":"ROUNDUP(-3-CL*0.2,0)","v":-3},{"$f":"\"毒、マヒ無効 【HP】が\"&CL*2&\"点以下のとき、全判定達成値+1\"","v":"毒、マヒ無効 【HP】が0点以下のとき、全判定達成値+1"},"エナジーバースト","自","オート","自動","―","自身","6BP",0,{"$f":"\"ｶｳﾝﾄ開始時使用可。ｶｳﾝﾄ中判定達成値+4。最初の攻撃ﾀﾞﾒｰｼﾞ+\"&MAX(CS!$AE$37,CS!$AE$39)+CL*3&\" ｶｳﾝﾄ終了時【HP】1。\"","v":"ｶｳﾝﾄ開始時使用可。ｶｳﾝﾄ中判定達成値+4。最初の攻撃ﾀﾞﾒｰｼﾞ+11 ｶｳﾝﾄ終了時【HP】1。"},null,null,"鋼鉄剣 -玉鋼-","近接","超至近","近",30,10,null,null,null,null,null,-2,19,9,null,null,3,null,1,1,null,null,null,null,null,null,"[剣] 【肉体】+2 【集中】+2",null,"フェザースーツ",35,null,null,null,null,null,4,null,null,3,3,null,null,null,null,null,null,null,-2,2,null,null,"ラピスラズリ",10,null,null,null,null,null,null,null,null,null,null,2,null,null,null,null,null,null,null,null,null,"【感覚】+5 調査F値-1 (下限値：3)"]
[17,"神格A",8,7,13,13,16,7,9,7,4,4,4,4,4,4,{"$f":"CL*2+2","v":2},{"$f":"CL*2+2","v":2},{"$f":"4+CL","v":4},{"$f":"1+CL*2","v":1},{"$f":"32+CL*7","v":32},{"$f":"21+CL*2","v":21},3,3,-2,-2,-2,-2,-2,4,"敵から攻撃でﾀﾞﾒｰｼﾞを受けた場合、その敵に怯み(1)付与","Paranormal Power","自","スタート","自動","―","自身","2BP",1,{"$f":"\"戦闘中、①全達成値+1 ②命中・回避C値-1(下限15) ③与ﾀﾞﾒｰｼﾞ+\"&CL+5&\"のいずれかを得る\"","v":"戦闘中、①全達成値+1 ②命中・回避C値-1(下限15) ③与ﾀﾞﾒｰｼﾞ+5のいずれかを得る"},null,null,"マン・ゴーシュ","近接","至近","近",30,9,null,null,1,null,null,2,14,6,null,null,null,null,null,null,null,null,null,null,null,null,"[剣] 【反射】+4",null,"ヘヴィメイル",35,null,null,-2,null,null,-4,null,null,12,10,15,null,null,null,null,null,null,null,null,null,null,"オニキス",10,null,null,null,null,null,null,null,null,null,null,2,null,null,null,null,null,null,null,null,null,"【意志】+5 調査F値-1 (下限値：3)"]
[18,"神格B",8,7,13,13,16,7,9,7,3,3,4,3,4,6,{"$f":"CL+4","v":4},{"$f":"CL+4","v":4},{"$f":"1+CL*2","v":1},{"$f":"CL*2+1","v":1},{"$f":"27+CL*6","v":27},{"$f":"18+CL*3","v":18},{"$f":"ROUNDUP(-CL*0.4,0)","v":0},{"$f":"ROUNDUP(-CL*0.4,0)","v":0},{"$f":"ROUNDUP(CL*0.2,0)","v":0},0,{"$f":"ROUNDUP(CL*0.2,0)","v":0},{"$f":"ROUNDUP(CL*0.2,0)","v":0},{"$f":"ROUNDUP(CL*0.2,0)","v":0},0,"[BP上限値]+2 1戦闘3回振り直し可能","信仰の力","自","スタート","自動","―","自身","3BP",0,"戦闘中、1戦闘2回振り直し可能。回避成功の度に、使用可能回数+1 (上限使用回数3回)",null,null,"デスサイズ","近接","至近","近",30,12,null,null,-1,null,null,-3,20,11,null,null,null,null,1,2,null,null,null,null,null,null,"【集中】+3 通常攻撃のダメージに+2D10",null,"マジカルコート",40,null,null,null,null,null,null,null,null,2,12,null,2,-1,-1,1,1,null,1,null,null,null,"アクアマリン",10,null,null,null,null,null,null,null,null,null,null,2,null,null,null,null,null,null,null,null,null,"【洞察】+5 調査F値-1 (下限値：3)"]
[18,"花姫A",6,7,14,14,11,10,7,11,3,3,5,3,4,12,{"$f":"CL+7","v":7},{"$f":"11+CL","v":11},{"$f":"2+CL","v":2},{"$f":"2+CL","v":2},{"$f":"18+CL*6","v":18},{"$f":"25+CL*3","v":25},0,{"$f":"ROUNDUP(1+CL*0.2,0)","v":1},{"$f":"ROUNDUP(-3-CL*0.2,0)","v":-3},{"$f":"ROUNDUP(-CL*0.2,0)","v":0},2,-1,-2,{"$f":"ROUNDUP(3+CL*0.2,0)","v":3},{"$f":"\"毒無効 攻撃が命中した対象に毒(\"&CL&\")を付与\"","v":"毒無効 攻撃が命中した対象に毒(0)を付与"},"フルブルーム","自","オート","自動","―","自身","3BP",0,{"$f":"\"ｶｳﾝﾄ開始時に使用可能。【HP】\"&CL*5+10&\"点回復 以降、ｻﾌﾞｽｷﾙ使用毎にHP\"&INT(CL/2)+3&\"回復 (最大3重複)\"","v":"ｶｳﾝﾄ開始時に使用可能。【HP】10点回復 以降、ｻﾌﾞｽｷﾙ使用毎にHP3回復 (最大3重複)"},null,null,"強化対魔護符","近接","至近","近",30,10,null,null,null,null,null,1,12,15,null,null,null,null,-1,-1,null,null,null,null,null,2,"[魔法武器(遠隔/遠)] 封印無効",null,"マジックインバネス",40,null,null,null,null,1,null,null,null,4,4,null,4,null,null,null,null,null,null,null,null,null,"アマゾナイト",10,null,null,null,null,null,null,null,null,null,null,2,null,null,null,null,null,null,null,null,null,"【幸運】+5 調査F値-1 (下限値：3)"]
[19,"花姫B",6,7,14,14,11,10,7,11,3,3,2,4,5,6,{"$f":"CL*2+2","v":2},{"$f":"CL*2+4","v":4},{"$f":"CL+6","v":6},{"$f":"CL+4","v":4},{"$f":"CL*7+32","v":32},{"$f":"15+CL*2","v":15},1,1,{"$f":"ROUNDUP(-3-CL*0.2,0)","v":-3},0,{"$f":"ROUNDUP(3+CL*0.2,0)","v":3},0,{"$f":"ROUNDUP(-2-CL*0.2,0)","v":-2},{"$f":"ROUNDUP(+CL*0.2,0)","v":0},{"$f":"\"攻撃を命中させた場合、HPを\"&CL+5&\"点回復する\"","v":"攻撃を命中させた場合、HPを5点回復する"},"フルブルーム","自","オート","自動","―","自身","3BP",0,{"$f":"\"ｶｳﾝﾄ開始時に使用可能。【HP】\"&CL*5+10&\"点回復 以降、ｻﾌﾞｽｷﾙ使用毎にHP\"&INT(CL/2)+3&\"回復 (最大3重複)\"","v":"ｶｳﾝﾄ開始時に使用可能。【HP】10点回復 以降、ｻﾌﾞｽｷﾙ使用毎にHP3回復 (最大3重複)"},null,null,"祝福の杖","近接","至近","近",35,11,null,null,null,null,null,-2,17,15,null,null,null,4,null,null,null,null,null,null,null,2,"[魔法武器(遠隔/遠)] 命中F値-1 (下限4)",null,"呪詛の鎧",40,-1,-1,-1,-1,-1,null,10,10,10,10,10,10,1,1,null,null,null,null,null,null,null,"レッドメノウ",10,null,null,null,null,null,null,2,null,null,null,null,null,null,null,null,null,null,null,null,null,"特殊効果なし"]
[19,null,null,null,null,null,null,null,null,null,null,null,null,null,null,null,null,null,null,null,null,null,null,null,null,null,null,null,null,null,null,null,null,null,null,null,null,null,null,null,null,null,"業物：烈風","近接","超至近","風",40,10,null,null,null,null,null,2,21,11,null,null,null,null,1,null,null,null,null,-2,3,null,"[剣] 【集中】+3",null,"ライフアーマー",45,null,null,null,null,null,-3,null,null,7,5,13,null,null,null,null,null,null,null,null,null,null,"カイヤナイト",10,null,null,null,null,null,null,null,2,null,null,null,null,null,null,null,null,null,null,null,null,"特殊効果なし"]
[20,"クラス","TL","近接","射撃","回避","魔術","抵抗","敏捷","物攻","魔攻","物防","魔防","特典",null,null,null,null,null,null,null,null,null,null,"種別","個数","判定","属性","値","修正",null,"スタイル","効果",null,null,null,null,null,null,null,null,null,"モーニングスター","近接","至近","遠",40,10,null,null,null,null,null,null,17,16,null,null,null,null,1,1,null,null,null,null,null,null,"「判定値：対決」の判定達成値に+1",null,"防弾チョッキ",45,null,null,null,null,null,-2,null,null,11,6,null,null,null,3,null,null,null,null,null,null,null,"フェザーブーツ",15,null,null,null,null,null,2,null,null,null,null,null,null,null,null,null,null,null,null,null,null,"特殊効果なし"]
[20,"―",0,0,0,0,0,0,0,0,0,0,0,{"$f":"\"\"","v":""},null,null,null,null,null,null,null,null,null,null,null,null,null,"耐久",{"$f":"IF(MC=B26,C26+5,0)+IF(AND(SL>=3,SC=B26)=TRUE,C26+5,0)\n-IF(MC=B38,C38*2,0)-IF(AND(SL>=3,SC=B38)=TRUE,C38*2,0)","v":0},{"$f":"IF(AC23=0,\"\",AC23)","v":""},null,"アタッカー",{"$f":"\"攻撃で与えるダメージに+[2D10\"&IF(CL-10=0,\"\",\"+\"&CL-10)&\"] 命中C値-1 (下限15)\"","v":"攻撃で与えるダメージに+[2D10+-10] 命中C値-1 (下限15)"},null,null,null,null,null,null,null,null,null,"ホーリーワンド","近接","至近","光",40,11,null,null,null,1,null,1,12,10,null,null,null,null,null,null,null,null,null,null,null,3,"[魔法武器(遠隔/光)] 回のｽｷﾙのHP回復量+5",null,"カーボンスーツ",50,null,null,null,null,null,2,null,null,7,5,null,null,1,1,null,null,null,null,null,null,null,"重力石",20,1,null,null,null,null,null,null,null,null,null,-8,-5,-2,-2,null,null,null,null,null,null,"特殊効果なし"]
[21,"アトミックブラスター",{"$f":"IF(CS!$D$11=VL用1!B24,ML,0)+IF(CS!$D$12=VL用1!B24,SL,0)+IF(CS!$D$13=VL用1!B24,EL,0)","v":0},4,4,0,4,0,5,8,8,0,0,"封印80%無効 後衛時、命中達成値-2 回避達成値+3",null,null,null,null,null,null,null,null,null,null,"核",{"$f":"COUNTIF(CS!$AW$30:$AY$57,\"*\"&Y24&\"*\")","v":0},{"$f":"IF(Z24*2>C24,\"×\",\"○\")","v":"○"},"精神",{"$f":"IF(MC=B38,C38,0)+IF(AND(SL>=3,SC=B38)=TRUE,C38,0)\n+IF(MC=B40,CL+8,0)+IF(AND(SL>=3,SC=B40)=TRUE,C40+10,0)","v":0},{"$f":"IF(AC24=0,\"\",AC24)","v":""},null,"ヒットマン","近接・射撃・魔術+1　命中F値-1 (下限3)",null,null,null,null,null,null,null,null,null,"ルーンランス","近接","至近","光",45,12,null,null,-1,null,null,null,22,5,null,null,null,null,null,null,1,1,1,1,1,1,"「種別：魔」のｽｷﾙによる攻撃の与ダメージ+2D10",null,"ラバーメイル",50,null,null,null,null,null,-1,null,null,10,8,5,null,null,-1,-2,null,null,4,null,null,null,"ポインター",20,null,1,null,null,null,null,null,null,null,null,-8,-5,-2,-2,null,null,null,null,null,null,"特殊効果なし"]
[21,"オルタネイトウォーリア",{"$f":"IF(CS!$D$11=VL用1!B25,ML,0)+IF(CS!$D$12=VL用1!B25,SL,0)+IF(CS!$D$13=VL用1!B25,EL,0)","v":0},3,3,1,4,1,4,6,6,3,3,"1戦闘3回、「代償:NMP」のｽｷﾙを「代償:[N×6]HP」として使用できる。",null,null,null,null,null,null,null,null,null,null,"交",{"$f":"COUNTIF(CS!$AW$30:$AY$57,\"*\"&Y25&\"*\")","v":0},{"$f":"IF(Z25*2>C25,\"×\",\"○\")","v":"○"},"近",{"$f":"IF(MC=B27,1,0)+IF(AND(SL>=3,SC=B27)=TRUE,1,0)","v":0},{"$f":"IF(AC25=0,\"\",AC25)","v":""},null,"アヴォイダー","回避+2　回避C値-1(下限16) 回避F値-1(下限3)",null,null,null,null,null,null,null,null,null,"アンプリファー","近接","超至近","近",45,12,null,null,null,1,null,null,20,23,null,null,null,6,-1,-1,-1,-1,-1,-1,-1,-1,"[魔法武器(遠隔/遠)] 命中F値+2 (上限8)",null,"バトルフォーム",50,1,null,null,null,null,null,null,null,2,2,null,null,2,-2,null,null,null,null,null,null,null,"バトルメガネ",20,null,null,1,null,null,null,null,null,null,null,-8,-5,-2,-2,null,null,null,null,null,null,"特殊効果なし"]
[22,"ブラッディコントラクター",{"$f":"IF(CS!$D$11=VL用1!B26,ML,0)+IF(CS!$D$12=VL用1!B26,SL,0)+IF(CS!$D$13=VL用1!B26,EL,0)","v":0},2,2,2,2,4,3,5,5,0,3,{"$f":"\"耐久+\"&C26+5&\" 攻撃命中ごとにHPを\"&CL&\"点回復\"","v":"耐久+5 攻撃命中ごとにHPを0点回復"},null,null,null,null,null,null,null,null,null,null,"血",{"$f":"COUNTIF(CS!$AW$30:$AY$57,\"*\"&Y26&\"*\")","v":0},"○","遠",{"$f":"IF(MC=B27,1,0)+IF(AND(SL>=3,SC=B27)=TRUE,1,0)","v":0},"",null,"レジスター","抵抗+2　敵からの攻撃によるBS30%無効",null,null,null,null,null,null,null,null,null,"魔法剣アスタリスク","近接","超至近","近",50,11,null,null,null,null,1,null,25,18,null,null,null,3,1,1,1,1,null,1,null,null,"[剣] [魔法武器(遠隔/近)] 【集中】+3",null,"魔力供給装甲",50,null,null,null,null,null,-5,7,7,3,5,5,10,null,null,null,null,null,null,null,null,null,"高等魔術書",20,null,null,null,1,null,null,null,null,null,null,-8,-5,-2,-2,null,null,null,null,null,null,"特殊効果なし"]
[23,"カラーインファイター",{"$f":"IF(CS!$D$11=VL用1!B27,ML,0)+IF(CS!$D$12=VL用1!B27,SL,0)+IF(CS!$D$13=VL用1!B27,EL,0)","v":0},3,0,3,2,3,7,6,3,0,0,"全耐性+1 後衛に居る場合、命中F値+2 (上限10)",null,null,null,null,null,null,null,null,null,null,"色",{"$f":"COUNTIF(CS!$AW$30:$AY$57,\"*\"&Y27&\"*\")","v":0},"○","炎",{"$f":"IF(MC=B30,-ROUNDUP(C30/2,0),0)+IF(AND(SL>=3,SC=B30)=TRUE,-ROUNDUP(C30/2,0),0)\n+IF(MC=B31,ROUNDUP(C31/4,0),0)+IF(AND(SL>=3,SC=B31)=TRUE,ROUNDUP(C31/4,0),0)\n+IF(MC=B27,1,0)+IF(AND(SL>=3,SC=B27)=TRUE,1,0)","v":0},"",null,"ロバストネス",{"$f":"\"耐久+\"&CL+10","v":"耐久+10"},null,null,null,null,null,null,null,null,null,"紫電","近接","超至近","雷",50,8,1,null,null,null,null,2,18,13,null,null,null,null,-1,-2,null,null,null,3,-3,1,"【反射】+3",null,"カモフラージュセット",60,null,1,null,null,null,null,2,null,7,6,null,null,1,1,null,null,null,null,null,null,null,"ディバインピース",20,null,null,null,null,1,null,null,null,null,null,-8,-5,-2,-2,null,null,null,null,null,null,"特殊効果なし"]
[24,"カオストリックスター",{"$f":"IF(CS!$D$11=VL用1!B28,ML,0)+IF(CS!$D$12=VL用1!B28,SL,0)+IF(CS!$D$13=VL用1!B28,EL,0)","v":0},2,2,4,2,2,6,6,6,3,0,"戦闘中の消費ｱｲﾃﾑの消費を30%で無効",null,null,null,null,null,null,null,null,null,null,"混",{"$f":"COUNTIF(CS!$AW$30:$AY$57,\"*\"&Y28&\"*\")","v":0},"○","氷",{"$f":"IF(MC=B30,ROUNDUP(C30/6,0),0)+IF(AND(SL>=3,SC=B30)=TRUE,ROUNDUP(C30/6,0),0)\n+IF(MC=B31,ROUNDUP(C31/4,0),0)+IF(AND(SL>=3,SC=B31)=TRUE,ROUNDUP(C31/4,0),0)\n+IF(MC=B27,1,0)+IF(AND(SL>=3,SC=B27)=TRUE,1,0)","v":0},"",null,"カレイジャス",{"$f":"\"精神+\"&CL+3","v":"精神+3"},null,null,null,null,null,null,null,null,null,"魔断チェーンソー","近接","超至近","近",55,14,null,null,-1,null,null,-3,32,21,null,null,5,null,2,1,null,null,null,null,null,null,"【肉体】+4 命中C値-1(下限16) 命中F値+2(上限8)",null,"スカーレットドレス",60,null,null,1,null,null,-5,2,2,12,15,null,6,null,null,5,null,-5,null,null,null,null,"編み笠",20,null,null,null,null,null,null,3,3,null,null,null,null,null,null,null,null,null,null,null,null,"特殊効果なし"]
[25,"エレクトロエンフォーサー",{"$f":"IF(CS!$D$11=VL用1!B29,ML,0)+IF(CS!$D$12=VL用1!B29,SL,0)+IF(CS!$D$13=VL用1!B29,EL,0)","v":0},3,3,2,2,2,6,2,5,3,3,"マヒ80%無効 1戦闘1回自身の判定を振り直せる",null,null,null,null,null,null,null,null,null,null,"雷",{"$f":"COUNTIF(CS!$AW$30:$AY$57,\"*\"&Y29&\"*\")","v":0},"○","水",{"$f":"IF(MC=B30,ROUNDUP(C30/6,0),0)+IF(AND(SL>=3,SC=B30)=TRUE,ROUNDUP(C30/6,0),0)\n+IF(MC=B31,-ROUNDUP(C31/2,0),0)+IF(AND(SL>=3,SC=B31)=TRUE,-ROUNDUP(C31/2,0),0)\n+IF(MC=B27,1,0)+IF(AND(SL>=3,SC=B27)=TRUE,1,0)","v":0},"",null,"ブロッカー",{"$f":"\"【物防】【魔防】+\"&INT(CL/3)&\" 「種別：庇」ｽｷﾙ 3/Main使用可 自身への「種別：回」のHP回復量+\"&CL","v":"【物防】【魔防】+0 「種別：庇」ｽｷﾙ 3/Main使用可 自身への「種別：回」のHP回復量+0"},null,null,null,null,null,null,null,null,null,"ジュエルスタッフ","近接","超至近","近",55,12,null,null,null,2,null,null,14,9,null,null,null,3,-1,-1,null,null,null,null,null,null,"[魔法武器(遠隔/遠)]",null,"ティンクルガウン",65,null,null,null,null,2,null,null,null,1,6,5,5,-1,-1,null,null,null,null,null,4,null,"マグマーナ",20,null,null,null,null,null,null,null,null,null,null,null,null,null,null,3,null,null,null,null,null,"火傷(X)50%無効"]
[26,"フリーズキャッスル",{"$f":"IF(CS!$D$11=VL用1!B30,ML,0)+IF(CS!$D$12=VL用1!B30,SL,0)+IF(CS!$D$13=VL用1!B30,EL,0)","v":0},2,2,4,3,2,2,4,4,4,6,{"$f":"\"凍結80%無効 氷水風耐性+\"&ROUNDUP(C30/6,0)&\" 炎耐性-\"&ROUNDUP(C30/2,0)","v":"凍結80%無効 氷水風耐性+0 炎耐性-0"},null,null,null,null,null,null,null,null,null,null,"氷",{"$f":"COUNTIF(CS!$AW$30:$AY$57,\"*\"&Y30&\"*\")","v":0},"○","雷",{"$f":"IF(MC=B27,1,0)+IF(AND(SL>=3,SC=B27)=TRUE,1,0)","v":0},"",null,"ギャンブラー","1戦闘2回、判定直後に自身の判定を振り直せる",null,null,null,null,null,null,null,null,null,"コールドフィスト","近接","超至近","氷",60,9,-1,null,null,null,null,2,38,25,null,null,null,null,1,-1,-3,3,1,null,null,null,"[素手武器] 【肉体】+2",null,"シノビスーツ",70,null,null,2,null,null,4,null,null,4,2,null,null,null,null,null,null,null,null,null,null,null,"ブリザリア",20,null,null,null,null,null,null,null,null,null,null,null,null,null,null,null,3,null,null,null,null,"凍結50%無効"]
[27,"フレイムソーサラー",{"$f":"IF(CS!$D$11=VL用1!B31,ML,0)+IF(CS!$D$12=VL用1!B31,SL,0)+IF(CS!$D$13=VL用1!B31,EL,0)","v":0},3,3,2,3,2,5,6,6,0,2,{"$f":"\"命中C値-1(下限16) 命中F値+1(上限8) 炎氷耐性+\"&ROUNDUP(C31/4,0)&\" 水耐性-\"&ROUNDUP(C31/2,0)","v":"命中C値-1(下限16) 命中F値+1(上限8) 炎氷耐性+0 水耐性-0"},null,null,null,null,null,null,null,null,null,null,"炎",{"$f":"COUNTIF(CS!$AW$30:$AY$57,\"*\"&Y31&\"*\")","v":0},"○","風",{"$f":"IF(MC=B30,ROUNDUP(C30/6,0),0)+IF(AND(SL>=3,SC=B30)=TRUE,ROUNDUP(C30/6,0),0)\n+IF(MC=B27,1,0)+IF(AND(SL>=3,SC=B27)=TRUE,1,0)","v":0},"",null,"スピードスター","敏捷+8　移動コスト-1(ｻﾌﾞ下限1 ﾒｲﾝ下限5)",null,null,null,null,null,null,null,null,null,"スターセイバー","近接","超至近","光",60,10,null,null,null,null,null,null,30,18,null,null,null,null,1,null,null,null,null,1,null,2,"[剣] 呪い無効",null,"ワイバーンコート",70,null,null,null,null,1,null,null,null,12,11,null,6,2,1,2,-3,-1,-1,2,-2,null,"ウェーブリス",20,null,null,null,null,null,null,null,null,null,null,null,null,null,null,null,null,3,null,null,null,"睡眠50%無効"]
[28,"レーザースニッパー",{"$f":"IF(CS!$D$11=VL用1!B32,ML,0)+IF(CS!$D$12=VL用1!B32,SL,0)+IF(CS!$D$13=VL用1!B32,EL,0)","v":0},2,3,2,2,2,7,8,5,0,5,"攻撃命中時、20%で全攻撃対象の物防・魔防・全耐性を0として算出",null,null,null,null,null,null,null,null,null,null,"光",{"$f":"COUNTIF(CS!$AW$30:$AY$57,\"*\"&Y32&\"*\")","v":0},"○","光",{"$f":"IF(MC=B27,1,0)+IF(AND(SL>=3,SC=B27)=TRUE,1,0)","v":0},"",null,"ヒーロー","BP上限値+2　全F値-2(下限3)",null,null,null,null,null,null,null,null,null,"フレアアックス","近接","超至近","炎",60,11,null,null,null,null,null,-2,33,19,null,null,null,null,null,null,2,2,-3,null,null,null,"凍結無効",null,"ホワイトナイトコート",70,null,null,null,null,1,null,null,null,8,15,9,null,null,2,-3,2,2,2,-3,-3,null,"スパーキー",20,null,null,null,null,null,null,null,null,null,null,null,null,null,null,null,null,null,3,null,null,"マヒ50%無効"]
[29,"マジックエキスパート",{"$f":"IF(CS!$D$11=VL用1!B33,ML,0)+IF(CS!$D$12=VL用1!B33,SL,0)+IF(CS!$D$13=VL用1!B33,EL,0)","v":0},2,2,3,3,3,3,4,8,0,3,"攻撃が1体以上の敵に命中した場合、20%で覚醒自身に付与",null,null,null,null,null,null,null,null,null,null,"専",{"$f":"COUNTIF(CS!$AW$30:$AY$57,\"*\"&Y33&\"*\")","v":0},"○",null,null,null,null,null,null,null,null,null,null,null,null,null,null,null,"スターティンクル","近接","超至近","光",65,12,null,null,null,1,null,1,12,24,null,null,null,null,null,null,null,null,null,null,1,1,"【知識】+2 【幸運】-2",null,"ブラックヴェーラー",80,null,null,1,null,1,null,null,null,4,4,null,8,-1,-1,1,1,1,1,1,-3,null,"ストムルム",20,null,null,null,null,null,null,null,null,null,null,null,null,null,null,null,null,null,null,3,null,"疲労50%無効"]
[null,"マインドバニッシャー",{"$f":"IF(CS!$D$11=VL用1!B34,ML,0)+IF(CS!$D$12=VL用1!B34,SL,0)+IF(CS!$D$13=VL用1!B34,EL,0)","v":0},2,3,2,3,3,8,1,1,1,1,{"$f":"\"攻撃によるBS付与を無効にして、〈無〉\"&C34+CL+3&\"点を与えてもよい\"","v":"攻撃によるBS付与を無効にして、〈無〉3点を与えてもよい"},null,null,null,null,null,null,null,null,null,null,"幻",{"$f":"COUNTIF(CS!$AW$30:$AY$57,\"*\"&Y34&\"*\")","v":0},"○",null,null,null,null,null,null,null,null,null,null,null,null,null,null,null,"神秘の水球","近接","超至近","光",70,12,null,null,1,1,null,null,6,26,null,null,null,null,-2,null,1,1,3,null,null,null,"[魔法武器(遠隔/水)] 1戦闘1回、BS付与無効",null,"ウェイブメイル",80,null,null,1,null,null,null,null,null,10,8,16,null,4,2,-1,-1,-1,-1,null,-2,null,"シャイネア",20,null,null,null,null,null,null,null,null,null,null,null,null,null,null,null,null,null,null,null,3,"封印50%無効"]
[3,"オブジェクトコマンダー",{"$f":"IF(CS!$D$11=VL用1!B35,ML,0)+IF(CS!$D$12=VL用1!B35,SL,0)+IF(CS!$D$13=VL用1!B35,EL,0)","v":0},4,4,1,4,1,2,0,0,3,0,"戦闘中、自身の配置ﾕﾆｯﾄ消滅時、20%で同名ﾕﾆｯﾄを同マス再配置",null,null,null,null,null,null,null,null,null,null,"物",{"$f":"COUNTIF(CS!$AW$30:$AY$57,\"*\"&Y35&\"*\")","v":0},"○",null,null,null,null,null,null,null,null,null,null,null,null,null,null,null,"マジカルタロット","近接","超至近","近",70,12,1,null,null,1,null,null,13,22,null,10,null,null,null,null,null,null,null,null,null,null,"[魔法武器(中距離/遠)]",null,"ギアテックコート",80,null,null,1,null,1,-7,8,8,15,14,10,null,2,3,null,null,-3,-3,2,null,null,"シルバーリング",20,null,null,null,null,null,null,null,null,null,null,null,null,2,1,null,null,null,null,null,null,"毒(X)50%無効"]
[3,"オパルスナイト",{"$f":"IF(CS!$D$11=VL用1!B36,ML,0)+IF(CS!$D$12=VL用1!B36,SL,0)+IF(CS!$D$13=VL用1!B36,EL,0)","v":0},3,3,3,3,3,4,0,0,0,0,{"$f":"\"BPを消費するたびに、HPを\"&CL&\"点、MPを\"&ROUNDDOWN(C36/2,0)&\"点回復する\"","v":"BPを消費するたびに、HPを0点、MPを0点回復する"},null,null,null,null,null,null,null,null,null,null,"宝",{"$f":"COUNTIF(CS!$AW$30:$AY$57,\"*\"&Y36&\"*\")","v":0},"○",null,null,null,null,null,null,null,null,null,null,null,null,null,null,null,"名刀 -桜花-","近接","超至近","近",75,11,1,null,null,null,null,null,26,23,null,null,null,null,2,null,null,null,null,null,1,null,"[剣] 戦闘で最初の攻撃の命中判定の達成値+4",null,"マジックプロテクター",90,null,null,null,2,null,null,null,null,2,10,null,-8,-2,-2,null,null,null,null,null,null,null,"四葉ストラップ",20,null,null,null,null,null,null,null,null,null,null,null,4,null,null,null,null,null,null,null,null,"調査C値-2 (下限16)"]
[4,"ルーンデコーダー",{"$f":"IF(CS!$D$11=VL用1!B37,ML,0)+IF(CS!$D$12=VL用1!B37,SL,0)+IF(CS!$D$13=VL用1!B37,EL,0)","v":0},3,3,0,3,3,3,3,7,2,4,{"$f":"\"命中した攻撃属性の敵耐性が負の場合、与ﾀﾞﾒｰｼﾞ+\"&C37*3","v":"命中した攻撃属性の敵耐性が負の場合、与ﾀﾞﾒｰｼﾞ+0"},null,null,null,null,null,null,null,null,null,null,"印",{"$f":"COUNTIF(CS!$AW$30:$AY$57,\"*\"&Y37&\"*\")","v":0},"○",null,null,null,null,null,null,null,null,null,null,null,null,null,null,null,"天雷杖","近接","超至近","雷",80,12,null,null,null,1,null,2,12,21,null,null,null,null,-1,-1,null,null,null,2,null,2,"[魔法武器(超遠隔/雷)] 通常攻撃のﾀﾞﾒｰｼﾞ+4D10",null,"ソルジャーメイル",90,1,null,null,null,null,-3,null,null,14,10,10,null,2,1,null,null,null,-3,null,null,null,"四葉ペンダント",20,null,null,null,null,null,null,null,null,null,null,null,4,null,null,null,null,null,null,null,null,"調査F値-1 (下限3)"]
[4,"サムライソウル",{"$f":"IF(CS!$D$11=VL用1!B38,ML,0)+IF(CS!$D$12=VL用1!B38,SL,0)+IF(CS!$D$13=VL用1!B38,EL,0)","v":0},3,3,3,3,0,7,12,10,-5,-5,{"$f":"\"【耐久】-\"&C38*2&\" 【精神】+\"&C38&\" [剣]装備時、敵前衛への与ダメージ+\"&CL","v":"【耐久】-0 【精神】+0 [剣]装備時、敵前衛への与ダメージ+0"},null,null,null,null,null,null,null,null,null,null,"士",{"$f":"COUNTIF(CS!$AW$30:$AY$57,\"*\"&Y38&\"*\")","v":0},"○",null,null,null,null,null,null,null,null,null,null,null,null,null,null,null,"アゾット剣","近接","超至近","近",80,12,null,null,null,1,1,1,26,19,null,null,null,10,1,-2,1,1,null,1,null,null,"[剣] [魔法武器(至近/近)] 全基本能力値+2",null,"精霊の鎧",100,null,null,1,null,1,3,5,5,6,13,null,7,1,1,1,1,1,1,1,null,null,"アイアングローブ",20,null,null,null,null,null,-2,null,null,5,null,4,null,2,null,null,null,null,-1,null,null,"特殊効果なし"]
[5,"タイムドリフター",{"$f":"IF(CS!$D$11=VL用1!B39,ML,0)+IF(CS!$D$12=VL用1!B39,SL,0)+IF(CS!$D$13=VL用1!B39,EL,0)","v":0},2,3,0,4,3,7,3,6,1,1,"回避C値-1 (下限値：17)",null,null,null,null,null,null,null,null,null,null,"時",{"$f":"COUNTIF(CS!$AW$30:$AY$57,\"*\"&Y39&\"*\")","v":0},"○",null,null,null,null,null,null,null,null,null,null,null,null,null,null,null,"飛竜の槍","近接","至近","近",85,10,null,null,null,null,null,4,35,20,null,null,6,null,3,1,1,1,1,1,1,1,"命中F値-1 (下限4)",null,"邪神の鎧",110,-1,-1,-2,-1,-2,null,15,15,18,18,15,20,null,null,null,null,null,null,null,null,null,"アイアンヘルム",20,null,null,null,null,null,-2,null,null,5,null,4,null,1,1,null,null,null,-1,null,null,"特殊効果なし"]
[5,"ヴォイドクリエイター",{"$f":"IF(CS!$D$11=VL用1!B40,ML,0)+IF(CS!$D$12=VL用1!B40,SL,0)+IF(CS!$D$13=VL用1!B40,EL,0)","v":0},2,2,2,2,2,7,3,9,4,0,{"$f":"\"〈無〉ﾀﾞﾒｰｼﾞで【HP】0となった場合、【HP】1にする。【精神】+\"&C40+10","v":"〈無〉ﾀﾞﾒｰｼﾞで【HP】0となった場合、【HP】1にする。【精神】+10"},null,null,null,null,null,null,null,null,null,null,"虚",{"$f":"COUNTIF(CS!$AW$30:$AY$57,\"*\"&Y40&\"*\")","v":0},"○",null,null,null,null,null,null,null,null,null,null,null,null,null,null,null,"クリスタルロッド","近接","超至近","近",90,11,null,null,null,1,null,null,10,27,null,null,null,-5,-2,-2,1,1,1,1,1,1,"[魔法武器(遠隔/遠)] 全ｽｷﾙ代償-1MP(下限4MP)",null,"エナジーシャツ",120,null,null,null,null,null,null,12,12,14,16,10,null,2,2,null,null,null,null,null,null,null,"アイアンシューズ",20,null,null,null,null,null,-2,null,null,5,null,4,null,null,2,null,null,null,-1,null,null,"特殊効果なし"]
[6,"ヴァイタルミュール",{"$f":"IF(CS!$D$11=VL用1!B41,ML,0)+IF(CS!$D$12=VL用1!B41,SL,0)+IF(CS!$D$13=VL用1!B41,EL,0)","v":0},2,2,2,2,4,6,0,0,5,5,"「種別：回」ｽｷﾙ使用の行動手番中の命中達成値+2",null,null,null,null,null,null,null,null,null,null,"命",{"$f":"COUNTIF(CS!$AW$30:$AY$57,\"*\"&Y41&\"*\")","v":0},"○",null,null,null,null,null,null,null,null,null,null,null,null,null,null,null,"ディバインロッド","近接","超至近","光",90,11,null,null,null,1,1,null,11,29,null,null,null,4,1,1,null,null,null,null,null,3,"[魔法武器(遠隔/光)] 回のｽｷﾙのHP回復量+10",null,"ダイヤモンドメイル",140,null,null,1,null,1,3,null,null,18,14,null,null,2,2,2,-2,-2,-2,1,1,null,"インカローズ",20,null,null,null,null,null,null,null,null,null,null,null,null,-1,-1,null,null,null,null,null,null,"[BP上限値]+1"]
[6,"ウィンドルーラー",{"$f":"IF(CS!$D$11=VL用1!B42,ML,0)+IF(CS!$D$12=VL用1!B42,SL,0)+IF(CS!$D$13=VL用1!B42,EL,0)","v":0},2,2,3,2,3,10,1,1,0,0,"疲労80%無効 ﾒｲﾝｱｸｼｮﾝの移動ｺｽﾄ-2 (下限5)",null,null,null,null,null,null,null,null,null,null,"風",{"$f":"COUNTIF(CS!$AW$30:$AY$57,\"*\"&Y42&\"*\")","v":0},"○",null,null,null,null,null,null,null,null,null,null,null,null,null,null,null,"デュエリングシールド","近接","超至近","近",100,14,null,null,1,null,null,-4,30,20,8,6,10,null,2,2,null,null,null,null,null,null,"特殊効果なし",null,"ドラゴンアーマー",160,null,null,-1,null,null,-2,null,null,26,24,null,null,null,null,null,null,null,null,null,null,null,"レピドライト",20,null,null,null,null,null,null,null,null,null,null,null,2,null,null,null,null,null,null,null,null,"1ｾｯｼｮﾝ1回、判定振り直し可能"]
[7,"ウォーターチューナー",{"$f":"IF(CS!$D$11=VL用1!B43,ML,0)+IF(CS!$D$12=VL用1!B43,SL,0)+IF(CS!$D$13=VL用1!B43,EL,0)","v":0},2,2,2,3,2,3,6,4,4,1,"10C終了までﾀﾞﾒｰｼﾞ無効 命中C値+2 (上限20) 回避C値-1 (下限16)",null,null,null,null,null,null,null,null,null,null,"水",{"$f":"COUNTIF(CS!$AW$30:$AY$57,\"*\"&Y43&\"*\")","v":0},"○",null,null,null,null,null,null,null,null,null,null,null,null,null,null,null,"風魔槍 -鎌鼬-","近接","至近","風",100,11,1,null,null,null,null,4,29,16,null,null,null,null,1,1,null,null,null,-3,3,null,"通常攻撃時5MPで「射程：遠隔」に変更可",null,"パワードスーツ",200,1,1,1,1,1,-3,8,8,25,25,20,10,null,null,2,2,-3,-3,null,2,null,"フェザーハット",20,null,null,null,null,null,3,null,null,null,null,2,null,null,null,null,null,null,null,null,null,"特殊効果なし"]
[7,null,null,null,null,null,null,null,null,null,null,null,null,null,null,null,null,null,null,null,null,null,null,null,null,null,null,null,null,null,null,null,null,null,null,null,null,null,null,null,null,null,"大業物：皆中","近接","超至近","近",100,14,2,null,null,null,null,null,20,11,null,null,null,null,2,2,null,null,null,null,null,null,"[剣] 【集中】+7",null,null,null,null,null,null,null,null,null,null,null,null,null,null,null,null,null,null,null,null,null,null,null,null,"パワーベルト",25,null,null,null,null,null,null,5,null,null,null,null,null,null,null,null,null,null,null,null,null,"特殊効果なし"]
[8,null,null,null,null,null,null,null,null,null,null,null,null,null,null,null,null,null,null,null,null,null,null,null,null,null,null,null,null,null,null,null,null,null,null,null,null,null,null,null,null,null,"ウィンドブーメラン","近接","遠隔","風",100,13,1,null,null,1,null,2,31,23,null,null,null,null,-2,3,null,null,1,-3,3,null,"疲労無効",null,null,null,null,null,null,null,null,null,null,null,null,null,null,null,null,null,null,null,null,null,null,null,null,"マジックジュエル",25,null,null,null,null,null,null,null,5,null,null,null,null,null,null,null,null,null,null,null,null,"特殊効果なし"]
[8,null,null,null,null,null,null,null,null,null,null,null,null,null,null,null,null,null,null,null,null,null,null,null,null,null,null,null,null,null,null,null,null,null,null,null,null,null,null,null,null,null,"ゴッドハンド","近接","超至近","近",110,9,-1,null,null,-1,null,6,41,null,null,null,null,null,2,-2,1,1,1,1,1,2,"[素手武器] 【肉体】+3 【反射】+3 【洞察】+3",null,null,null,null,null,null,null,null,null,null,null,null,null,null,null,null,null,null,null,null,null,null,null,null,"ポテンシャルヘッド",25,null,null,null,null,null,null,null,null,null,null,6,3,null,null,null,null,null,null,null,null,"特殊効果なし"]
[9,null,null,null,null,null,null,null,null,null,null,null,null,null,null,null,null,null,null,null,null,null,null,null,null,null,null,null,null,null,null,null,null,null,null,null,null,null,null,null,null,null,"灼火のアミュレット","近接","超至近","炎",110,12,null,null,1,null,1,null,16,37,null,null,null,5,null,null,3,3,-4,null,null,null,"[魔法武器(遠隔/炎)] 火傷(X)無効",null,null,null,null,null,null,null,null,null,null,null,null,null,null,null,null,null,null,null,null,null,null,null,null,"ウェポンウェイト",25,null,null,null,null,null,null,null,null,null,null,null,null,1,null,null,null,null,null,null,null,"命中F値-1 (下限3)"]
[9,null,null,null,null,null,null,null,null,null,null,null,null,null,null,null,null,null,null,null,null,null,null,null,null,null,null,null,null,null,null,null,null,null,null,null,null,null,null,null,null,null,"ディープロッド","近接","超至近","水",110,12,null,null,null,1,1,null,17,35,null,null,null,3,-1,-1,2,2,3,-2,null,null,"[魔法武器(遠隔/水)] 睡眠無効",null,null,null,null,null,null,null,null,null,null,null,null,null,null,null,null,null,null,null,null,null,null,null,null,"バトルスニーカー",30,null,null,null,null,null,null,null,null,null,null,2,2,2,null,null,null,null,null,null,null,"ｻﾌﾞｱｸｼｮﾝの移動ｺｽﾄ-1(下限1)"]
[10,null,null,null,null,null,null,null,null,null,null,null,null,null,null,null,null,null,null,null,null,null,null,null,null,null,null,null,null,null,null,null,null,null,null,null,null,null,null,null,null,null,"トールハンマー","近接","超至近","雷",115,10,-1,null,-1,null,null,-3,49,32,null,null,null,null,2,-1,null,null,-2,5,-2,null,"マヒ無効",null,null,null,null,null,null,null,null,null,null,null,null,null,null,null,null,null,null,null,null,null,null,null,null,"トライアングルギア",30,null,null,null,null,null,null,null,null,null,null,null,null,null,null,2,2,null,2,null,null,"特殊効果なし"]
[10,null,null,null,null,null,null,null,null,null,null,null,null,null,null,null,null,null,null,null,null,null,null,null,null,null,null,null,null,null,null,null,null,null,null,null,null,null,null,null,null,null,"極光の神槍","近接","至近","氷光",120,12,2,null,null,2,null,null,27,17,null,null,null,null,null,null,null,3,null,null,null,3,"特殊効果なし",null,null,null,null,null,null,null,null,null,null,null,null,null,null,null,null,null,null,null,null,null,null,null,null,"スカイヘルム",30,null,null,null,null,null,null,null,null,3,3,3,2,2,null,null,null,null,null,null,null,"特殊効果なし"]
[11,null,null,null,null,null,null,null,null,null,null,null,null,null,null,null,null,null,null,null,null,null,null,null,null,null,null,null,null,null,null,null,null,null,null,null,null,null,null,null,null,null,"狂気の魔剣","近接","超至近","近",120,13,1,1,null,1,null,-10,55,48,null,null,-30,-25,4,4,-3,-3,-3,-3,-3,-6,"[剣] [魔法武器(遠隔/近)] 回避F値+4 (上限10)",null,null,null,null,null,null,null,null,null,null,null,null,null,null,null,null,null,null,null,null,null,null,null,null,"スカイグローブ",30,null,null,null,null,null,null,null,null,3,3,3,2,1,1,null,null,null,null,null,null,"特殊効果なし"]
[11,null,null,null,null,null,null,null,null,null,null,null,null,null,null,null,null,null,null,null,null,null,null,null,null,null,null,null,null,null,null,null,null,null,null,null,null,null,null,null,null,null,"エクリプスデイ","近接","超至近","近",130,12,null,null,null,2,2,null,12,31,null,null,null,10,1,1,null,null,null,null,null,3,"[魔法武器(遠隔/近遠光)]",null,null,null,null,null,null,null,null,null,null,null,null,null,null,null,null,null,null,null,null,null,null,null,null,"スカイブーツ",30,null,null,null,null,null,null,null,null,3,3,3,2,null,2,null,null,null,null,null,null,"特殊効果なし"]
[12,null,null,null,null,null,null,null,null,null,null,null,null,null,null,null,null,null,null,null,null,null,null,null,null,null,null,null,null,null,null,null,null,null,null,null,null,null,null,null,null,null,"インフィニティロッド","近接","超至近","近",130,13,-2,-2,2,-3,2,-3,8,45,null,null,null,10,2,2,1,1,1,1,1,2,"[魔法武器(遠隔/炎)] 1戦闘3回判定振り直し可能",null,null,null,null,null,null,null,null,null,null,null,null,null,null,null,null,null,null,null,null,null,null,null,null,"エナジーギア",30,null,null,null,null,null,null,null,null,null,null,null,null,1,1,null,null,null,null,null,null,"攻撃の〈近〉〈遠〉与ﾀﾞﾒｰｼﾞ+1D10"]
[12,null,null,null,null,null,null,null,null,null,null,null,null,null,null,null,null,null,null,null,null,null,null,null,null,null,null,null,null,null,null,null,null,null,null,null,null,null,null,null,null,null,"ドラゴンズブレード","近接","至近","近",130,9,null,null,null,null,null,null,49,33,null,null,null,null,1,1,2,2,null,null,1,null,"[剣] 全基本能力値+2",null,null,null,null,null,null,null,null,null,null,null,null,null,null,null,null,null,null,null,null,null,null,null,null,"ルビーギア",30,null,null,null,null,null,null,null,null,null,null,null,null,-1,-1,4,null,-2,null,null,null,"攻撃の〈炎〉与ﾀﾞﾒｰｼﾞ+[1D10+5]"]
[13,null,null,null,null,null,null,null,null,null,null,null,null,null,null,null,null,null,null,null,null,null,null,null,null,null,null,null,null,null,null,null,null,null,null,null,null,null,null,null,null,null,"サイバーセイバー","近接","超至近","近",140,10,2,null,null,null,null,2,31,16,null,null,null,null,2,2,null,null,null,null,null,null,"[剣] 命中C値-1 (下限15)",null,null,null,null,null,null,null,null,null,null,null,null,null,null,null,null,null,null,null,null,null,null,null,null,"ダンブライトギア",30,null,null,null,null,null,null,null,null,null,null,null,null,-1,-1,-2,4,null,null,null,null,"攻撃の〈氷〉与ﾀﾞﾒｰｼﾞ+[1D10+5]"]
[13,null,null,null,null,null,null,null,null,null,null,null,null,null,null,null,null,null,null,null,null,null,null,null,null,null,null,null,null,null,null,null,null,null,null,null,null,null,null,null,null,null,"七色の法典","近接","超至近","風",150,12,null,null,1,2,1,2,10,37,null,null,null,null,null,null,2,1,2,-2,null,null,"[魔法武器(遠隔/風)] 全ｽｷﾙ代償-1MP(下限4MP)",null,null,null,null,null,null,null,null,null,null,null,null,null,null,null,null,null,null,null,null,null,null,null,null,"サファイアギア",30,null,null,null,null,null,null,null,null,null,null,null,null,-1,-1,null,null,4,-2,null,null,"攻撃の〈水〉与ﾀﾞﾒｰｼﾞ+[1D10+5]"]
[null,null,null,null,null,null,null,null,null,null,null,null,null,null,null,null,null,null,null,null,null,null,null,null,null,null,null,null,null,null,null,null,null,null,null,null,null,null,null,null,null,null,"EXCALIBER-C","近接","超至近","近",170,12,1,null,null,1,1,null,51,42,null,null,15,5,3,2,1,1,1,1,1,1,{"$f":"\"[剣] [魔法武器(遠隔/光)] 命中時、HP\"&CL+10&\"点回復\"","v":"[剣] [魔法武器(遠隔/光)] 命中時、HP10点回復"},null,null,null,null,null,null,null,null,null,null,null,null,null,null,null,null,null,null,null,null,null,null,null,null,"トパーズギア",30,null,null,null,null,null,null,null,null,null,null,null,null,-1,-1,null,null,null,4,-2,null,"攻撃の〈雷〉与ﾀﾞﾒｰｼﾞ+[1D10+5]"]
[null,null,null,null,null,null,null,null,null,null,null,null,null,null,null,null,null,null,null,null,null,null,null,null,null,null,null,null,null,null,null,null,null,null,null,null,null,null,null,null,null,null,"―射撃武器―",{"$f":"\"\"","v":""},{"$f":"\"\"","v":""},{"$f":"\"\"","v":""},{"$f":"\"\"","v":""},null,null,null,null,null,null,null,null,null,null,null,null,null,null,null,null,null,null,null,null,null,{"$f":"\"\"","v":""},null,null,null,null,null,null,null,null,null,null,null,null,null,null,null,null,null,null,null,null,null,null,null,null,"エメラルドギア",30,null,null,null,null,null,null,null,null,null,null,null,null,-1,-1,null,-2,null,null,4,null,"攻撃の〈風〉与ﾀﾞﾒｰｼﾞ+[1D10+5]"]
[null,null,null,null,null,null,null,null,null,null,null,null,null,null,null,null,null,null,null,null,null,null,null,null,null,null,null,null,null,null,null,null,null,null,null,null,null,null,null,null,null,null,"9mm拳銃","射撃","遠隔","遠",10,10,null,-1,null,null,null,null,17,8,null,null,null,null,null,null,null,null,null,null,null,null,"特殊効果なし",null,null,null,null,null,null,null,null,null,null,null,null,null,null,null,null,null,null,null,null,null,null,null,null,"ヘリオドールギア",30,null,null,null,null,null,null,null,null,null,null,null,null,-2,-2,null,null,null,null,null,4,"攻撃の〈光〉与ﾀﾞﾒｰｼﾞ+[1D10+5]"]
[null,null,null,null,null,null,null,null,null,null,null,null,null,null,null,null,null,null,null,null,null,null,null,null,null,null,null,null,null,null,null,null,null,null,null,null,null,null,null,null,null,null,"スローイングダガー","射撃","遠隔x","遠",10,10,null,null,null,null,null,1,11,null,null,null,null,null,null,null,null,null,null,null,null,null,"【肉体】+2 【集中】+2",null,null,null,null,null,null,null,null,null,null,null,null,null,null,null,null,null,null,null,null,null,null,null,null,"ダイスストラップ",35,null,null,null,null,null,null,null,null,null,null,null,null,null,null,null,null,null,null,null,null,"ｸﾘﾃｨｶﾙした攻撃の与ﾀﾞﾒｰｼﾞ+3D10"]
[null,null,null,null,null,null,null,null,null,null,null,null,null,null,null,null,null,null,null,null,null,null,null,null,null,null,null,null,null,null,null,null,null,null,null,null,null,null,null,null,null,null,"スリングショット","射撃","遠隔","遠",15,10,null,null,null,null,null,null,16,8,null,null,null,null,null,null,null,null,null,null,null,null,"命中F値+2 (上限9)",null,null,null,null,null,null,null,null,null,null,null,null,null,null,null,null,null,null,null,null,null,null,null,null,"マクスソウル",35,null,null,null,null,null,null,null,null,null,null,null,null,null,null,null,null,null,null,null,null,"戦闘開始時、覚醒付与"]
[null,null,null,null,null,null,null,null,null,null,null,null,null,null,null,null,null,null,null,null,null,null,null,null,null,null,null,null,null,null,null,null,null,null,null,null,null,null,null,null,null,null,"ハードボウ","射撃","遠隔x","遠",20,11,null,1,null,null,null,-2,8,null,null,null,null,null,null,null,null,null,null,null,null,null,"【集中】+3",null,null,null,null,null,null,null,null,null,null,null,null,null,null,null,null,null,null,null,null,null,null,null,null,"ギミックギア",35,null,null,null,null,null,null,null,null,null,null,null,null,null,null,null,null,null,null,null,null,"戦闘最初の攻撃の命中達成値+4"]
[null,null,null,null,null,null,null,null,null,null,null,null,null,null,null,null,null,null,null,null,null,null,null,null,null,null,null,null,null,null,null,null,null,null,null,null,null,null,null,null,null,null,"マグナム","射撃","遠隔","遠",20,10,null,null,null,null,null,null,15,10,null,null,null,null,null,null,null,null,null,null,null,null,"特殊効果なし",null,null,null,null,null,null,null,null,null,null,null,null,null,null,null,null,null,null,null,null,null,null,null,null,"ライフバイブル",35,null,null,null,null,null,null,null,null,null,null,null,3,null,null,null,null,null,null,null,null,"調査C値-3(下限14)"]
[null,null,null,null,null,null,null,null,null,null,null,null,null,null,null,null,null,null,null,null,null,null,null,null,null,null,null,null,null,null,null,null,null,null,null,null,null,null,null,null,null,null,"散弾銃","射撃","中距離","遠",30,11,null,1,null,null,null,-6,16,11,null,null,null,null,null,null,null,null,null,null,null,null,{"$f":"\"敵後衛に攻撃を行う場合、与ダメージ-\"&CL","v":"敵後衛に攻撃を行う場合、与ダメージ-0"},null,null,null,null,null,null,null,null,null,null,null,null,null,null,null,null,null,null,null,null,null,null,null,null,"鋼鉄のチョーカー",40,null,null,null,null,null,null,null,null,null,null,7,null,2,2,null,null,null,null,null,null,"即死無効"]
[null,null,null,null,null,null,null,null,null,null,null,null,null,null,null,null,null,null,null,null,null,null,null,null,null,null,null,null,null,null,null,null,null,null,null,null,null,null,null,null,null,null,"チャクラム","射撃","遠隔","遠",30,10,null,null,null,null,null,null,17,11,null,null,null,null,1,null,null,null,null,null,null,null,{"$f":"\"クリティカルした攻撃の与ﾀﾞﾒｰｼﾞ+\"&CL","v":"クリティカルした攻撃の与ﾀﾞﾒｰｼﾞ+0"},null,null,null,null,null,null,null,null,null,null,null,null,null,null,null,null,null,null,null,null,null,null,null,null,"フェアリーガード",40,null,null,null,null,null,null,null,null,2,2,null,6,null,null,null,null,1,null,1,null,"特殊効果なし"]
[null,null,null,null,null,null,null,null,null,null,null,null,null,null,null,null,null,null,null,null,null,null,null,null,null,null,null,null,null,null,null,null,null,null,null,null,null,null,null,null,null,null,"ハードボウ弐式","射撃","遠隔x","遠",35,11,null,1,null,null,null,-2,12,null,null,null,null,null,null,null,null,null,null,null,null,null,"【集中】+2 【意志】+2",null,null,null,null,null,null,null,null,null,null,null,null,null,null,null,null,null,null,null,null,null,null,null,null,"レッドアンバー",40,null,null,null,null,null,null,null,null,null,null,2,2,null,null,4,null,null,null,null,null,"【肉体】+5 【集中】+5"]
[null,null,null,null,null,null,null,null,null,null,null,null,null,null,null,null,null,null,null,null,null,null,null,null,null,null,null,null,null,null,null,null,null,null,null,null,null,null,null,null,null,null,"エッジヨーヨー","射撃","中距離","遠",35,11,null,null,null,null,null,2,18,12,null,null,null,-6,null,null,null,null,null,null,null,null,"特殊効果なし",null,null,null,null,null,null,null,null,null,null,null,null,null,null,null,null,null,null,null,null,null,null,null,null,"タンザナイト",40,null,null,null,null,null,null,null,null,null,null,null,6,1,1,null,null,null,null,null,null,"【知識】+5 【洞察】+5"]
[null,null,null,null,null,null,null,null,null,null,null,null,null,null,null,null,null,null,null,null,null,null,null,null,null,null,null,null,null,null,null,null,null,null,null,null,null,null,null,null,null,null,"ワイヤースタンガン","射撃","中距離","雷",40,11,null,null,null,null,null,null,20,11,null,null,null,null,null,null,null,null,-2,2,null,null,"通常攻撃命中時、攻撃後に30%マヒ付与",null,null,null,null,null,null,null,null,null,null,null,null,null,null,null,null,null,null,null,null,null,null,null,null,"八卦ブレスレット",40,null,null,null,null,null,null,null,null,null,null,4,4,null,null,null,null,null,null,null,null,"【意志】+5 【幸運】+5"]
[null,null,null,null,null,null,null,null,null,null,null,null,null,null,null,null,null,null,null,null,null,null,null,null,null,null,null,null,null,null,null,null,null,null,null,null,null,null,null,null,null,null,"飛苦無","射撃","中距離","遠",45,10,null,1,null,null,null,null,14,9,null,null,null,null,null,null,null,null,null,null,null,null,"[近接武器(至近/近)]",null,null,null,null,null,null,null,null,null,null,null,null,null,null,null,null,null,null,null,null,null,null,null,null,"漆黒の魔法石",40,null,null,null,null,null,null,10,10,null,null,-20,null,null,null,null,null,null,null,null,-6,"特殊効果なし"]
[null,null,null,null,null,null,null,null,null,null,null,null,null,null,null,null,null,null,null,null,null,null,null,null,null,null,null,null,null,null,null,null,null,null,null,null,null,null,null,null,null,null,"四方手裏剣","射撃","遠隔","遠",45,10,null,null,null,null,null,null,22,13,null,null,null,null,-1,-1,null,null,null,null,null,null,"[近接武器(至近/近)]",null,null,null,null,null,null,null,null,null,null,null,null,null,null,null,null,null,null,null,null,null,null,null,null,"ブレスブレスレット",40,null,null,null,null,null,null,null,null,null,null,null,2,null,null,null,null,null,null,null,2,{"$f":"\"回のｽｷﾙのHP回復量+\"&SL+2","v":"回のｽｷﾙのHP回復量+2"}]
[null,null,null,null,null,null,null,null,null,null,null,null,null,null,null,null,null,null,null,null,null,null,null,null,null,null,null,null,null,null,null,null,null,null,null,null,null,null,null,null,null,null,"マジック砲 -MC2-","射撃","遠隔x","遠",45,12,null,null,null,null,null,-2,23,16,null,null,null,null,1,1,null,null,null,null,null,null,"[魔法武器(遠隔x/遠)] ",null,null,null,null,null,null,null,null,null,null,null,null,null,null,null,null,null,null,null,null,null,null,null,null,"ドラゴンファング",40,null,null,null,null,null,null,null,null,null,null,12,null,1,null,null,null,null,null,null,null,"特殊効果なし"]
[null,null,null,null,null,null,null,null,null,null,null,null,null,null,null,null,null,null,null,null,null,null,null,null,null,null,null,null,null,null,null,null,null,null,null,null,null,null,null,null,null,null,"Mスーパーボール","射撃","中距離","遠",45,10,null,null,null,1,null,null,22,13,null,null,null,null,-1,null,null,null,null,null,null,null,"特殊効果なし",null,null,null,null,null,null,null,null,null,null,null,null,null,null,null,null,null,null,null,null,null,null,null,null,"ダッシュシューズ",40,null,null,null,null,null,null,null,null,null,null,2,null,1,null,null,null,null,null,1,null,"超至近の武器を至近として扱える"]
[null,null,null,null,null,null,null,null,null,null,null,null,null,null,null,null,null,null,null,null,null,null,null,null,null,null,null,null,null,null,null,null,null,null,null,null,null,null,null,null,null,null,"バーナーキャノン","射撃","遠隔","炎",50,12,null,null,null,null,null,null,24,15,null,null,null,null,1,2,3,-2,-2,-2,null,null,"特殊効果なし",null,null,null,null,null,null,null,null,null,null,null,null,null,null,null,null,null,null,null,null,null,null,null,null,"プロテクター",40,null,null,null,null,null,null,null,null,null,null,null,null,1,1,null,null,null,null,null,null,{"$f":"CL&\"点以下の被ﾀﾞﾒｰｼﾞを0にする\"","v":"0点以下の被ﾀﾞﾒｰｼﾞを0にする"}]
[null,null,null,null,null,null,null,null,null,null,null,null,null,null,null,null,null,null,null,null,null,null,null,null,null,null,null,null,null,null,null,null,null,null,null,null,null,null,null,null,null,null,"風刃砲","射撃","遠隔","風",50,11,null,null,null,null,null,4,20,14,null,null,null,null,null,1,null,null,null,-1,3,null,{"$f":"\"命中判定出目18以上の攻撃で与ダメージ+\"&CL","v":"命中判定出目18以上の攻撃で与ダメージ+0"},null,null,null,null,null,null,null,null,null,null,null,null,null,null,null,null,null,null,null,null,null,null,null,null,"厄払い人形",40,null,null,null,null,null,null,null,null,null,null,null,null,null,null,null,null,null,null,null,null,"1ｾｯｼｮﾝ1回、BS付与無効"]
[null,null,null,null,null,null,null,null,null,null,null,null,null,null,null,null,null,null,null,null,null,null,null,null,null,null,null,null,null,null,null,null,null,null,null,null,null,null,null,null,null,null,"魔法銃 MG-7","射撃","遠隔","遠",50,11,null,1,null,1,null,null,17,11,null,null,null,null,1,null,null,null,null,null,null,null,"[魔法武器(遠隔/遠)]",null,null,null,null,null,null,null,null,null,null,null,null,null,null,null,null,null,null,null,null,null,null,null,null,"マジックサイト",40,null,null,null,null,null,null,null,null,null,null,null,null,null,null,null,null,null,null,null,null,"命中C値-1(下限15)"]
[null,null,null,null,null,null,null,null,null,null,null,null,null,null,null,null,null,null,null,null,null,null,null,null,null,null,null,null,null,null,null,null,null,null,null,null,null,null,null,null,null,null,"フリスビーシールド","射撃","中距離","遠",55,11,null,null,null,null,null,-3,23,null,null,null,10,null,2,2,1,1,1,1,1,1,"【肉体】+3 【集中】+3",null,null,null,null,null,null,null,null,null,null,null,null,null,null,null,null,null,null,null,null,null,null,null,null,"ヘキサペンダント",40,null,null,null,null,null,null,null,null,null,null,null,4,null,null,1,1,1,1,1,1,"特殊効果なし"]
[null,null,null,null,null,null,null,null,null,null,null,null,null,null,null,null,null,null,null,null,null,null,null,null,null,null,null,null,null,null,null,null,null,null,null,null,null,null,null,null,null,null,"フリーズキャノン","射撃","遠隔","氷",60,12,null,null,-1,null,null,-4,33,18,null,null,null,null,1,null,-2,1,1,null,null,null,"凍結無効",null,null,null,null,null,null,null,null,null,null,null,null,null,null,null,null,null,null,null,null,null,null,null,null,"ジャスパー",40,null,null,null,null,null,null,null,null,null,null,null,null,null,null,null,null,null,null,null,null,"怯み(X)50%無効"]
[null,null,null,null,null,null,null,null,null,null,null,null,null,null,null,null,null,null,null,null,null,null,null,null,null,null,null,null,null,null,null,null,null,null,null,null,null,null,null,null,null,null,"レーザーサック","射撃","中距離","光",70,11,null,null,null,null,null,null,27,24,null,null,null,null,null,null,null,null,null,null,null,2,"【集中】+3",null,null,null,null,null,null,null,null,null,null,null,null,null,null,null,null,null,null,null,null,null,null,null,null,"ヴォルテックス",40,null,null,null,null,null,4,null,null,null,null,null,6,null,null,null,null,null,-4,6,null,"特殊効果なし"]
[null,null,null,null,null,null,null,null,null,null,null,null,null,null,null,null,null,null,null,null,null,null,null,null,null,null,null,null,null,null,null,null,null,null,null,null,null,null,null,null,null,null,"ハイドロガン","射撃","遠隔","水",80,11,null,null,null,null,null,-2,32,26,null,null,null,null,null,-2,2,1,1,null,null,null,"クリティカルした攻撃が命中した対象に怯み(2)付与",null,null,null,null,null,null,null,null,null,null,null,null,null,null,null,null,null,null,null,null,null,null,null,null,"ワイバーンの牙",50,null,null,null,null,null,null,5,null,5,null,null,null,null,null,null,null,null,null,null,null,"特殊効果なし"]
[null,null,null,null,null,null,null,null,null,null,null,null,null,null,null,null,null,null,null,null,null,null,null,null,null,null,null,null,null,null,null,null,null,null,null,null,null,null,null,null,null,null,"小型電磁砲","射撃","遠隔","遠",90,11,null,1,-1,1,null,-2,28,22,null,null,null,null,1,1,null,null,null,-2,null,null,"特殊効果なし",null,null,null,null,null,null,null,null,null,null,null,null,null,null,null,null,null,null,null,null,null,null,null,null,"マジックハット",50,null,null,null,null,null,null,null,5,null,5,null,null,null,null,null,null,null,null,null,null,"特殊効果なし"]
[null,null,null,null,null,null,null,null,null,null,null,null,null,null,null,null,null,null,null,null,null,null,null,null,null,null,null,null,null,null,null,null,null,null,null,null,null,null,null,null,null,null,"スナイパーライフル","射撃","遠隔x","遠",100,12,null,1,null,null,null,-3,38,29,null,null,null,null,null,null,null,null,null,null,null,null,"ｻﾌﾞｱｸｼｮﾝを消費した行動手番中の攻撃不可",null,null,null,null,null,null,null,null,null,null,null,null,null,null,null,null,null,null,null,null,null,null,null,null,"ローラーシューズ",50,null,null,null,null,null,null,null,null,null,null,null,null,null,null,null,null,null,null,null,null,"移動ｺｽﾄ-1 (ｻﾌﾞ下限2 ﾒｲﾝ下限6)"]
[null,null,null,null,null,null,null,null,null,null,null,null,null,null,null,null,null,null,null,null,null,null,null,null,null,null,null,null,null,null,null,null,null,null,null,null,null,null,null,null,null,null,"SMG","射撃","遠隔","遠",110,10,null,1,null,null,null,1,32,24,null,null,null,null,null,null,null,null,null,null,null,null,"【集中】+2 【意志】+3",null,null,null,null,null,null,null,null,null,null,null,null,null,null,null,null,null,null,null,null,null,null,null,null,"スターアミュレット",50,null,null,null,null,null,null,null,null,null,null,null,3,null,null,null,null,null,null,null,2,"1ｾｯｼｮﾝ1回、判定後に出目+1可能"]
[null,null,null,null,null,null,null,null,null,null,null,null,null,null,null,null,null,null,null,null,null,null,null,null,null,null,null,null,null,null,null,null,null,null,null,null,null,null,null,null,null,null,"ブラックボウガン","射撃","遠隔x","遠",120,12,null,1,-1,null,1,-4,34,26,null,null,null,null,-2,null,1,1,1,1,null,2,"命中C値-1 (下限16)",null,null,null,null,null,null,null,null,null,null,null,null,null,null,null,null,null,null,null,null,null,null,null,null,"流星の首輪",50,null,null,null,null,null,6,null,null,null,null,null,null,null,null,null,null,null,null,null,3,"特殊効果なし"]
[null,null,null,null,null,null,null,null,null,null,null,null,null,null,null,null,null,null,null,null,null,null,null,null,null,null,null,null,null,null,null,null,null,null,null,null,null,null,null,null,null,null,"雷神砲","射撃","遠隔","雷",140,11,null,1,-2,1,-1,-5,45,37,null,null,null,null,-1,-1,null,null,null,4,-2,2,"回避F値+2 (上限8)",null,null,null,null,null,null,null,null,null,null,null,null,null,null,null,null,null,null,null,null,null,null,null,null,"エンハンスギア",50,null,null,null,null,null,null,null,null,null,null,null,null,null,null,null,null,null,null,null,null,{"$f":"\"配置ﾕﾆｯﾄの【耐久】+\"&CL*2","v":"配置ﾕﾆｯﾄの【耐久】+0"}]
[null,null,null,null,null,null,null,null,null,null,null,null,null,null,null,null,null,null,null,null,null,null,null,null,null,null,null,null,null,null,null,null,null,null,null,null,null,null,null,null,null,null,"対物ライフル","射撃","遠隔","遠",160,11,null,1,-1,1,null,-3,50,42,null,null,null,null,-1,-1,null,null,null,null,null,null,"ｻﾌﾞｱｸｼｮﾝを消費した行動手番中の攻撃不可",null,null,null,null,null,null,null,null,null,null,null,null,null,null,null,null,null,null,null,null,null,null,null,null,"フェアリーバングル",50,null,null,null,null,null,null,null,null,null,null,null,3,null,null,1,1,1,1,1,null,"[BP上限値]+1"]
[null,null,null,null,null,null,null,null,null,null,null,null,null,null,null,null,null,null,null,null,null,null,null,null,null,null,null,null,null,null,null,null,null,null,null,null,null,null,null,null,null,null,"ネオアサルト","射撃","遠隔","遠",200,10,null,2,-1,null,null,null,53,44,null,null,null,null,1,null,null,null,null,null,null,null,"[魔法武器(遠隔/遠)] 命中C値-1 (下限16)",null,null,null,null,null,null,null,null,null,null,null,null,null,null,null,null,null,null,null,null,null,null,null,null,"呪いの指輪",50,null,null,null,null,null,null,null,null,null,null,null,15,null,null,null,null,null,null,null,null,"命中F値+2(上限8)"]
[null,null,null,null,null,null,null,null,null,null,null,null,null,null,null,null,null,null,null,null,null,null,null,null,null,null,null,null,null,null,null,null,null,null,null,null,null,null,null,null,null,null,null,null,null,null,null,null,null,null,null,null,null,null,null,null,null,null,null,null,null,null,null,null,null,null,null,null,null,null,null,null,null,null,null,null,null,null,null,null,null,null,null,null,null,null,null,null,null,null,null,null,null,"ヘリオスブーツ",50,null,null,null,null,null,3,null,null,3,5,null,null,null,null,3,1,1,null,null,null,"特殊効果なし"]
[null,null,null,null,null,null,null,null,null,null,null,null,null,null,null,null,null,null,null,null,null,null,null,null,null,null,null,null,null,null,null,null,null,null,null,null,null,null,null,null,null,null,null,null,null,null,null,null,null,null,null,null,null,null,null,null,null,null,null,null,null,null,null,null,null,null,null,null,null,null,null,null,null,null,null,null,null,null,null,null,null,null,null,null,null,null,null,null,null,null,null,null,null,"ヘヴィメタルギア",50,-2,-2,null,-2,null,null,15,15,null,null,null,null,null,null,null,null,null,null,null,null,"特殊効果なし"]
[null,null,null,null,null,null,null,null,null,null,null,null,null,null,null,null,null,null,null,null,null,null,null,null,null,null,null,null,null,null,null,null,null,null,null,null,null,null,null,null,null,null,null,null,null,null,null,null,null,null,null,null,null,null,null,null,null,null,null,null,null,null,null,null,null,null,null,null,null,null,null,null,null,null,null,null,null,null,null,null,null,null,null,null,null,null,null,null,null,null,null,null,null,"シルバーハット",50,null,null,null,null,null,null,null,null,null,null,null,6,null,null,null,null,null,null,null,null,"「判定値：対決」の判定達成値+1"]
[null,null,null,null,null,null,null,null,null,null,null,null,null,null,null,null,null,null,null,null,null,null,null,null,null,null,null,null,null,null,null,null,null,null,null,null,null,null,null,null,null,null,null,null,null,null,null,null,null,null,null,null,null,null,null,null,null,null,null,null,null,null,null,null,null,null,null,null,null,null,null,null,null,null,null,null,null,null,null,null,null,null,null,null,null,null,null,null,null,null,null,null,null,"不吉な呪符",50,null,null,null,null,null,null,null,null,null,null,null,16,null,null,null,null,null,null,null,null,"命中F値+2(上限8)"]
[null,null,null,null,null,null,null,null,null,null,null,null,null,null,null,null,null,null,null,null,null,null,null,null,null,null,null,null,null,null,null,null,null,null,null,null,null,null,null,null,null,null,null,null,null,null,null,null,null,null,null,null,null,null,null,null,null,null,null,null,null,null,null,null,null,null,null,null,null,null,null,null,null,null,null,null,null,null,null,null,null,null,null,null,null,null,null,null,null,null,null,null,null,"鬼神の護符",50,null,null,null,null,null,null,10,null,null,null,null,null,null,null,null,null,null,null,null,null,"特殊効果なし"]
[null,null,null,null,null,null,null,null,null,null,null,null,null,null,null,null,null,null,null,null,null,null,null,null,null,null,null,null,null,null,null,null,null,null,null,null,null,null,null,null,null,null,null,null,null,null,null,null,null,null,null,null,null,null,null,null,null,null,null,null,null,null,null,null,null,null,null,null,null,null,null,null,null,null,null,null,null,null,null,null,null,null,null,null,null,null,null,null,null,null,null,null,null,"大魔女のオーブ",50,null,null,null,null,null,null,null,10,null,null,null,null,null,null,null,null,null,null,null,null,"特殊効果なし"]
[null,null,null,null,null,null,null,null,null,null,null,null,null,null,null,null,null,null,null,null,null,null,null,null,null,null,null,null,null,null,null,null,null,null,null,null,null,null,null,null,null,null,null,null,null,null,null,null,null,null,null,null,null,null,null,null,null,null,null,null,null,null,null,null,null,null,null,null,null,null,null,null,null,null,null,null,null,null,null,null,null,null,null,null,null,null,null,null,null,null,null,null,null,"チタンヘッド",55,null,null,null,null,null,null,null,null,7,5,5,null,3,1,1,null,null,-1,null,null,"特殊効果なし"]
[null,null,null,null,null,null,null,null,null,null,null,null,null,null,null,null,null,null,null,null,null,null,null,null,null,null,null,null,null,null,null,null,null,null,null,null,null,null,null,null,null,null,null,null,null,null,null,null,null,null,null,null,null,null,null,null,null,null,null,null,null,null,null,null,null,null,null,null,null,null,null,null,null,null,null,null,null,null,null,null,null,null,null,null,null,null,null,null,null,null,null,null,null,"チタンガントレット",55,null,null,null,null,null,null,null,null,7,5,5,null,2,2,1,null,null,-1,null,null,"特殊効果なし"]
[null,null,null,null,null,null,null,null,null,null,null,null,null,null,null,null,null,null,null,null,null,null,null,null,null,null,null,null,null,null,null,null,null,null,null,null,null,null,null,null,null,null,null,null,null,null,null,null,null,null,null,null,null,null,null,null,null,null,null,null,null,null,null,null,null,null,null,null,null,null,null,null,null,null,null,null,null,null,null,null,null,null,null,null,null,null,null,null,null,null,null,null,null,"チタンレガース",55,null,null,null,null,null,null,null,null,7,5,5,null,1,3,1,null,null,-1,null,null,"特殊効果なし"]
[null,null,null,null,null,null,null,null,null,null,null,null,null,null,null,null,null,null,null,null,null,null,null,null,null,null,null,null,null,null,null,null,null,null,null,null,null,null,null,null,null,null,null,null,null,null,null,null,null,null,null,null,null,null,null,null,null,null,null,null,null,null,null,null,null,null,null,null,null,null,null,null,null,null,null,null,null,null,null,null,null,null,null,null,null,null,null,null,null,null,null,null,null,"ハートクリスタル",60,null,null,null,null,null,null,null,null,null,null,5,5,null,null,null,null,null,null,null,null,"[BP上限値]+2"]
[null,null,null,null,null,null,null,null,null,null,null,null,null,null,null,null,null,null,null,null,null,null,null,null,null,null,null,null,null,null,null,null,null,null,null,null,null,null,null,null,null,null,null,null,null,null,null,null,null,null,null,null,null,null,null,null,null,null,null,null,null,null,null,null,null,null,null,null,null,null,null,null,null,null,null,null,null,null,null,null,null,null,null,null,null,null,null,null,null,null,null,null,null,"ホワイトオーブ",60,null,null,null,null,null,null,null,null,null,null,null,null,null,null,null,null,null,null,null,4,{"$f":"\"回のｽｷﾙのHP回復量+\"&SL*2","v":"回のｽｷﾙのHP回復量+0"}]
[null,null,null,null,null,null,null,null,null,null,null,null,null,null,null,null,null,null,null,null,null,null,null,null,null,null,null,null,null,null,null,null,null,null,null,null,null,null,null,null,null,null,null,null,null,null,null,null,null,null,null,null,null,null,null,null,null,null,null,null,null,null,null,null,null,null,null,null,null,null,null,null,null,null,null,null,null,null,null,null,null,null,null,null,null,null,null,null,null,null,null,null,null,"アイスバックラー",60,null,null,null,null,null,null,null,null,5,5,null,null,2,null,-4,3,3,null,null,null,"凍結無効"]
[null,null,null,null,null,null,null,null,null,null,null,null,null,null,null,null,null,null,null,null,null,null,null,null,null,null,null,null,null,null,null,null,null,null,null,null,null,null,null,null,null,null,null,null,null,null,null,null,null,null,null,null,null,null,null,null,null,null,null,null,null,null,null,null,null,null,null,null,null,null,null,null,null,null,null,null,null,null,null,null,null,null,null,null,null,null,null,null,null,null,null,null,null,"雷神の籠手",60,null,null,null,null,null,null,null,null,5,5,null,null,1,1,null,null,null,4,-3,1,"マヒ無効"]
[null,null,null,null,null,null,null,null,null,null,null,null,null,null,null,null,null,null,null,null,null,null,null,null,null,null,null,null,null,null,null,null,null,null,null,null,null,null,null,null,null,null,null,null,null,null,null,null,null,null,null,null,null,null,null,null,null,null,null,null,null,null,null,null,null,null,null,null,null,null,null,null,null,null,null,null,null,null,null,null,null,null,null,null,null,null,null,null,null,null,null,null,null,"サイクロンブーツ",60,null,null,1,null,null,5,null,null,null,null,null,null,null,null,null,null,null,null,null,null,"特殊効果なし"]
[null,null,null,null,null,null,null,null,null,null,null,null,null,null,null,null,null,null,null,null,null,null,null,null,null,null,null,null,null,null,null,null,null,null,null,null,null,null,null,null,null,null,null,null,null,null,null,null,null,null,null,null,null,null,null,null,null,null,null,null,null,null,null,null,null,null,null,null,null,null,null,null,null,null,null,null,null,null,null,null,null,null,null,null,null,null,null,null,null,null,null,null,null,"アイテムポーチ",60,null,null,null,null,null,null,null,null,null,null,null,null,null,null,null,null,null,null,null,null,"1回のｻﾌﾞで消費ｱｲﾃﾑ2つ使用可"]
[null,null,null,null,null,null,null,null,null,null,null,null,null,null,null,null,null,null,null,null,null,null,null,null,null,null,null,null,null,null,null,null,null,null,null,null,null,null,null,null,null,null,null,null,null,null,null,null,null,null,null,null,null,null,null,null,null,null,null,null,null,null,null,null,null,null,null,null,null,null,null,null,null,null,null,null,null,null,null,null,null,null,null,null,null,null,null,null,null,null,null,null,null,"破呪の宝石",60,null,null,null,null,null,null,null,null,null,null,4,8,null,null,null,null,null,null,null,null,"呪い無効"]
[null,null,null,null,null,null,null,null,null,null,null,null,null,null,null,null,null,null,null,null,null,null,null,null,null,null,null,null,null,null,null,null,null,null,null,null,null,null,null,null,null,null,null,null,null,null,null,null,null,null,null,null,null,null,null,null,null,null,null,null,null,null,null,null,null,null,null,null,null,null,null,null,null,null,null,null,null,null,null,null,null,null,null,null,null,null,null,null,null,null,null,null,null,"真実のオーブ",70,null,null,null,null,null,null,null,null,null,null,null,10,null,null,null,null,null,null,null,null,"全基本能力値+2 調査F値-2(下限3)"]
[null,null,null,null,null,null,null,null,null,null,null,null,null,null,null,null,null,null,null,null,null,null,null,null,null,null,null,null,null,null,null,null,null,null,null,null,null,null,null,null,null,null,null,null,null,null,null,null,null,null,null,null,null,null,null,null,null,null,null,null,null,null,null,null,null,null,null,null,null,null,null,null,null,null,null,null,null,null,null,null,null,null,null,null,null,null,null,null,null,null,null,null,null,"タングステンヘルム",70,null,null,null,null,null,null,null,null,8,8,null,null,2,null,null,null,null,null,null,null,"特殊効果なし"]
[null,null,null,null,null,null,null,null,null,null,null,null,null,null,null,null,null,null,null,null,null,null,null,null,null,null,null,null,null,null,null,null,null,null,null,null,null,null,null,null,null,null,null,null,null,null,null,null,null,null,null,null,null,null,null,null,null,null,null,null,null,null,null,null,null,null,null,null,null,null,null,null,null,null,null,null,null,null,null,null,null,null,null,null,null,null,null,null,null,null,null,null,null,"アームブースター",75,null,null,null,null,null,null,null,null,null,null,-15,-12,-2,-2,null,null,null,null,null,null,"【肉体】+4"]
[null,null,null,null,null,null,null,null,null,null,null,null,null,null,null,null,null,null,null,null,null,null,null,null,null,null,null,null,null,null,null,null,null,null,null,null,null,null,null,null,null,null,null,null,null,null,null,null,null,null,null,null,null,null,null,null,null,null,null,null,null,null,null,null,null,null,null,null,null,null,null,null,null,null,null,null,null,null,null,null,null,null,null,null,null,null,null,null,null,null,null,null,null,"ロックコンタクト",75,null,null,null,null,null,null,null,null,null,null,-15,-12,-2,-2,null,null,null,null,null,null,"【集中】+4"]
[null,null,null,null,null,null,null,null,null,null,null,null,null,null,null,null,null,null,null,null,null,null,null,null,null,null,null,null,null,null,null,null,null,null,null,null,null,null,null,null,null,null,null,null,null,null,null,null,null,null,null,null,null,null,null,null,null,null,null,null,null,null,null,null,null,null,null,null,null,null,null,null,null,null,null,null,null,null,null,null,null,null,null,null,null,null,null,null,null,null,null,null,null,"フロートギア",75,null,null,null,null,null,null,null,null,null,null,-15,-12,-2,-2,null,null,null,null,null,null,"【反射】+4"]
[null,null,null,null,null,null,null,null,null,null,null,null,null,null,null,null,null,null,null,null,null,null,null,null,null,null,null,null,null,null,null,null,null,null,null,null,null,null,null,null,null,null,null,null,null,null,null,null,null,null,null,null,null,null,null,null,null,null,null,null,null,null,null,null,null,null,null,null,null,null,null,null,null,null,null,null,null,null,null,null,null,null,null,null,null,null,null,null,null,null,null,null,null,"ペンタグラム",75,null,null,null,null,null,null,null,null,null,null,-15,-12,-2,-2,null,null,null,null,null,null,"【知識】+4"]
[null,null,null,null,null,null,null,null,null,null,null,null,null,null,null,null,null,null,null,null,null,null,null,null,null,null,null,null,null,null,null,null,null,null,null,null,null,null,null,null,null,null,null,null,null,null,null,null,null,null,null,null,null,null,null,null,null,null,null,null,null,null,null,null,null,null,null,null,null,null,null,null,null,null,null,null,null,null,null,null,null,null,null,null,null,null,null,null,null,null,null,null,null,"アンチマジック",75,null,null,null,null,null,null,null,null,null,null,-15,-12,-2,-2,null,null,null,null,null,null,"【幸運】+4"]
[null,null,null,null,null,null,null,null,null,null,null,null,null,null,null,null,null,null,null,null,null,null,null,null,null,null,null,null,null,null,null,null,null,null,null,null,null,null,null,null,null,null,null,null,null,null,null,null,null,null,null,null,null,null,null,null,null,null,null,null,null,null,null,null,null,null,null,null,null,null,null,null,null,null,null,null,null,null,null,null,null,null,null,null,null,null,null,null,null,null,null,null,null,"太陽の首輪",80,null,null,null,null,null,null,15,15,null,null,null,null,null,null,null,null,null,null,null,null,"特殊効果なし"]
[null,null,null,null,null,null,null,null,null,null,null,null,null,null,null,null,null,null,null,null,null,null,null,null,null,null,null,null,null,null,null,null,null,null,null,null,null,null,null,null,null,null,null,null,null,null,null,null,null,null,null,null,null,null,null,null,null,null,null,null,null,null,null,null,null,null,null,null,null,null,null,null,null,null,null,null,null,null,null,null,null,null,null,null,null,null,null,null,null,null,null,null,null,"満月の首輪",80,null,null,null,null,null,null,null,null,null,null,null,null,null,null,null,null,null,null,null,null,{"$f":"\"回のｽｷﾙのHP回復量+\"&CL","v":"回のｽｷﾙのHP回復量+0"}]
[null,null,null,null,null,null,null,null,null,null,null,null,null,null,null,null,null,null,null,null,null,null,null,null,null,null,null,null,null,null,null,null,null,null,null,null,null,null,null,null,null,null,null,null,null,null,null,null,null,null,null,null,null,null,null,null,null,null,null,null,null,null,null,null,null,null,null,null,null,null,null,null,null,null,null,null,null,null,null,null,null,null,null,null,null,null,null,null,null,null,null,null,null,"スーパーリング",80,1,1,1,1,1,null,null,null,null,null,-15,-12,null,null,null,null,null,null,null,null,"特殊効果なし"]
[null,null,null,null,null,null,null,null,null,null,null,null,null,null,null,null,null,null,null,null,null,null,null,null,null,null,null,null,null,null,null,null,null,null,null,null,null,null,null,null,null,null,null,null,null,null,null,null,null,null,null,null,null,null,null,null,null,null,null,null,null,null,null,null,null,null,null,null,null,null,null,null,null,null,null,null,null,null,null,null,null,null,null,null,null,null,null,null,null,null,null,null,null,"パリィガントレット",80,null,null,1,null,null,null,null,null,null,null,null,null,2,2,null,null,null,null,null,null,"回避C値-1(下限16)"]
[null,null,null,null,null,null,null,null,null,null,null,null,null,null,null,null,null,null,null,null,null,null,null,null,null,null,null,null,null,null,null,null,null,null,null,null,null,null,null,null,null,null,null,null,null,null,null,null,null,null,null,null,null,null,null,null,null,null,null,null,null,null,null,null,null,null,null,null,null,null,null,null,null,null,null,null,null,null,null,null,null,null,null,null,null,null,null,null,null,null,null,null,null,"全知全能の書",80,null,null,null,null,null,null,null,null,null,null,null,5,null,null,null,null,null,null,null,null,"全基本能力値+6 調査C値-2(下限14)"]
[null,null,null,null,null,null,null,null,null,null,null,null,null,null,null,null,null,null,null,null,null,null,null,null,null,null,null,null,null,null,null,null,null,null,null,null,null,null,null,null,null,null,null,null,null,null,null,null,null,null,null,null,null,null,null,null,null,null,null,null,null,null,null,null,null,null,null,null,null,null,null,null,null,null,null,null,null,null,null,null,null,null,null,null,null,null,null,null,null,null,null,null,null,"ヘヴィメタルガード",90,null,null,-3,null,null,-7,null,null,null,null,20,null,3,3,2,2,2,2,2,null,"回避F値+2(上限20)"]
[null,null,null,null,null,null,null,null,null,null,null,null,null,null,null,null,null,null,null,null,null,null,null,null,null,null,null,null,null,null,null,null,null,null,null,null,null,null,null,null,null,null,null,null,null,null,null,null,null,null,null,null,null,null,null,null,null,null,null,null,null,null,null,null,null,null,null,null,null,null,null,null,null,null,null,null,null,null,null,null,null,null,null,null,null,null,null,null,null,null,null,null,null,"メテオグリーブ",90,null,null,null,null,null,-2,null,null,11,9,5,5,2,2,3,-2,-2,null,null,null,"特殊効果なし"]
[null,null,null,null,null,null,null,null,null,null,null,null,null,null,null,null,null,null,null,null,null,null,null,null,null,null,null,null,null,null,null,null,null,null,null,null,null,null,null,null,null,null,null,null,null,null,null,null,null,null,null,null,null,null,null,null,null,null,null,null,null,null,null,null,null,null,null,null,null,null,null,null,null,null,null,null,null,null,null,null,null,null,null,null,null,null,null,null,null,null,null,null,null,"竜王の指輪",100,null,null,null,null,null,null,null,null,null,null,{"$f":"IF(CL>=20,35,CL+15)","v":15},null,null,null,null,null,null,null,null,null,"特殊効果なし"]
[null,null,null,null,null,null,null,null,null,null,null,null,null,null,null,null,null,null,null,null,null,null,null,null,null,null,null,null,null,null,null,null,null,null,null,null,null,null,null,null,null,null,null,null,null,null,null,null,null,null,null,null,null,null,null,null,null,null,null,null,null,null,null,null,null,null,null,null,null,null,null,null,null,null,null,null,null,null,null,null,null,null,null,null,null,null,null,null,null,null,null,null,null,"大魔女の指輪",100,null,null,null,null,null,null,null,null,null,null,null,{"$f":"IF(CL>=20,25,CL+5)","v":5},null,null,null,null,null,null,null,null,"特殊効果なし"]
[null,null,null,null,null,null,null,null,null,null,null,null,null,null,null,null,null,null,null,null,null,null,null,null,null,null,null,null,null,null,null,null,null,null,null,null,null,null,null,null,null,null,null,null,null,null,null,null,null,null,null,null,null,null,null,null,null,null,null,null,null,null,null,null,null,null,null,null,null,null,null,null,null,null,null,null,null,null,null,null,null,null,null,null,null,null,null,null,null,null,null,null,null,"スターペンデュラム",100,null,null,null,null,null,null,null,null,null,null,null,null,null,null,null,null,null,null,null,null,"全C値-2(下限16)"]
[null,null,null,null,null,null,null,null,null,null,null,null,null,null,null,null,null,null,null,null,null,null,null,null,null,null,null,null,null,null,null,null,null,null,null,null,null,null,null,null,null,null,null,null,null,null,null,null,null,null,null,null,null,null,null,null,null,null,null,null,null,null,null,null,null,null,null,null,null,null,null,null,null,null,null,null,null,null,null,null,null,null,null,null,null,null,null,null,null,null,null,null,null,"フォーチュンリング",100,null,null,null,null,null,null,null,null,null,null,null,null,null,null,null,null,null,null,null,null,"ｸﾘﾃｨｶﾙした攻撃の与ﾀﾞﾒｰｼﾞ+7D10"]
[null,null,null,null,null,null,null,null,null,null,null,null,null,null,null,null,null,null,null,null,null,null,null,null,null,null,null,null,null,null,null,null,null,null,null,null,null,null,null,null,null,null,null,null,null,null,null,null,null,null,null,null,null,null,null,null,null,null,null,null,null,null,null,null,null,null,null,null,null,null,null,null,null,null,null,null,null,null,null,null,null,null,null,null,null,null,null,null,null,null,null,null,null,"ルビーギアEx",100,null,null,null,null,null,null,null,null,null,null,null,null,null,null,4,null,-2,null,null,null,"攻撃の〈炎〉与ﾀﾞﾒｰｼﾞ+[4D10+5]"]
[null,null,null,null,null,null,null,null,null,null,null,null,null,null,null,null,null,null,null,null,null,null,null,null,null,null,null,null,null,null,null,null,null,null,null,null,null,null,null,null,null,null,null,null,null,null,null,null,null,null,null,null,null,null,null,null,null,null,null,null,null,null,null,null,null,null,null,null,null,null,null,null,null,null,null,null,null,null,null,null,null,null,null,null,null,null,null,null,null,null,null,null,null,"ダンブライトギアEx",100,null,null,null,null,null,null,null,null,null,null,null,null,null,null,-2,4,null,null,null,null,"攻撃の〈氷〉与ﾀﾞﾒｰｼﾞ+[4D10+5]"]
[null,null,null,null,null,null,null,null,null,null,null,null,null,null,null,null,null,null,null,null,null,null,null,null,null,null,null,null,null,null,null,null,null,null,null,null,null,null,null,null,null,null,null,null,null,null,null,null,null,null,null,null,null,null,null,null,null,null,null,null,null,null,null,null,null,null,null,null,null,null,null,null,null,null,null,null,null,null,null,null,null,null,null,null,null,null,null,null,null,null,null,null,null,"サファイアギアEx",100,null,null,null,null,null,null,null,null,null,null,null,null,null,null,null,null,4,-2,null,null,"攻撃の〈水〉与ﾀﾞﾒｰｼﾞ+[4D10+5]"]
[null,null,null,null,null,null,null,null,null,null,null,null,null,null,null,null,null,null,null,null,null,null,null,null,null,null,null,null,null,null,null,null,null,null,null,null,null,null,null,null,null,null,null,null,null,null,null,null,null,null,null,null,null,null,null,null,null,null,null,null,null,null,null,null,null,null,null,null,null,null,null,null,null,null,null,null,null,null,null,null,null,null,null,null,null,null,null,null,null,null,null,null,null,"トパーズギアEx",100,null,null,null,null,null,null,null,null,null,null,null,null,null,null,null,null,null,4,-2,null,"攻撃の〈雷〉与ﾀﾞﾒｰｼﾞ+[4D10+5]"]
[null,null,null,null,null,null,null,null,null,null,null,null,null,null,null,null,null,null,null,null,null,null,null,null,null,null,null,null,null,null,null,null,null,null,null,null,null,null,null,null,null,null,null,null,null,null,null,null,null,null,null,null,null,null,null,null,null,null,null,null,null,null,null,null,null,null,null,null,null,null,null,null,null,null,null,null,null,null,null,null,null,null,null,null,null,null,null,null,null,null,null,null,null,"エメラルドギアEx",100,null,null,null,null,null,null,null,null,null,null,null,null,null,null,null,-2,null,null,4,null,"攻撃の〈風〉与ﾀﾞﾒｰｼﾞ+[4D10+5]"]
[null,null,null,null,null,null,null,null,null,null,null,null,null,null,null,null,null,null,null,null,null,null,null,null,null,null,null,null,null,null,null,null,null,null,null,null,null,null,null,null,null,null,null,null,null,null,null,null,null,null,null,null,null,null,null,null,null,null,null,null,null,null,null,null,null,null,null,null,null,null,null,null,null,null,null,null,null,null,null,null,null,null,null,null,null,null,null,null,null,null,null,null,null,"ヘリオドールギアEx",100,null,null,null,null,null,null,null,null,null,null,null,null,-1,-1,null,null,null,null,null,4,"攻撃の〈光〉与ﾀﾞﾒｰｼﾞ+[4D10+5]"]
[null,null,null,null,null,null,null,null,null,null,null,null,null,null,null,null,null,null,null,null,null,null,null,null,null,null,null,null,null,null,null,null,null,null,null,null,null,null,null,null,null,null,null,null,null,null,null,null,null,null,null,null,null,null,null,null,null,null,null,null,null,null,null,null,null,null,null,null,null,null,null,null,null,null,null,null,null,null,null,null,null,null,null,null,null,null,null,null,null,null,null,null,null,"セーフティリング",110,null,null,null,null,null,null,null,null,null,null,null,null,null,null,1,1,1,1,1,1,"全F値-2(下限3)"]
[null,null,null,null,null,null,null,null,null,null,null,null,null,null,null,null,null,null,null,null,null,null,null,null,null,null,null,null,null,null,null,null,null,null,null,null,null,null,null,null,null,null,null,null,null,null,null,null,null,null,null,null,null,null,null,null,null,null,null,null,null,null,null,null,null,null,null,null,null,null,null,null,null,null,null,null,null,null,null,null,null,null,null,null,null,null,null,null,null,null,null,null,null,"伝説の兜",120,null,null,null,null,null,null,null,null,15,15,9,5,null,null,null,null,null,null,null,null,"特殊効果なし"]
[null,null,null,null,null,null,null,null,null,null,null,null,null,null,null,null,null,null,null,null,null,null,null,null,null,null,null,null,null,null,null,null,null,null,null,null,null,null,null,null,null,null,null,null,null,null,null,null,null,null,null,null,null,null,null,null,null,null,null,null,null,null,null,null,null,null,null,null,null,null,null,null,null,null,null,null,null,null,null,null,null,null,null,null,null,null,null,null,null,null,null,null,null,"混沌の呪印",120,null,null,null,null,null,null,20,null,null,null,null,null,null,null,null,null,null,null,null,null,"呪い無効"]
[null,null,null,null,null,null,null,null,null,null,null,null,null,null,null,null,null,null,null,null,null,null,null,null,null,null,null,null,null,null,null,null,null,null,null,null,null,null,null,null,null,null,null,null,null,null,null,null,null,null,null,null,null,null,null,null,null,null,null,null,null,null,null,null,null,null,null,null,null,null,null,null,null,null,null,null,null,null,null,null,null,null,null,null,null,null,null,null,null,null,null,null,null,"ヘキサグラム",120,null,null,null,null,null,null,null,20,null,null,null,null,null,null,null,null,null,null,null,null,"封印無効"]
[null,null,null,null,null,null,null,null,null,null,null,null,null,null,null,null,null,null,null,null,null,null,null,null,null,null,null,null,null,null,null,null,null,null,null,null,null,null,null,null,null,null,null,null,null,null,null,null,null,null,null,null,null,null,null,null,null,null,null,null,null,null,null,null,null,null,null,null,null,null,null,null,null,null,null,null,null,null,null,null,null,null,null,null,null,null,null,null,null,null,null,null,null,"吸血鬼の心臓",120,null,null,null,null,null,null,null,null,null,null,10,null,null,null,null,null,null,null,null,-4,{"$f":"\"攻撃命中時、HPを\"&CL*2&\"点回復\"","v":"攻撃命中時、HPを0点回復"}]
[null,null,null,null,null,null,null,null,null,null,null,null,null,null,null,null,null,null,null,null,null,null,null,null,null,null,null,null,null,null,null,null,null,null,null,null,null,null,null,null,null,null,null,null,null,null,null,null,null,null,null,null,null,null,null,null,null,null,null,null,null,null,null,null,null,null,null,null,null,null,null,null,null,null,null,null,null,null,null,null,null,null,null,null,null,null,null,null,null,null,null,null,null,"祝福の輝石",120,null,null,null,null,null,null,null,null,null,null,null,null,null,null,null,null,null,null,null,null,"[BP上限値]+3 調査C値-2(下限14)"]
[null,null,null,null,null,null,null,null,null,null,null,null,null,null,null,null,null,null,null,null,null,null,null,null,null,null,null,null,null,null,null,null,null,null,null,null,null,null,null,null,null,null,null,null,null,null,null,null,null,null,null,null,null,null,null,null,null,null,null,null,null,null,null,null,null,null,null,null,null,null,null,null,null,null,null,null,null,null,null,null,null,null,null,null,null,null,null,null,null,null,null,null,null,"レインボーガード",150,null,null,null,null,null,null,null,null,null,null,null,25,2,2,2,2,2,2,2,2,"特殊効果なし"]
[null,null,null,null,null,null,null,null,null,null,null,null,null,null,null,null,null,null,null,null,null,null,null,null,null,null,null,null,null,null,null,null,null,null,null,null,null,null,null,null,null,null,null,null,null,null,null,null,null,null,null,null,null,null,null,null,null,null,null,null,null,null,null,null,null,null,null,null,null,null,null,null,null,null,null,null,null,null,null,null,null,null,null,null,null,null,null,null,null,null,null,null,null,"デビルグローブ",150,null,null,null,null,null,null,30,null,null,null,null,null,null,null,null,null,null,null,null,null,"特殊効果なし"]
[null,null,null,null,null,null,null,null,null,null,null,null,null,null,null,null,null,null,null,null,null,null,null,null,null,null,null,null,null,null,null,null,null,null,null,null,null,null,null,null,null,null,null,null,null,null,null,null,null,null,null,null,null,null,null,null,null,null,null,null,null,null,null,null,null,null,null,null,null,null,null,null,null,null,null,null,null,null,null,null,null,null,null,null,null,null,null,null,null,null,null,null,null,"大いなる加護印",150,null,null,null,null,null,null,null,30,null,null,null,null,null,null,null,null,null,null,null,null,"特殊効果なし"]